Body Name,Purpose,Dr/Cr,Gross Amount,Beneficiary,Transaction date,Directorate
Nottinghamshire County Council ,Legal Fees,Debit,391.49,amazon eu amazon.co.uk,01/07/2018,Resources
Nottinghamshire County Council ,Provisions,Debit,6.49,mcdonalds,01/07/2018,"Children, Families & Cultural Services "
Nottinghamshire County Council ,Books - General,Debit,12.99,amazon uk retail,01/07/2018,"Children, Families & Cultural Services "
Nottinghamshire County Council ,Cleaning Materials,Debit,26.17,amazon uk retail,01/07/2018,"Children, Families & Cultural Services "
Nottinghamshire County Council ,Provisions,Debit,42.67,amazon uk marketplace,01/07/2018,"Children, Families & Cultural Services "
Nottinghamshire County Council ,Personal Needs,Debit,7.99,netflix.com,01/07/2018,"Children, Families & Cultural Services "
Nottinghamshire County Council ,Teaching Equipment,Debit,5.95,amazon uk retail,01/07/2018,"Children, Families & Cultural Services "
Nottinghamshire County Council ,Provisions,Debit,26.49,sportsdirect 195,01/07/2018,"Children, Families & Cultural Services "
Nottinghamshire County Council ,Provisions,Debit,55.05,j d sports plc,01/07/2018,"Children, Families & Cultural Services "
Nottinghamshire County Council ,Provisions,Debit,12.99,t k maxx,01/07/2018,"Children, Families & Cultural Services "
Nottinghamshire County Council ,Provisions,Debit,3.70,intu victoria centre,01/07/2018,"Children, Families & Cultural Services "
Nottinghamshire County Council ,Personal Needs,Debit,36.00,sumup   omf,01/07/2018,"Children, Families & Cultural Services "
Nottinghamshire County Council ,Personal Needs,Debit,44.00,fantasy island,01/07/2018,"Children, Families & Cultural Services "
Nottinghamshire County Council ,Personal Needs,Debit,24.00,sumup   omf,01/07/2018,"Children, Families & Cultural Services "
Nottinghamshire County Council ,Teaching Equipment,Debit,2.97,aldi 1 779,01/07/2018,"Children, Families & Cultural Services "
Nottinghamshire County Council ,Aids & Appliances,Debit,37.00,amazon uk marketplace,01/07/2018,"Children, Families & Cultural Services "
Nottinghamshire County Council ,Office / General Equipment,Debit,24.99,amazon uk marketplace,01/07/2018,"Children, Families & Cultural Services "
Nottinghamshire County Council ,Advertising & Marketing,Debit,97.76,hotjar,01/07/2018,Resources
Nottinghamshire County Council ,Family Financial Assistance,Debit,137.57,ashfield district,02/07/2018,"Children, Families & Cultural Services "
Nottinghamshire County Council ,Family Financial Assistance,Debit,76.00,ashfield district,02/07/2018,"Children, Families & Cultural Services "
Nottinghamshire County Council ,Activities & Support,Debit,12.85,wellingtons cafe,02/07/2018,"Children, Families & Cultural Services "
Nottinghamshire County Council ,Provisions,Debit,3.65,sainsburys spmkts,02/07/2018,"Children, Families & Cultural Services "
Nottinghamshire County Council ,Cleaning & Domestic Equipment,Debit,98.69,the range-newark,02/07/2018,"Adult Social Care, Health & Public Protection "
Nottinghamshire County Council ,Building Maintenance,Debit,118.00,sq  carpet bargain centr,02/07/2018,"Children, Families & Cultural Services "
Nottinghamshire County Council ,Grounds Maintenance,Debit,123.96,wickes building,02/07/2018,"Children, Families & Cultural Services "
Nottinghamshire County Council ,Provisions,Debit,9.98,tesco stores 5329,02/07/2018,"Children, Families & Cultural Services "
Nottinghamshire County Council ,Provisions,Debit,6.55,sainsburys s/mkts,02/07/2018,"Children, Families & Cultural Services "
Nottinghamshire County Council ,Provisions,Debit,2.97,lidl uk  netherfield,02/07/2018,"Children, Families & Cultural Services "
Nottinghamshire County Council ,Office / General Equipment,Debit,2.20,tesco stores 5437,02/07/2018,"Adult Social Care, Health & Public Protection "
Nottinghamshire County Council ,Clothing And Footwear,Debit,21.00,amazon uk marketplace,02/07/2018,"Adult Social Care, Health & Public Protection "
Nottinghamshire County Council ,Provisions,Debit,17.35,home bargains newark,02/07/2018,"Children, Families & Cultural Services "
Nottinghamshire County Council ,Provisions,Debit,9.98,the range-newark,02/07/2018,"Children, Families & Cultural Services "
Nottinghamshire County Council ,Training Fees,Debit,29.22,amazon uk marketplace,02/07/2018,"Adult Social Care, Health & Public Protection "
Nottinghamshire County Council ,Training Fees,Debit,9.21,amazon uk marketplace,02/07/2018,"Adult Social Care, Health & Public Protection "
Nottinghamshire County Council ,Training Fees,Debit,0.96,amazon uk marketplace,02/07/2018,"Adult Social Care, Health & Public Protection "
Nottinghamshire County Council ,Office / General Equipment,Debit,7.30,sainsburys s/mkts,02/07/2018,Place
Nottinghamshire County Council ,Provisions,Debit,65.59,aldi 39 779,02/07/2018,"Children, Families & Cultural Services "
Nottinghamshire County Council ,Provisions,Debit,8.99,amazon uk marketplace,02/07/2018,"Children, Families & Cultural Services "
Nottinghamshire County Council ,Personal Needs,Debit,4.00,primark,02/07/2018,"Children, Families & Cultural Services "
Nottinghamshire County Council ,Personal Needs,Debit,12.64,savers health  beauty,02/07/2018,"Children, Families & Cultural Services "
Nottinghamshire County Council ,Personal Needs,Debit,44.90,aldi 39 779,02/07/2018,"Children, Families & Cultural Services "
Nottinghamshire County Council ,Unplanned Needs and Financial Support,Debit,5.90,m6 toll,02/07/2018,"Children, Families & Cultural Services "
Nottinghamshire County Council ,Unplanned Needs and Financial Support,Debit,4.40,m6 toll,02/07/2018,"Children, Families & Cultural Services "
Nottinghamshire County Council ,Unplanned Needs and Financial Support,Debit,175.00,the clarence hotel ltd,02/07/2018,"Children, Families & Cultural Services "
Nottinghamshire County Council ,Teaching Equipment,Debit,108.44,wm eyre and sons,02/07/2018,"Children, Families & Cultural Services "
Nottinghamshire County Council ,Provisions,Debit,7.50,wm eyre and sons,02/07/2018,"Children, Families & Cultural Services "
Nottinghamshire County Council ,Provisions,Credi,-8.00,tesco stores 3378,02/07/2018,"Children, Families & Cultural Services "
Nottinghamshire County Council ,Provisions,Debit,186.77,tesco stores 3378,02/07/2018,"Children, Families & Cultural Services "
Nottinghamshire County Council ,Provisions,Debit,18.35,decathlon,02/07/2018,"Children, Families & Cultural Services "
Nottinghamshire County Council ,Provisions,Debit,32.00,tesco store 3439,02/07/2018,"Children, Families & Cultural Services "
Nottinghamshire County Council ,Provisions,Debit,40.68,tesco store 3439,02/07/2018,"Children, Families & Cultural Services "
Nottinghamshire County Council ,Provisions,Debit,23.38,tesco store 3439,02/07/2018,"Children, Families & Cultural Services "
Nottinghamshire County Council ,DBS Checks,Debit,25.96,b  m retail,02/07/2018,"Children, Families & Cultural Services "
Nottinghamshire County Council ,DBS Checks,Debit,80.00,ikea limited,02/07/2018,"Children, Families & Cultural Services "
Nottinghamshire County Council ,Legal Fees,Debit,300.00,hopkins solicitors llp,02/07/2018,"Children, Families & Cultural Services "
Nottinghamshire County Council ,Provisions,Debit,24.00,tesco stores 2702,02/07/2018,"Children, Families & Cultural Services "
Nottinghamshire County Council ,Provisions,Debit,23.97,bm retail ltd,02/07/2018,"Children, Families & Cultural Services "
Nottinghamshire County Council ,Provisions,Debit,8.50,wilko retail limit,02/07/2018,"Children, Families & Cultural Services "
Nottinghamshire County Council ,Activities & Support,Debit,5.97,bm retail ltd,02/07/2018,"Children, Families & Cultural Services "
Nottinghamshire County Council ,Provisions,Debit,55.82,asda groceries online,02/07/2018,"Adult Social Care, Health & Public Protection "
Nottinghamshire County Council ,Office / General Equipment,Debit,26.95,amazon uk marketplace,02/07/2018,"Children, Families & Cultural Services "
Nottinghamshire County Council ,Provisions,Debit,7.24,costcutter,02/07/2018,"Children, Families & Cultural Services "
Nottinghamshire County Council ,Provisions,Debit,8.50,sainsburys s/mkts,02/07/2018,"Adult Social Care, Health & Public Protection "
Nottinghamshire County Council ,Provisions,Debit,131.95,jtf wholesale ltd,02/07/2018,"Adult Social Care, Health & Public Protection "
Nottinghamshire County Council ,Building Maintenance,Debit,15.28,amazon eu amazon.co.uk,02/07/2018,"Children, Families & Cultural Services "
Nottinghamshire County Council ,Provisions,Debit,209.23,amazon uk marketplace,02/07/2018,"Children, Families & Cultural Services "
Nottinghamshire County Council ,Provisions,Debit,49.90,amazon uk marketplace,02/07/2018,"Children, Families & Cultural Services "
Nottinghamshire County Council ,Cleaning Materials,Debit,89.81,ableworld newark,02/07/2018,"Adult Social Care, Health & Public Protection "
Nottinghamshire County Council ,Provisions,Debit,17.40,mansfield,02/07/2018,"Children, Families & Cultural Services "
Nottinghamshire County Council ,Provisions,Debit,7.80,mansfield,02/07/2018,"Children, Families & Cultural Services "
Nottinghamshire County Council ,Provisions,Debit,25.00,mansfield,02/07/2018,"Children, Families & Cultural Services "
Nottinghamshire County Council ,Personal Needs,Debit,50.00,scrivens opticians 084,02/07/2018,"Children, Families & Cultural Services "
Nottinghamshire County Council ,Clothing And Footwear,Debit,80.00,www.size.co.uk,02/07/2018,"Children, Families & Cultural Services "
Nottinghamshire County Council ,Teaching Equipment,Debit,5.49,amazon uk retail,02/07/2018,"Children, Families & Cultural Services "
Nottinghamshire County Council ,Teaching Equipment,Debit,12.79,amazon uk marketplace,02/07/2018,"Children, Families & Cultural Services "
Nottinghamshire County Council ,Teaching Equipment,Debit,21.99,amazon uk marketplace,02/07/2018,"Children, Families & Cultural Services "
Nottinghamshire County Council ,Provisions,Credi,-25.00,j d sports 269,02/07/2018,"Children, Families & Cultural Services "
Nottinghamshire County Council ,Office / General Equipment,Debit,9.50,w m morrisons,02/07/2018,Resources
Nottinghamshire County Council ,Office / General Equipment,Debit,13.33,amazon uk retail,02/07/2018,Resources
Nottinghamshire County Council ,Provisions,Debit,3.35,co-op group 017091,02/07/2018,"Children, Families & Cultural Services "
Nottinghamshire County Council ,Provisions,Debit,16.03,tesco stores 2995,02/07/2018,"Children, Families & Cultural Services "
Nottinghamshire County Council ,Other Fees & Services,Debit,23.76,amazon uk marketplace,02/07/2018,Resources
Nottinghamshire County Council ,Unplanned Needs and Financial Support,Debit,10.10,poundland ltd 1718,02/07/2018,"Children, Families & Cultural Services "
Nottinghamshire County Council ,Provisions,Debit,31.15,sainsburys smkt,02/07/2018,"Children, Families & Cultural Services "
Nottinghamshire County Council ,Unplanned Needs and Financial Support,Debit,24.05,asda stores 4880,02/07/2018,"Children, Families & Cultural Services "
Nottinghamshire County Council ,Provisions,Debit,10.95,amazon svcs eu-uk amazon,02/07/2018,"Adult Social Care, Health & Public Protection "
Nottinghamshire County Council ,Provisions,Debit,76.10,w m morrisons.com,02/07/2018,"Adult Social Care, Health & Public Protection "
Nottinghamshire County Council ,Advertising & Marketing,Debit,20.37,canva for work monthly,02/07/2018,Resources
Nottinghamshire County Council ,Unplanned Needs and Financial Support,Debit,5.98,mcdonalds,02/07/2018,"Children, Families & Cultural Services "
Nottinghamshire County Council ,Provisions,Debit,7.69,iceland,02/07/2018,"Children, Families & Cultural Services "
Nottinghamshire County Council ,Activities & Support,Debit,17.30,coverwise.co.uk,02/07/2018,"Children, Families & Cultural Services "
Nottinghamshire County Council ,Provisions,Debit,2.30,co-op group 012451,02/07/2018,"Children, Families & Cultural Services "
Nottinghamshire County Council ,Books - General,Debit,67.50,www.coram.org.uk,02/07/2018,"Children, Families & Cultural Services "
Nottinghamshire County Council ,Provisions,Debit,4.10,tesco stores 3297,03/07/2018,"Children, Families & Cultural Services "
Nottinghamshire County Council ,Software Purchases,Debit,19.63,github.com  dg6q2,03/07/2018,Resources
Nottinghamshire County Council ,Office / General Equipment,Debit,115.80,www.lancashirehygiene.,03/07/2018,"Adult Social Care, Health & Public Protection "
Nottinghamshire County Council ,Housing/Accommodation Financial Support,Debit,19.80,tesco stores 5281,03/07/2018,"Children, Families & Cultural Services "
Nottinghamshire County Council ,Legal Fees,Debit,11.00,notts county council,03/07/2018,Resources
Nottinghamshire County Council ,Training Fees,Debit,25.16,amazon uk marketplace,03/07/2018,"Adult Social Care, Health & Public Protection "
Nottinghamshire County Council ,Training Fees,Debit,185.89,amazon uk marketplace,03/07/2018,"Adult Social Care, Health & Public Protection "
Nottinghamshire County Council ,Provisions,Debit,8.75,amazon uk marketplace,03/07/2018,"Adult Social Care, Health & Public Protection "
Nottinghamshire County Council ,Provisions,Debit,72.50,amazon uk marketplace,03/07/2018,"Adult Social Care, Health & Public Protection "
Nottinghamshire County Council ,Minor Works,Debit,51.95,screwfix mansfield,03/07/2018,"Children, Families & Cultural Services "
Nottinghamshire County Council ,Provisions,Debit,8.43,co-op group 011261,03/07/2018,"Children, Families & Cultural Services "
Nottinghamshire County Council ,Office / General Equipment,Debit,3.45,wilko retail limit,03/07/2018,Place
Nottinghamshire County Council ,Office / General Equipment,Debit,3.99,wh smith,03/07/2018,Place
Nottinghamshire County Council ,Provisions,Debit,36.60,sainsburys smkt,03/07/2018,"Adult Social Care, Health & Public Protection "
Nottinghamshire County Council ,Provisions,Debit,10.74,farmfoods- woodhou,03/07/2018,"Children, Families & Cultural Services "
Nottinghamshire County Council ,Other Fees & Services,Debit,73.40,cafe rouge,03/07/2018,Resources
Nottinghamshire County Council ,Other Fees & Services,Debit,117.85,azzurri restaurant,03/07/2018,Resources
Nottinghamshire County Council ,Provisions,Debit,2.65,farmfoods- kirkby/,03/07/2018,"Children, Families & Cultural Services "
Nottinghamshire County Council ,Leaving Care - Home Establishment Grant,Debit,36.30,wilko retail limit,03/07/2018,"Children, Families & Cultural Services "
Nottinghamshire County Council ,Provisions,Debit,22.04,lidl uk  sutton in ash,03/07/2018,"Children, Families & Cultural Services "
Nottinghamshire County Council ,Unplanned Needs and Financial Support,Debit,5.85,rufford park parkwood le,03/07/2018,"Children, Families & Cultural Services "
Nottinghamshire County Council ,Provisions,Debit,337.32,paypal  plasticman,03/07/2018,"Children, Families & Cultural Services "
Nottinghamshire County Council ,Activities & Support,Debit,9.00,stationery office book,03/07/2018,Resources
Nottinghamshire County Council ,DBS Checks,Debit,20.00,tesco store 2960,03/07/2018,"Children, Families & Cultural Services "
Nottinghamshire County Council ,Activities & Support,Debit,101.70,amazon uk marketplace,03/07/2018,Resources
Nottinghamshire County Council ,Provisions,Debit,11.52,b  q 1261,03/07/2018,"Children, Families & Cultural Services "
Nottinghamshire County Council ,Provisions,Debit,9.24,b  q 1261,03/07/2018,"Children, Families & Cultural Services "
Nottinghamshire County Council ,Provisions,Debit,10.33,aldi stores,03/07/2018,"Children, Families & Cultural Services "
Nottinghamshire County Council ,Provisions,Debit,42.68,booker limited mansfield,03/07/2018,"Children, Families & Cultural Services "
Nottinghamshire County Council ,Provisions,Debit,21.50,tesco stores 5437,03/07/2018,"Children, Families & Cultural Services "
Nottinghamshire County Council ,Office / General Equipment,Debit,129.99,currys,03/07/2018,"Children, Families & Cultural Services "
Nottinghamshire County Council ,Office / General Equipment,Debit,3.90,wsale office supp,03/07/2018,"Children, Families & Cultural Services "
Nottinghamshire County Council ,Stationery,Debit,7.99,amazon prime member fee,03/07/2018,Resources
Nottinghamshire County Council ,Provisions,Debit,24.14,tesco stores 2702,03/07/2018,"Children, Families & Cultural Services "
Nottinghamshire County Council ,Provisions,Debit,17.99,amazon uk marketplace,03/07/2018,"Children, Families & Cultural Services "
Nottinghamshire County Council ,Provisions,Debit,40.81,www.iceland.co.uk,03/07/2018,"Children, Families & Cultural Services "
Nottinghamshire County Council ,Provisions,Debit,288.27,booker limited mansfield,03/07/2018,"Children, Families & Cultural Services "
Nottinghamshire County Council ,Provisions,Debit,62.53,morrisons petrol,03/07/2018,"Adult Social Care, Health & Public Protection "
Nottinghamshire County Council ,Provisions,Debit,49.92,amazon svcs eu-uk amazon,03/07/2018,"Adult Social Care, Health & Public Protection "
Nottinghamshire County Council ,Provisions,Debit,17.90,amazon uk marketplace,03/07/2018,"Adult Social Care, Health & Public Protection "
Nottinghamshire County Council ,Provisions,Debit,26.70,tesco stores 5437,03/07/2018,"Children, Families & Cultural Services "
Nottinghamshire County Council ,Provisions,Debit,102.25,asda superstore 04030,03/07/2018,"Children, Families & Cultural Services "
Nottinghamshire County Council ,Other Fees & Services,Debit,75.00,the home office,03/07/2018,"Children, Families & Cultural Services "
Nottinghamshire County Council ,Leaving Care - Home Establishment Grant,Debit,250.00,kings furiture,03/07/2018,"Children, Families & Cultural Services "
Nottinghamshire County Council ,Provisions,Debit,4.52,co-op group food,03/07/2018,"Children, Families & Cultural Services "
Nottinghamshire County Council ,Provisions,Debit,16.11,co-op group 010811,03/07/2018,"Children, Families & Cultural Services "
Nottinghamshire County Council ,Office / General Equipment,Debit,25.98,wickes mansfield,03/07/2018,"Adult Social Care, Health & Public Protection "
Nottinghamshire County Council ,Provisions,Debit,2.07,aldi 68 779,03/07/2018,"Children, Families & Cultural Services "
Nottinghamshire County Council ,Provisions,Debit,32.11,co-op group 010461,03/07/2018,Place
Nottinghamshire County Council ,Personal Needs,Debit,135.00,curtainsblinds,03/07/2018,"Children, Families & Cultural Services "
Nottinghamshire County Council ,Office / General Equipment,Debit,131.79,amazon uk marketplace,03/07/2018,"Children, Families & Cultural Services "
Nottinghamshire County Council ,Provisions,Debit,4.54,aldi 39 779,03/07/2018,"Children, Families & Cultural Services "
Nottinghamshire County Council ,Provisions,Debit,25.00,jd sports internet,03/07/2018,"Children, Families & Cultural Services "
Nottinghamshire County Council ,Unplanned Needs and Financial Support,Debit,18.20,aldi 55 779,03/07/2018,"Children, Families & Cultural Services "
Nottinghamshire County Council ,Office / General Equipment,Credi,-44.50,marksspencer plc,03/07/2018,Resources
Nottinghamshire County Council ,Subscriptions and Licences,Debit,45.00,the institute for outd,03/07/2018,"Children, Families & Cultural Services "
Nottinghamshire County Council ,Provisions,Debit,75.56,aldi 65 779,03/07/2018,"Children, Families & Cultural Services "
Nottinghamshire County Council ,Provisions,Debit,45.38,aldi 65 779,03/07/2018,"Children, Families & Cultural Services "
Nottinghamshire County Council ,Provisions,Debit,3.05,sainsburys s/mkts,03/07/2018,"Children, Families & Cultural Services "
Nottinghamshire County Council ,Provisions,Debit,12.83,wm morrisons,03/07/2018,"Children, Families & Cultural Services "
Nottinghamshire County Council ,Other Fees & Services,Debit,33.99,disabilityrightsuk,03/07/2018,Resources
Nottinghamshire County Council ,Legal Fees,Debit,11.00,paylink internet,03/07/2018,Resources
Nottinghamshire County Council ,Legal Fees,Debit,11.00,paylink internet,03/07/2018,Resources
Nottinghamshire County Council ,Legal Fees,Credi,-11.00,notts county council,03/07/2018,Resources
Nottinghamshire County Council ,Staff Training,Debit,144.00,nbv,03/07/2018,"Adult Social Care, Health & Public Protection "
Nottinghamshire County Council ,Staff Training,Debit,107.10,www.everso.co.uk,03/07/2018,"Adult Social Care, Health & Public Protection "
Nottinghamshire County Council ,Other Fees & Services,Debit,29.85,gro hm passport office,03/07/2018,"Children, Families & Cultural Services "
Nottinghamshire County Council ,Fuel - Petrol,Debit,37.00,malthurst limited,03/07/2018,"Children, Families & Cultural Services "
Nottinghamshire County Council ,Activities & Support,Debit,8.14,aldi,03/07/2018,"Children, Families & Cultural Services "
Nottinghamshire County Council ,Minor Works,Debit,6.15,tesco pfs 4083,03/07/2018,"Children, Families & Cultural Services "
Nottinghamshire County Council ,Office / General Equipment,Debit,54.08,amazon uk marketplace,03/07/2018,"Children, Families & Cultural Services "
Nottinghamshire County Council ,Clothing/Shoes/Uniforms,Debit,21.47,amazon uk marketplace,03/07/2018,"Children, Families & Cultural Services "
Nottinghamshire County Council ,Leaving Care - Home Establishment Grant,Debit,22.00,wilko retail limit,03/07/2018,"Children, Families & Cultural Services "
Nottinghamshire County Council ,Unplanned Needs and Financial Support,Debit,15.10,tesco stores 5379,03/07/2018,"Children, Families & Cultural Services "
Nottinghamshire County Council ,Provisions,Debit,11.90,tesco store 3439,03/07/2018,"Children, Families & Cultural Services "
Nottinghamshire County Council ,Unplanned Needs and Financial Support,Debit,283.00,austins carpets limit,03/07/2018,"Children, Families & Cultural Services "
Nottinghamshire County Council ,Unplanned Needs and Financial Support,Debit,69.00,mansfield leisure,03/07/2018,"Children, Families & Cultural Services "
Nottinghamshire County Council ,Provisions,Debit,9.00,iceland,03/07/2018,"Children, Families & Cultural Services "
Nottinghamshire County Council ,Provisions,Debit,12.65,asda superstore 04261,03/07/2018,"Children, Families & Cultural Services "
Nottinghamshire County Council ,Provisions,Debit,9.58,co-op group 012451,03/07/2018,"Children, Families & Cultural Services "
Nottinghamshire County Council ,Other Fees & Services,Credi,-29.85,gro hm passport office,03/07/2018,"Children, Families & Cultural Services "
Nottinghamshire County Council ,Legal Fees,Debit,10.00,www.certsure.com,03/07/2018,Resources
Nottinghamshire County Council ,Provisions,Debit,150.50,tvlicensing.co.uk,03/07/2018,"Children, Families & Cultural Services "
Nottinghamshire County Council ,Provisions,Debit,3.88,amazon svcs eu-uk amazon,03/07/2018,"Adult Social Care, Health & Public Protection "
Nottinghamshire County Council ,Provisions,Debit,2.29,amazon svcs eu-uk amazon,03/07/2018,"Adult Social Care, Health & Public Protection "
Nottinghamshire County Council ,Provisions,Debit,6.60,sainsburys s/mkts,04/07/2018,"Children, Families & Cultural Services "
Nottinghamshire County Council ,Provisions,Debit,38.06,aldi 39 779,04/07/2018,"Children, Families & Cultural Services "
Nottinghamshire County Council ,Personal Needs,Debit,3.29,amazon uk marketplace,04/07/2018,"Children, Families & Cultural Services "
Nottinghamshire County Council ,Unplanned Needs and Financial Support,Debit,9.40,tesco stores 5379,04/07/2018,"Children, Families & Cultural Services "
Nottinghamshire County Council ,Provisions,Debit,58.01,w m morrisons.com,04/07/2018,"Adult Social Care, Health & Public Protection "
Nottinghamshire County Council ,Unplanned Needs and Financial Support,Debit,110.00,asda stores 4475,04/07/2018,"Children, Families & Cultural Services "
Nottinghamshire County Council ,Unplanned Needs and Financial Support,Debit,32.98,asda stores 4475,04/07/2018,"Children, Families & Cultural Services "
Nottinghamshire County Council ,Cleaning Materials,Debit,27.96,aldi 65 779,04/07/2018,"Children, Families & Cultural Services "
Nottinghamshire County Council ,Legal Fees,Debit,77.00,www.moneyclaim.gov,04/07/2018,Resources
Nottinghamshire County Council ,Other Fees & Services,Debit,68.25,post office counter,04/07/2018,"Children, Families & Cultural Services "
Nottinghamshire County Council ,Provisions,Debit,1.15,co-op group 010671,04/07/2018,"Children, Families & Cultural Services "
Nottinghamshire County Council ,Provisions,Debit,7.85,sainsburys s/mkts,04/07/2018,"Children, Families & Cultural Services "
Nottinghamshire County Council ,Provisions,Debit,4.68,lidl uk  netherfield,04/07/2018,"Children, Families & Cultural Services "
Nottinghamshire County Council ,Activities & Support,Debit,10.58,cinema paradiso,04/07/2018,"Children, Families & Cultural Services "
Nottinghamshire County Council ,Office / General Equipment,Debit,10.39,amazon uk marketplace,04/07/2018,"Children, Families & Cultural Services "
Nottinghamshire County Council ,Provisions,Debit,5.98,tesco stores 2366,04/07/2018,"Children, Families & Cultural Services "
Nottinghamshire County Council ,Provisions,Debit,4.38,co-op group 310059,04/07/2018,"Children, Families & Cultural Services "
Nottinghamshire County Council ,Provisions,Debit,7.58,the market garden,04/07/2018,"Children, Families & Cultural Services "
Nottinghamshire County Council ,Books - General,Debit,146.40,british standards,04/07/2018,Resources
Nottinghamshire County Council ,Training Fees,Debit,145.50,capital hb ltd,04/07/2018,"Adult Social Care, Health & Public Protection "
Nottinghamshire County Council ,Provisions,Debit,7.13,co-op group 017091,04/07/2018,"Children, Families & Cultural Services "
Nottinghamshire County Council ,Provisions,Debit,153.98,amazon svcs eu-uk amazon,04/07/2018,"Adult Social Care, Health & Public Protection "
Nottinghamshire County Council ,Provisions,Debit,19.84,amazon uk marketplace,04/07/2018,"Children, Families & Cultural Services "
Nottinghamshire County Council ,Provisions,Debit,17.75,aldi,04/07/2018,"Adult Social Care, Health & Public Protection "
Nottinghamshire County Council ,Provisions,Debit,18.70,sainsburys s/mkts,04/07/2018,"Children, Families & Cultural Services "
Nottinghamshire County Council ,Unplanned Needs and Financial Support,Debit,7.60,national express limited,04/07/2018,"Children, Families & Cultural Services "
Nottinghamshire County Council ,Leaving Care - Home Establishment Grant,Debit,137.00,asda  stores 4780,04/07/2018,"Children, Families & Cultural Services "
Nottinghamshire County Council ,Legal Fees,Debit,10.00,www.gov.uk,04/07/2018,Resources
Nottinghamshire County Council ,Personal Needs,Debit,300.00,sheeps green,04/07/2018,"Children, Families & Cultural Services "
Nottinghamshire County Council ,Provisions,Debit,4.86,co-op group food,04/07/2018,"Children, Families & Cultural Services "
Nottinghamshire County Council ,Provisions,Debit,104.73,tesco stores 3297,04/07/2018,"Children, Families & Cultural Services "
Nottinghamshire County Council ,Housing/Accommodation Financial Support,Debit,378.00,j e wright home heatin,04/07/2018,"Children, Families & Cultural Services "
Nottinghamshire County Council ,Advertising & Marketing,Debit,53.60,www.ed-edsupport.org.u,04/07/2018,Resources
Nottinghamshire County Council ,Provisions,Debit,11.95,b  m retail,04/07/2018,"Children, Families & Cultural Services "
Nottinghamshire County Council ,Activities & Support,Credi,-0.50,asda groceries online,04/07/2018,"Adult Social Care, Health & Public Protection "
Nottinghamshire County Council ,Activities & Support,Debit,65.92,asda groceries online,04/07/2018,"Adult Social Care, Health & Public Protection "
Nottinghamshire County Council ,Unplanned Needs and Financial Support,Debit,58.44,b  m retail,04/07/2018,"Children, Families & Cultural Services "
Nottinghamshire County Council ,Unplanned Needs and Financial Support,Debit,4.07,mcdonalds,04/07/2018,"Children, Families & Cultural Services "
Nottinghamshire County Council ,Provisions,Debit,6.16,aldi,04/07/2018,"Children, Families & Cultural Services "
Nottinghamshire County Council ,Provisions,Debit,4.74,postoffice selfservice,04/07/2018,"Children, Families & Cultural Services "
Nottinghamshire County Council ,Office / General Equipment,Debit,70.00,national railcard,04/07/2018,"Children, Families & Cultural Services "
Nottinghamshire County Council ,Provisions,Debit,9.58,amazon uk retail,04/07/2018,"Adult Social Care, Health & Public Protection "
Nottinghamshire County Council ,Provisions,Debit,52.02,asda groceries online,04/07/2018,"Adult Social Care, Health & Public Protection "
Nottinghamshire County Council ,Provisions,Debit,13.99,amazon uk retail,04/07/2018,"Adult Social Care, Health & Public Protection "
Nottinghamshire County Council ,Provisions,Debit,4.79,amazon uk retail,04/07/2018,"Adult Social Care, Health & Public Protection "
Nottinghamshire County Council ,Provisions,Debit,9.58,amazon uk retail,04/07/2018,"Adult Social Care, Health & Public Protection "
Nottinghamshire County Council ,Provisions,Debit,2.78,amazon uk marketplace,04/07/2018,"Adult Social Care, Health & Public Protection "
Nottinghamshire County Council ,Provisions,Debit,23.97,amazon uk marketplace,04/07/2018,"Adult Social Care, Health & Public Protection "
Nottinghamshire County Council ,Provisions,Debit,12.42,amazon uk marketplace,04/07/2018,"Adult Social Care, Health & Public Protection "
Nottinghamshire County Council ,Provisions,Debit,6.89,amazon uk marketplace,04/07/2018,"Adult Social Care, Health & Public Protection "
Nottinghamshire County Council ,Provisions,Debit,6.09,amazon uk marketplace,04/07/2018,"Adult Social Care, Health & Public Protection "
Nottinghamshire County Council ,Provisions,Debit,4.83,amazon uk marketplace,04/07/2018,"Adult Social Care, Health & Public Protection "
Nottinghamshire County Council ,Provisions,Debit,13.99,amazon uk retail,04/07/2018,"Adult Social Care, Health & Public Protection "
Nottinghamshire County Council ,Provisions,Debit,10.50,amazon uk marketplace,04/07/2018,"Adult Social Care, Health & Public Protection "
Nottinghamshire County Council ,Provisions,Debit,101.62,wm morrison food.com,04/07/2018,"Adult Social Care, Health & Public Protection "
Nottinghamshire County Council ,Provisions,Debit,1.67,amazon svcs eu-uk amazon,04/07/2018,"Adult Social Care, Health & Public Protection "
Nottinghamshire County Council ,Provisions,Debit,2.57,amazon svcs eu-uk amazon,04/07/2018,"Adult Social Care, Health & Public Protection "
Nottinghamshire County Council ,Provisions,Debit,73.71,js online grocery,04/07/2018,"Children, Families & Cultural Services "
Nottinghamshire County Council ,Minor Works,Debit,15.88,wm eyre and sons,04/07/2018,"Children, Families & Cultural Services "
Nottinghamshire County Council ,Provisions,Debit,16.20,iceland,04/07/2018,Place
Nottinghamshire County Council ,Activities & Support,Debit,4.68,wm morrison store,04/07/2018,"Children, Families & Cultural Services "
Nottinghamshire County Council ,Provisions,Debit,4.01,co-op group 010811,04/07/2018,"Children, Families & Cultural Services "
Nottinghamshire County Council ,Provisions,Debit,13.10,tesco stores 5329,04/07/2018,"Children, Families & Cultural Services "
Nottinghamshire County Council ,Provisions,Debit,16.25,co-op group 065071,04/07/2018,"Children, Families & Cultural Services "
Nottinghamshire County Council ,Office / General Equipment,Credi,-25.98,wickes mansfield,04/07/2018,"Adult Social Care, Health & Public Protection "
Nottinghamshire County Council ,Other Fees & Services,Debit,30.00,www.trentbarton.co.uk,04/07/2018,"Children, Families & Cultural Services "
Nottinghamshire County Council ,Other Fees & Services,Debit,33.00,www.trentbarton.co.uk,04/07/2018,"Children, Families & Cultural Services "
Nottinghamshire County Council ,Cleaning Materials,Debit,101.20,tesco stores 5379,04/07/2018,"Children, Families & Cultural Services "
Nottinghamshire County Council ,Personal Needs,Debit,15.48,amazon uk marketplace,04/07/2018,"Children, Families & Cultural Services "
Nottinghamshire County Council ,Other Public Transport,Debit,3.00,newark  sherwood d.c.,04/07/2018,"Children, Families & Cultural Services "
Nottinghamshire County Council ,Gardening Equipment,Debit,144.97,amazon uk marketplace,04/07/2018,"Adult Social Care, Health & Public Protection "
Nottinghamshire County Council ,Advertising & Marketing,Debit,500.00,google  adws6019404425,04/07/2018,Resources
Nottinghamshire County Council ,Provisions,Debit,13.98,amazon uk marketplace,04/07/2018,"Children, Families & Cultural Services "
Nottinghamshire County Council ,Provisions,Debit,44.99,amazon uk marketplace,04/07/2018,"Children, Families & Cultural Services "
Nottinghamshire County Council ,Provisions,Debit,12.09,tesco stores 2995,04/07/2018,"Children, Families & Cultural Services "
Nottinghamshire County Council ,Activities & Support,Debit,49.46,wm morrison store,04/07/2018,"Adult Social Care, Health & Public Protection "
Nottinghamshire County Council ,Unplanned Needs and Financial Support,Debit,3.00,ncp limited,04/07/2018,"Children, Families & Cultural Services "
Nottinghamshire County Council ,Unplanned Needs and Financial Support,Debit,18.80,strays coffee newark,04/07/2018,"Children, Families & Cultural Services "
Nottinghamshire County Council ,Provisions,Debit,34.98,currys-worksop 2369,05/07/2018,"Children, Families & Cultural Services "
Nottinghamshire County Council ,Stationery,Debit,22.32,www.tcardsdirect.com,05/07/2018,"Adult Social Care, Health & Public Protection "
Nottinghamshire County Council ,Activities & Support,Debit,8.70,aldi 98 779,05/07/2018,"Children, Families & Cultural Services "
Nottinghamshire County Council ,Provisions,Debit,8.04,tesco stores 5877,05/07/2018,"Children, Families & Cultural Services "
Nottinghamshire County Council ,Provisions,Debit,7.21,tesco store 3439,05/07/2018,"Children, Families & Cultural Services "
Nottinghamshire County Council ,Provisions,Debit,3.20,asda stores 4517,05/07/2018,"Children, Families & Cultural Services "
Nottinghamshire County Council ,Provisions,Debit,4.00,original factory s,05/07/2018,"Children, Families & Cultural Services "
Nottinghamshire County Council ,Minor Works,Debit,3.65,tesco stores 5359,05/07/2018,"Children, Families & Cultural Services "
Nottinghamshire County Council ,Unplanned Needs and Financial Support,Debit,10.80,lowmoor chemist,05/07/2018,"Children, Families & Cultural Services "
Nottinghamshire County Council ,Other Fees & Services,Debit,119.00,argos retail group,05/07/2018,"Children, Families & Cultural Services "
Nottinghamshire County Council ,Provisions,Debit,41.96,sainsburys smkt,05/07/2018,"Children, Families & Cultural Services "
Nottinghamshire County Council ,Teaching Equipment,Debit,5.64,amazon uk marketplace,05/07/2018,"Children, Families & Cultural Services "
Nottinghamshire County Council ,Legal Fees,Debit,3.00,land registry,05/07/2018,Resources
Nottinghamshire County Council ,Legal Fees,Debit,60.00,www.moneyclaim.gov,05/07/2018,Resources
Nottinghamshire County Council ,Other Fees & Services,Debit,136.50,post office counter,05/07/2018,"Children, Families & Cultural Services "
Nottinghamshire County Council ,Other Fees & Services,Debit,17.85,bcc register offic,05/07/2018,"Children, Families & Cultural Services "
Nottinghamshire County Council ,Other Fees & Services,Debit,94.75,post office counter,05/07/2018,"Children, Families & Cultural Services "
Nottinghamshire County Council ,Legal Fees,Debit,26.78,amazon uk retail,05/07/2018,Resources
Nottinghamshire County Council ,Minor Works,Debit,1.93,amazon uk marketplace,05/07/2018,"Children, Families & Cultural Services "
Nottinghamshire County Council ,Minor Works,Debit,29.00,amazon uk marketplace,05/07/2018,"Children, Families & Cultural Services "
Nottinghamshire County Council ,Cleaning Materials,Debit,24.00,amazon uk marketplace,05/07/2018,"Adult Social Care, Health & Public Protection "
Nottinghamshire County Council ,Office / General Equipment,Debit,10.24,amazon eu amazon.co.uk,05/07/2018,"Children, Families & Cultural Services "
Nottinghamshire County Council ,Office / General Equipment,Debit,57.94,stowagricultural,05/07/2018,"Children, Families & Cultural Services "
Nottinghamshire County Council ,Office / General Equipment,Debit,5.94,amazon svcs eu-uk amazon,05/07/2018,"Children, Families & Cultural Services "
Nottinghamshire County Council ,Provisions,Debit,10.10,tesco stores 5329,05/07/2018,"Children, Families & Cultural Services "
Nottinghamshire County Council ,Provisions,Debit,158.02,asda stores,05/07/2018,"Children, Families & Cultural Services "
Nottinghamshire County Council ,Provisions,Debit,39.87,bm retail,05/07/2018,"Children, Families & Cultural Services "
Nottinghamshire County Council ,Provisions,Debit,7.64,churchill drive,05/07/2018,"Children, Families & Cultural Services "
Nottinghamshire County Council ,Personal Needs,Debit,3.50,south forest leisure c,05/07/2018,"Children, Families & Cultural Services "
Nottinghamshire County Council ,Cleaning Materials,Debit,4.30,tesco stores 2995,05/07/2018,"Children, Families & Cultural Services "
Nottinghamshire County Council ,Provisions,Debit,58.79,aldi 39 779,05/07/2018,"Children, Families & Cultural Services "
Nottinghamshire County Council ,Provisions,Debit,6.48,mcdonalds,05/07/2018,"Children, Families & Cultural Services "
Nottinghamshire County Council ,Personal Needs,Debit,8.00,tesco stores 2995,05/07/2018,"Children, Families & Cultural Services "
Nottinghamshire County Council ,Office / General Equipment,Debit,6.97,mcdonalds,05/07/2018,"Children, Families & Cultural Services "
Nottinghamshire County Council ,Office / General Equipment,Debit,71.76,www.medesign.co.uk,05/07/2018,"Children, Families & Cultural Services "
Nottinghamshire County Council ,Minor Works,Debit,45.98,screwfix direct,05/07/2018,"Children, Families & Cultural Services "
Nottinghamshire County Council ,Fixtures & Fittings,Debit,24.90,arnold bathroom and heat,05/07/2018,"Adult Social Care, Health & Public Protection "
Nottinghamshire County Council ,Provisions,Debit,3.00,farmfoods- woodhou,05/07/2018,"Children, Families & Cultural Services "
Nottinghamshire County Council ,Subsistence Allowance,Debit,98.00,hampton by hilton,05/07/2018,Resources
Nottinghamshire County Council ,Provisions,Debit,28.74,booker limited nottingha,05/07/2018,"Children, Families & Cultural Services "
Nottinghamshire County Council ,Provisions,Debit,21.00,tesco stores 2702,05/07/2018,"Children, Families & Cultural Services "
Nottinghamshire County Council ,Unplanned Needs and Financial Support,Debit,150.50,tvlicensing.co.uk,05/07/2018,"Children, Families & Cultural Services "
Nottinghamshire County Council ,Minor Works,Debit,29.44,tesco stores 3181,05/07/2018,"Children, Families & Cultural Services "
Nottinghamshire County Council ,Provisions,Debit,3.15,tesco stores 2995,05/07/2018,"Children, Families & Cultural Services "
Nottinghamshire County Council ,Leaving Care - Home Establishment Grant,Debit,11.19,asda store ston in as,05/07/2018,"Children, Families & Cultural Services "
Nottinghamshire County Council ,Leaving Care - Home Establishment Grant,Debit,10.00,giffgaff,05/07/2018,"Children, Families & Cultural Services "
Nottinghamshire County Council ,Provisions,Debit,42.12,tesco stores 2995,05/07/2018,"Children, Families & Cultural Services "
Nottinghamshire County Council ,Staff Training,Credi,-136.56,eb  leading edge child,05/07/2018,"Children, Families & Cultural Services "
Nottinghamshire County Council ,Provisions,Debit,2.00,tesco pfs 5538,05/07/2018,"Children, Families & Cultural Services "
Nottinghamshire County Council ,Clothing/Shoes/Uniforms,Debit,18.00,tesco stores 5437,05/07/2018,"Children, Families & Cultural Services "
Nottinghamshire County Council ,Activities & Support,Debit,215.00,bhatia best,05/07/2018,Resources
Nottinghamshire County Council ,Provisions,Debit,7.96,farmfoods- baldert,05/07/2018,"Children, Families & Cultural Services "
Nottinghamshire County Council ,Provisions,Debit,27.96,farmfoods- baldert,05/07/2018,"Children, Families & Cultural Services "
Nottinghamshire County Council ,Activities & Support,Debit,10.46,amazon uk marketplace,05/07/2018,"Adult Social Care, Health & Public Protection "
Nottinghamshire County Council ,Provisions,Debit,165.35,booker limited mansfield,05/07/2018,"Children, Families & Cultural Services "
Nottinghamshire County Council ,Provisions,Debit,11.80,co-op group 011261,05/07/2018,"Children, Families & Cultural Services "
Nottinghamshire County Council ,Taxi Fares,Debit,234.00,pinnacle chauffeur tra,05/07/2018,"Children, Families & Cultural Services "
Nottinghamshire County Council ,Leaving Care - Home Establishment Grant,Debit,150.50,tvlicensing.co.uk,05/07/2018,"Children, Families & Cultural Services "
Nottinghamshire County Council ,Provisions,Debit,8.32,amazon uk marketplace,05/07/2018,"Adult Social Care, Health & Public Protection "
Nottinghamshire County Council ,Provisions,Debit,5.84,amazon uk marketplace,05/07/2018,"Adult Social Care, Health & Public Protection "
Nottinghamshire County Council ,Provisions,Credi,-0.65,asda groceries online,05/07/2018,"Adult Social Care, Health & Public Protection "
Nottinghamshire County Council ,Provisions,Debit,122.49,asda groceries online,05/07/2018,"Adult Social Care, Health & Public Protection "
Nottinghamshire County Council ,Provisions,Debit,6.62,misterton foodstre,05/07/2018,"Children, Families & Cultural Services "
Nottinghamshire County Council ,Office / General Equipment,Debit,35.99,amazon uk marketplace,05/07/2018,"Children, Families & Cultural Services "
Nottinghamshire County Council ,Provisions,Debit,8.44,amazon eu amazon.co.uk,05/07/2018,"Children, Families & Cultural Services "
Nottinghamshire County Council ,Provisions,Debit,5.49,amazon svcs eu-uk amazon,05/07/2018,"Children, Families & Cultural Services "
Nottinghamshire County Council ,Office / General Equipment,Debit,14.00,tfl road charge,05/07/2018,"Children, Families & Cultural Services "
Nottinghamshire County Council ,Office / General Equipment,Debit,9.45,amazon uk retail,05/07/2018,"Children, Families & Cultural Services "
Nottinghamshire County Council ,Provisions,Debit,13.29,tesco stores 2702,05/07/2018,"Children, Families & Cultural Services "
Nottinghamshire County Council ,Provisions,Debit,2.29,premier k j convenienc,05/07/2018,"Children, Families & Cultural Services "
Nottinghamshire County Council ,Provisions,Debit,245.87,bookerecomm,05/07/2018,Place
Nottinghamshire County Council ,Personal Needs,Debit,16.14,amazon uk marketplace,05/07/2018,"Children, Families & Cultural Services "
Nottinghamshire County Council ,Personal Needs,Debit,27.52,amazon uk marketplace,05/07/2018,"Children, Families & Cultural Services "
Nottinghamshire County Council ,Personal Needs,Debit,4.66,amazon uk marketplace,05/07/2018,"Children, Families & Cultural Services "
Nottinghamshire County Council ,Personal Needs,Debit,16.59,amazon uk marketplace,05/07/2018,"Children, Families & Cultural Services "
Nottinghamshire County Council ,Other Public Transport,Debit,3.50,upt - nottinghamcity cou,05/07/2018,"Children, Families & Cultural Services "
Nottinghamshire County Council ,Clothing/Shoes/Uniforms,Debit,33.00,j d sports 621,05/07/2018,"Children, Families & Cultural Services "
Nottinghamshire County Council ,Unplanned Needs and Financial Support,Debit,34.00,dvla driver online,05/07/2018,"Children, Families & Cultural Services "
Nottinghamshire County Council ,Unplanned Needs and Financial Support,Debit,5.85,costa bulwell,05/07/2018,"Children, Families & Cultural Services "
Nottinghamshire County Council ,Unplanned Needs and Financial Support,Debit,3.99,exelby services lt,05/07/2018,"Children, Families & Cultural Services "
Nottinghamshire County Council ,Provisions,Debit,88.21,booker limited mansfield,05/07/2018,"Adult Social Care, Health & Public Protection "
Nottinghamshire County Council ,Provisions,Debit,139.99,currys,05/07/2018,"Children, Families & Cultural Services "
Nottinghamshire County Council ,Provisions,Debit,4.46,tesco stores 5437,05/07/2018,"Children, Families & Cultural Services "
Nottinghamshire County Council ,Personal Needs,Debit,8.25,children service,05/07/2018,"Children, Families & Cultural Services "
Nottinghamshire County Council ,Unplanned Needs and Financial Support,Debit,189.56,paypal  beds.co.uk,05/07/2018,"Children, Families & Cultural Services "
Nottinghamshire County Council ,Unplanned Needs and Financial Support,Debit,582.92,www.argos.co.uk,05/07/2018,"Children, Families & Cultural Services "
Nottinghamshire County Council ,Activities & Support,Debit,7.99,the range,06/07/2018,"Children, Families & Cultural Services "
Nottinghamshire County Council ,Activities & Support,Debit,10.02,aldi,06/07/2018,"Children, Families & Cultural Services "
Nottinghamshire County Council ,Personal Needs,Debit,53.49,amazon uk marketplace,06/07/2018,"Children, Families & Cultural Services "
Nottinghamshire County Council ,Cleaning & Domestic Equipment,Debit,12.68,amazon uk marketplace,06/07/2018,"Children, Families & Cultural Services "
Nottinghamshire County Council ,Cleaning Materials,Debit,13.98,amazon uk marketplace,06/07/2018,"Children, Families & Cultural Services "
Nottinghamshire County Council ,Cleaning & Domestic Equipment,Debit,120.00,dunelm online order,06/07/2018,"Children, Families & Cultural Services "
Nottinghamshire County Council ,Personal Needs,Debit,16.49,amazon uk retail,06/07/2018,"Children, Families & Cultural Services "
Nottinghamshire County Council ,Personal Needs,Debit,59.96,amazon uk marketplace,06/07/2018,"Children, Families & Cultural Services "
Nottinghamshire County Council ,Teaching Equipment,Debit,5.48,amazon uk marketplace,06/07/2018,"Children, Families & Cultural Services "
Nottinghamshire County Council ,Provisions,Debit,112.38,w m morrisons.com,06/07/2018,"Adult Social Care, Health & Public Protection "
Nottinghamshire County Council ,Cleaning Materials,Debit,7.70,w m morrisons.com,06/07/2018,"Adult Social Care, Health & Public Protection "
Nottinghamshire County Council ,Unplanned Needs and Financial Support,Debit,11.18,mcdonalds,06/07/2018,"Children, Families & Cultural Services "
Nottinghamshire County Council ,Unplanned Needs and Financial Support,Debit,9.58,spar welland rd,06/07/2018,"Children, Families & Cultural Services "
Nottinghamshire County Council ,Other Fees & Services,Debit,109.00,www.argos.co.uk,06/07/2018,"Children, Families & Cultural Services "
Nottinghamshire County Council ,Provisions,Debit,3.70,asda superstore,06/07/2018,"Children, Families & Cultural Services "
Nottinghamshire County Council ,Teaching Equipment,Debit,14.99,amazon uk marketplace,06/07/2018,"Children, Families & Cultural Services "
Nottinghamshire County Council ,Minor Works,Debit,255.00,amazon uk marketplace,06/07/2018,"Children, Families & Cultural Services "
Nottinghamshire County Council ,Office / General Equipment,Debit,87.00,amazon uk marketplace,06/07/2018,"Children, Families & Cultural Services "
Nottinghamshire County Council ,Office / General Equipment,Debit,79.50,amazon uk marketplace,06/07/2018,"Children, Families & Cultural Services "
Nottinghamshire County Council ,Provisions,Debit,10.12,lidl uk  sutton in ash,06/07/2018,"Children, Families & Cultural Services "
Nottinghamshire County Council ,Office / General Equipment,Debit,7.00,wilko retail limit,06/07/2018,"Children, Families & Cultural Services "
Nottinghamshire County Council ,Clothing/Shoes/Uniforms,Debit,47.00,j d sports 621,06/07/2018,"Children, Families & Cultural Services "
Nottinghamshire County Council ,Minor Works,Debit,62.49,amazon eu amazon.co.uk,06/07/2018,"Children, Families & Cultural Services "
Nottinghamshire County Council ,Provisions,Debit,150.50,tv licensing,06/07/2018,"Children, Families & Cultural Services "
Nottinghamshire County Council ,Provisions,Debit,11.51,co-op group 011261,06/07/2018,"Children, Families & Cultural Services "
Nottinghamshire County Council ,Cleaning Materials,Debit,81.04,jangro (leicester) ltd,06/07/2018,"Adult Social Care, Health & Public Protection "
Nottinghamshire County Council ,Provisions,Debit,7.50,sainsburys smkt,06/07/2018,"Adult Social Care, Health & Public Protection "
Nottinghamshire County Council ,Provisions,Debit,3.99,poundstretcher 669,06/07/2018,"Children, Families & Cultural Services "
Nottinghamshire County Council ,Personal Needs,Debit,27.99,bm retail,06/07/2018,"Children, Families & Cultural Services "
Nottinghamshire County Council ,Vehicles Repairs & Maintenance,Debit,10.00,rrd automotive,06/07/2018,"Children, Families & Cultural Services "
Nottinghamshire County Council ,Provisions,Debit,17.56,farmfoods- carlton,06/07/2018,"Children, Families & Cultural Services "
Nottinghamshire County Council ,Provisions,Debit,8.51,aldi 28 779,06/07/2018,"Children, Families & Cultural Services "
Nottinghamshire County Council ,Provisions,Debit,50.35,aldi 74 779,06/07/2018,"Children, Families & Cultural Services "
Nottinghamshire County Council ,Activities & Support,Debit,59.68,tesco stores 2995,06/07/2018,"Adult Social Care, Health & Public Protection "
Nottinghamshire County Council ,Staff Training,Debit,104.94,eb  leading edge child,06/07/2018,"Children, Families & Cultural Services "
Nottinghamshire County Council ,Leaving Care - Home Establishment Grant,Debit,8.50,co-op group 310066,06/07/2018,"Children, Families & Cultural Services "
Nottinghamshire County Council ,Provisions,Debit,6.15,sainsburys s/mkts,06/07/2018,"Children, Families & Cultural Services "
Nottinghamshire County Council ,Provisions,Debit,49.18,aldi 39 779,06/07/2018,"Children, Families & Cultural Services "
Nottinghamshire County Council ,Personal Needs,Debit,12.00,sainsburys s/mkts,06/07/2018,"Children, Families & Cultural Services "
Nottinghamshire County Council ,Unplanned Needs and Financial Support,Debit,1.20,asda stores 4474,06/07/2018,"Children, Families & Cultural Services "
Nottinghamshire County Council ,Provisions,Debit,7.70,tesco stores 5437,06/07/2018,"Children, Families & Cultural Services "
Nottinghamshire County Council ,Provisions,Debit,6.56,amazon uk marketplace,06/07/2018,"Children, Families & Cultural Services "
Nottinghamshire County Council ,Provisions,Debit,16.45,tesco stores 5437,06/07/2018,"Children, Families & Cultural Services "
Nottinghamshire County Council ,Provisions,Debit,30.96,amazon uk marketplace,06/07/2018,"Children, Families & Cultural Services "
Nottinghamshire County Council ,Provisions,Debit,35.00,rm subscription,06/07/2018,"Adult Social Care, Health & Public Protection "
Nottinghamshire County Council ,Provisions,Debit,7.89,tesco stores 5437,06/07/2018,"Children, Families & Cultural Services "
Nottinghamshire County Council ,Provisions,Debit,4.48,co-op group 065071,06/07/2018,"Children, Families & Cultural Services "
Nottinghamshire County Council ,Minor Works,Debit,5.00,mandale camp site,06/07/2018,"Children, Families & Cultural Services "
Nottinghamshire County Council ,Provisions,Debit,32.97,amazon svcs eu-uk amazon,06/07/2018,"Children, Families & Cultural Services "
Nottinghamshire County Council ,Provisions,Debit,9.99,amazon svcs eu-uk amazon,06/07/2018,"Children, Families & Cultural Services "
Nottinghamshire County Council ,Provisions,Debit,80.00,amazon uk marketplace,06/07/2018,"Children, Families & Cultural Services "
Nottinghamshire County Council ,Provisions,Debit,30.06,aldi,06/07/2018,"Adult Social Care, Health & Public Protection "
Nottinghamshire County Council ,Activities & Support,Debit,6.42,wm morrison store,06/07/2018,"Children, Families & Cultural Services "
Nottinghamshire County Council ,Provisions,Debit,56.42,lidl uk nottingham,06/07/2018,"Children, Families & Cultural Services "
Nottinghamshire County Council ,Provisions,Debit,4.25,lidl uk nottingham,06/07/2018,"Children, Families & Cultural Services "
Nottinghamshire County Council ,Office / General Equipment,Debit,8.97,home bargains doncaste,06/07/2018,"Adult Social Care, Health & Public Protection "
Nottinghamshire County Council ,Other Fees & Services,Debit,12.99,argos retail group,06/07/2018,"Children, Families & Cultural Services "
Nottinghamshire County Council ,Personal Needs,Debit,80.00,www.tradesports.co.uk,06/07/2018,"Children, Families & Cultural Services "
Nottinghamshire County Council ,Personal Needs,Debit,4.63,amazon uk marketplace,06/07/2018,"Children, Families & Cultural Services "
Nottinghamshire County Council ,Personal Needs,Debit,5.78,amazon uk marketplace,06/07/2018,"Children, Families & Cultural Services "
Nottinghamshire County Council ,Personal Needs,Debit,9.40,amazon uk marketplace,06/07/2018,"Children, Families & Cultural Services "
Nottinghamshire County Council ,Personal Needs,Debit,10.57,amazon uk marketplace,06/07/2018,"Children, Families & Cultural Services "
Nottinghamshire County Council ,Office / General Equipment,Debit,13.96,amazon uk marketplace,06/07/2018,"Adult Social Care, Health & Public Protection "
Nottinghamshire County Council ,First Aid Equipment Purchases,Debit,10.70,amazon uk marketplace,06/07/2018,"Adult Social Care, Health & Public Protection "
Nottinghamshire County Council ,Leaving Care - Home Establishment Grant,Debit,45.09,asda superstore 04261,06/07/2018,"Children, Families & Cultural Services "
Nottinghamshire County Council ,Fuel - Petrol,Debit,35.51,tesco pay at pump 3860,06/07/2018,"Children, Families & Cultural Services "
Nottinghamshire County Council ,Unplanned Needs and Financial Support,Debit,17.35,asda superstore 04261,06/07/2018,"Children, Families & Cultural Services "
Nottinghamshire County Council ,Aids & Appliances,Debit,8.85,amazon uk marketplace,07/07/2018,"Children, Families & Cultural Services "
Nottinghamshire County Council ,Minor Works,Debit,28.44,frank key (notts) ltd,07/07/2018,"Children, Families & Cultural Services "
Nottinghamshire County Council ,Personal Needs,Debit,4.00,wm morrisons plc,07/07/2018,"Children, Families & Cultural Services "
Nottinghamshire County Council ,Personal Needs,Debit,18.00,sainsburys s/mkts,07/07/2018,"Children, Families & Cultural Services "
Nottinghamshire County Council ,Personal Needs,Debit,4.50,sainsburys s/mkts,07/07/2018,"Children, Families & Cultural Services "
Nottinghamshire County Council ,Activities & Support,Debit,189.58,asda groceries online,07/07/2018,"Adult Social Care, Health & Public Protection "
Nottinghamshire County Council ,Office / General Equipment,Debit,29.27,amazon uk retail,07/07/2018,"Children, Families & Cultural Services "
Nottinghamshire County Council ,Office / General Equipment,Debit,28.99,amazon uk retail,07/07/2018,"Children, Families & Cultural Services "
Nottinghamshire County Council ,Provisions,Debit,16.96,b  m retail,07/07/2018,"Children, Families & Cultural Services "
Nottinghamshire County Council ,Personal Needs,Debit,15.23,b  m retail,07/07/2018,"Children, Families & Cultural Services "
Nottinghamshire County Council ,Fixtures & Fittings,Debit,66.95,b  m retail,07/07/2018,"Children, Families & Cultural Services "
Nottinghamshire County Council ,Activities & Support,Debit,25.98,amazon uk marketplace,07/07/2018,Resources
Nottinghamshire County Council ,Activities & Support,Debit,7.50,amazon uk marketplace,07/07/2018,Resources
Nottinghamshire County Council ,Activities & Support,Debit,14.99,amazon uk marketplace,07/07/2018,Resources
Nottinghamshire County Council ,Provisions,Debit,27.19,tesco stores 2995,07/07/2018,"Children, Families & Cultural Services "
Nottinghamshire County Council ,Activities & Support,Debit,6.00,tesco stores 5379,07/07/2018,"Children, Families & Cultural Services "
Nottinghamshire County Council ,Activities & Support,Debit,16.20,tesco stores 5379,07/07/2018,"Children, Families & Cultural Services "
Nottinghamshire County Council ,Provisions,Debit,45.95,js online grocery,07/07/2018,"Children, Families & Cultural Services "
Nottinghamshire County Council ,Provisions,Debit,52.61,aldi 65 779,07/07/2018,"Children, Families & Cultural Services "
Nottinghamshire County Council ,Personal Needs,Debit,35.99,amazon uk marketplace,07/07/2018,"Children, Families & Cultural Services "
Nottinghamshire County Council ,Provisions,Debit,2.69,b  m retail,07/07/2018,"Children, Families & Cultural Services "
Nottinghamshire County Council ,Personal Needs,Debit,32.06,b  m retail,07/07/2018,"Children, Families & Cultural Services "
Nottinghamshire County Council ,Provisions,Debit,6.00,tesco stores 2995,07/07/2018,"Children, Families & Cultural Services "
Nottinghamshire County Council ,Unplanned Needs and Financial Support,Debit,10.00,asda superstore 04261,07/07/2018,"Children, Families & Cultural Services "
Nottinghamshire County Council ,Teaching Equipment,Debit,10.65,amazon uk retail,08/07/2018,"Children, Families & Cultural Services "
Nottinghamshire County Council ,Teaching Equipment,Debit,2.99,b  q 1352,08/07/2018,"Children, Families & Cultural Services "
Nottinghamshire County Council ,Teaching Equipment,Debit,2.99,b  q 1352,08/07/2018,"Children, Families & Cultural Services "
Nottinghamshire County Council ,Provisions,Credi,-1.71,w m morrisons.com,08/07/2018,"Adult Social Care, Health & Public Protection "
Nottinghamshire County Council ,Activities & Support,Debit,55.95,w m morrisons.com,08/07/2018,"Adult Social Care, Health & Public Protection "
Nottinghamshire County Council ,Minor Works,Debit,23.98,amazon uk marketplace,08/07/2018,"Children, Families & Cultural Services "
Nottinghamshire County Council ,Minor Works,Debit,132.48,amazon eu amazon.co.uk,08/07/2018,"Children, Families & Cultural Services "
Nottinghamshire County Council ,Activities & Support,Debit,41.46,amazon uk marketplace,08/07/2018,Resources
Nottinghamshire County Council ,Provisions,Debit,22.44,amazon uk marketplace,08/07/2018,"Children, Families & Cultural Services "
Nottinghamshire County Council ,Provisions,Debit,13.80,w m morrison,08/07/2018,"Children, Families & Cultural Services "
Nottinghamshire County Council ,Provisions,Debit,4.00,the works,08/07/2018,"Children, Families & Cultural Services "
Nottinghamshire County Council ,Personal Needs,Debit,60.00,amazon uk marketplace,08/07/2018,"Children, Families & Cultural Services "
Nottinghamshire County Council ,Personal Needs,Debit,56.00,amazon uk marketplace,08/07/2018,"Children, Families & Cultural Services "
Nottinghamshire County Council ,Activities & Support,Debit,121.50,max spielmann ltd,09/07/2018,"Children, Families & Cultural Services "
Nottinghamshire County Council ,Provisions,Debit,10.49,tesco stores-3439,09/07/2018,"Children, Families & Cultural Services "
Nottinghamshire County Council ,Provisions,Debit,7.90,poundworld retail,09/07/2018,"Children, Families & Cultural Services "
Nottinghamshire County Council ,Provisions,Debit,104.63,w m morrisons.com,09/07/2018,"Adult Social Care, Health & Public Protection "
Nottinghamshire County Council ,Provisions,Debit,8.00,w m morrisons.com,09/07/2018,"Adult Social Care, Health & Public Protection "
Nottinghamshire County Council ,Unplanned Needs and Financial Support,Debit,42.98,wm morrison 048,09/07/2018,"Children, Families & Cultural Services "
Nottinghamshire County Council ,Provisions,Debit,115.52,aldi 65 779,09/07/2018,"Children, Families & Cultural Services "
Nottinghamshire County Council ,Office / General Equipment,Debit,2.20,tesco stores 5437,09/07/2018,"Adult Social Care, Health & Public Protection "
Nottinghamshire County Council ,Office / General Equipment,Debit,59.98,argos retail group,09/07/2018,Place
Nottinghamshire County Council ,Provisions,Debit,11.51,asda stores,09/07/2018,"Children, Families & Cultural Services "
Nottinghamshire County Council ,Office / General Equipment,Debit,159.50,amazon uk marketplace,09/07/2018,Place
Nottinghamshire County Council ,Provisions,Debit,7.18,bowbridge road gro,09/07/2018,"Children, Families & Cultural Services "
Nottinghamshire County Council ,Provisions,Debit,72.49,amazon uk marketplace,09/07/2018,"Adult Social Care, Health & Public Protection "
Nottinghamshire County Council ,Office / General Equipment,Debit,40.60,sainsburys s/mkts,09/07/2018,"Children, Families & Cultural Services "
Nottinghamshire County Council ,Office / General Equipment,Debit,4.47,amazon uk marketplace,09/07/2018,"Children, Families & Cultural Services "
Nottinghamshire County Council ,Housing/Accommodation Financial Support,Debit,62.35,bassetlaw,09/07/2018,"Children, Families & Cultural Services "
Nottinghamshire County Council ,Leaving Care - Home Establishment Grant,Debit,195.00,british heart foundati,09/07/2018,"Children, Families & Cultural Services "
Nottinghamshire County Council ,Personal Needs,Debit,26.24,lw spare,09/07/2018,"Adult Social Care, Health & Public Protection "
Nottinghamshire County Council ,Provisions,Debit,108.54,booker limited mansfield,09/07/2018,"Children, Families & Cultural Services "
Nottinghamshire County Council ,Provisions,Debit,127.46,booker limited mansfield,09/07/2018,"Children, Families & Cultural Services "
Nottinghamshire County Council ,Personal Needs,Debit,150.50,tvlicensing.co.uk,09/07/2018,"Children, Families & Cultural Services "
Nottinghamshire County Council ,Provisions,Debit,28.99,farmfoods- carlton,09/07/2018,"Children, Families & Cultural Services "
Nottinghamshire County Council ,Activities & Support,Debit,3.17,amazon uk marketplace,09/07/2018,"Adult Social Care, Health & Public Protection "
Nottinghamshire County Council ,Activities & Support,Debit,8.42,amazon uk marketplace,09/07/2018,"Adult Social Care, Health & Public Protection "
Nottinghamshire County Council ,Activities & Support,Debit,9.01,amazon uk marketplace,09/07/2018,"Adult Social Care, Health & Public Protection "
Nottinghamshire County Council ,Activities & Support,Debit,3.39,amazon uk marketplace,09/07/2018,"Adult Social Care, Health & Public Protection "
Nottinghamshire County Council ,Personal Needs,Debit,68.94,amazon uk marketplace,09/07/2018,"Adult Social Care, Health & Public Protection "
Nottinghamshire County Council ,Activities & Support,Debit,26.54,amazon uk marketplace,09/07/2018,"Adult Social Care, Health & Public Protection "
Nottinghamshire County Council ,Activities & Support,Debit,12.99,amazon uk marketplace,09/07/2018,"Adult Social Care, Health & Public Protection "
Nottinghamshire County Council ,Activities & Support,Debit,13.24,amazon uk marketplace,09/07/2018,"Adult Social Care, Health & Public Protection "
Nottinghamshire County Council ,Provisions,Debit,17.70,aldi 28 779,09/07/2018,"Children, Families & Cultural Services "
Nottinghamshire County Council ,Provisions,Debit,15.76,farmfoods- worksop,09/07/2018,"Children, Families & Cultural Services "
Nottinghamshire County Council ,Minor Works,Debit,13.86,amazon uk marketplace,09/07/2018,"Children, Families & Cultural Services "
Nottinghamshire County Council ,Minor Works,Debit,36.47,amazon uk marketplace,09/07/2018,"Children, Families & Cultural Services "
Nottinghamshire County Council ,Minor Works,Debit,68.61,tesco stores 3378,09/07/2018,"Children, Families & Cultural Services "
Nottinghamshire County Council ,Legal Fees,Debit,10.00,www.gov.uk,09/07/2018,Resources
Nottinghamshire County Council ,Provisions,Debit,72.06,tesco store 3439,09/07/2018,"Children, Families & Cultural Services "
Nottinghamshire County Council ,Provisions,Debit,52.58,tesco store 3439,09/07/2018,"Children, Families & Cultural Services "
Nottinghamshire County Council ,Office / General Equipment,Debit,120.00,www.aleretoxicology.co.u,09/07/2018,"Children, Families & Cultural Services "
Nottinghamshire County Council ,Office / General Equipment,Debit,117.32,asda george com leeds,09/07/2018,"Children, Families & Cultural Services "
Nottinghamshire County Council ,Provisions,Debit,5.30,sainsburys s/mkts,09/07/2018,"Children, Families & Cultural Services "
Nottinghamshire County Council ,Unplanned Needs and Financial Support,Debit,231.11,asda groceries online,09/07/2018,"Children, Families & Cultural Services "
Nottinghamshire County Council ,Fixtures & Fittings,Debit,29.98,tesco stores 5379,09/07/2018,"Children, Families & Cultural Services "
Nottinghamshire County Council ,Personal Needs,Debit,29.98,tesco stores 5379,09/07/2018,"Children, Families & Cultural Services "
Nottinghamshire County Council ,Cleaning Materials,Debit,24.99,b  m retail,09/07/2018,"Children, Families & Cultural Services "
Nottinghamshire County Council ,Provisions,Debit,12.90,w m morrison,09/07/2018,"Children, Families & Cultural Services "
Nottinghamshire County Council ,Provisions,Debit,20.19,tesco stores 2702,09/07/2018,"Children, Families & Cultural Services "
Nottinghamshire County Council ,Provisions,Debit,108.58,asda groceries online,09/07/2018,"Adult Social Care, Health & Public Protection "
Nottinghamshire County Council ,Provisions,Credi,-1.50,asda groceries online,09/07/2018,"Adult Social Care, Health & Public Protection "
Nottinghamshire County Council ,Provisions,Debit,1.52,co-op group 065071,09/07/2018,"Children, Families & Cultural Services "
Nottinghamshire County Council ,Postages,Debit,161.96,www.tonerprintercopier,09/07/2018,Resources
Nottinghamshire County Council ,Office / General Equipment,Debit,64.41,wickes mansfield,09/07/2018,"Children, Families & Cultural Services "
Nottinghamshire County Council ,Provisions,Debit,11.76,home bargains newark,09/07/2018,"Children, Families & Cultural Services "
Nottinghamshire County Council ,Provisions,Debit,11.67,bm retail,09/07/2018,"Children, Families & Cultural Services "
Nottinghamshire County Council ,Provisions,Debit,14.00,poundstretcher 569,09/07/2018,"Children, Families & Cultural Services "
Nottinghamshire County Council ,Provisions,Debit,12.87,bm retail,09/07/2018,"Children, Families & Cultural Services "
Nottinghamshire County Council ,Provisions,Debit,51.24,tesco stores 2995,09/07/2018,"Children, Families & Cultural Services "
Nottinghamshire County Council ,Provisions,Debit,16.05,w boyes  co ltd,09/07/2018,"Children, Families & Cultural Services "
Nottinghamshire County Council ,Provisions,Debit,5.00,heron foods ltd,09/07/2018,"Children, Families & Cultural Services "
Nottinghamshire County Council ,Building Maintenance,Debit,65.00,top deck trade centre lt,09/07/2018,"Adult Social Care, Health & Public Protection "
Nottinghamshire County Council ,Activities & Support,Debit,99.00,tesco stores 3297,09/07/2018,"Children, Families & Cultural Services "
Nottinghamshire County Council ,Provisions,Debit,18.05,asda superstore,09/07/2018,"Children, Families & Cultural Services "
Nottinghamshire County Council ,Provisions,Debit,4.36,aldi 39 779,09/07/2018,"Children, Families & Cultural Services "
Nottinghamshire County Council ,Provisions,Debit,8.29,mcdonalds,09/07/2018,"Children, Families & Cultural Services "
Nottinghamshire County Council ,Provisions,Debit,2.00,sainsburys s/mkts,09/07/2018,"Children, Families & Cultural Services "
Nottinghamshire County Council ,Provisions,Debit,10.44,aldi 39 779,09/07/2018,"Children, Families & Cultural Services "
Nottinghamshire County Council ,Provisions,Debit,15.10,wm morrisons,09/07/2018,"Children, Families & Cultural Services "
Nottinghamshire County Council ,Provisions,Debit,12.35,tesco stores 5437,09/07/2018,"Children, Families & Cultural Services "
Nottinghamshire County Council ,Provisions,Debit,36.29,tesco stores 5437,09/07/2018,"Children, Families & Cultural Services "
Nottinghamshire County Council ,Leaving Care - Home Establishment Grant,Debit,315.65,austins carpets limit,09/07/2018,"Children, Families & Cultural Services "
Nottinghamshire County Council ,Provisions,Debit,8.33,sainsburys s/mkts,09/07/2018,"Children, Families & Cultural Services "
Nottinghamshire County Council ,Provisions,Debit,29.09,aldi 39 779,09/07/2018,"Children, Families & Cultural Services "
Nottinghamshire County Council ,Office / General Equipment,Debit,6.55,wilko retail limit,09/07/2018,Resources
Nottinghamshire County Council ,Leaving Care - Home Establishment Grant,Debit,38.05,tesco stores 5379,09/07/2018,"Children, Families & Cultural Services "
Nottinghamshire County Council ,Unplanned Needs and Financial Support,Debit,15.43,home bargains worksop,09/07/2018,"Children, Families & Cultural Services "
Nottinghamshire County Council ,Activities & Support,Debit,20.00,wm morrison store,09/07/2018,"Adult Social Care, Health & Public Protection "
Nottinghamshire County Council ,Activities & Support,Debit,540.00,pcs first4healthtraini,09/07/2018,"Adult Social Care, Health & Public Protection "
Nottinghamshire County Council ,Activities & Support,Debit,24.00,replacementkeys.co.uk,09/07/2018,"Adult Social Care, Health & Public Protection "
Nottinghamshire County Council ,Unplanned Needs and Financial Support,Debit,219.98,worldstores,09/07/2018,"Children, Families & Cultural Services "
Nottinghamshire County Council ,Minor Works,Debit,4.40,sainsburys s/mkt,10/07/2018,"Children, Families & Cultural Services "
Nottinghamshire County Council ,Clothing/Shoes/Uniforms,Debit,18.00,sainsburys s/mkts,10/07/2018,"Children, Families & Cultural Services "
Nottinghamshire County Council ,Personal Needs,Debit,1.89,mcdonalds,10/07/2018,"Children, Families & Cultural Services "
Nottinghamshire County Council ,Provisions,Debit,28.70,sainsburys smkt,10/07/2018,"Children, Families & Cultural Services "
Nottinghamshire County Council ,Teaching Equipment,Debit,6.00,asda stores 4474,10/07/2018,"Children, Families & Cultural Services "
Nottinghamshire County Council ,Legal Fees,Debit,3.00,land registry,10/07/2018,Resources
Nottinghamshire County Council ,Office / General Equipment,Debit,25.70,amazon uk retail,10/07/2018,"Children, Families & Cultural Services "
Nottinghamshire County Council ,Office / General Equipment,Debit,12.85,amazon uk marketplace,10/07/2018,"Children, Families & Cultural Services "
Nottinghamshire County Council ,Office / General Equipment,Debit,48.00,amazon uk marketplace,10/07/2018,"Children, Families & Cultural Services "
Nottinghamshire County Council ,Provisions,Debit,14.30,sainsburys smkt,10/07/2018,"Children, Families & Cultural Services "
Nottinghamshire County Council ,Cleaning & Domestic Equipment,Debit,73.74,the range-newark,10/07/2018,"Adult Social Care, Health & Public Protection "
Nottinghamshire County Council ,Cleaning & Domestic Equipment,Debit,59.99,currys,10/07/2018,"Adult Social Care, Health & Public Protection "
Nottinghamshire County Council ,Cleaning & Domestic Equipment,Debit,140.00,homebase ltd,10/07/2018,"Adult Social Care, Health & Public Protection "
Nottinghamshire County Council ,Training Fees,Debit,24.00,me learning,10/07/2018,"Children, Families & Cultural Services "
Nottinghamshire County Council ,Training Fees,Debit,28.80,virtual college limite,10/07/2018,"Children, Families & Cultural Services "
Nottinghamshire County Council ,Fuel - Diesel,Debit,51.35,daniels silverman,10/07/2018,Resources
Nottinghamshire County Council ,Provisions,Debit,26.71,bm retail,10/07/2018,"Children, Families & Cultural Services "
Nottinghamshire County Council ,Provisions,Debit,7.36,tesco stores 2995,10/07/2018,"Children, Families & Cultural Services "
Nottinghamshire County Council ,Office / General Equipment,Debit,10.50,tesco stores 5437,10/07/2018,"Children, Families & Cultural Services "
Nottinghamshire County Council ,Personal Needs,Debit,7.80,tesco stores 5437,10/07/2018,"Children, Families & Cultural Services "
Nottinghamshire County Council ,Clothing/Shoes/Uniforms,Debit,62.93,klarna   uc clothing lim,10/07/2018,"Children, Families & Cultural Services "
Nottinghamshire County Council ,Office / General Equipment,Debit,34.99,sportsdirect.com,10/07/2018,"Children, Families & Cultural Services "
Nottinghamshire County Council ,Fuel - Petrol,Debit,25.43,tesco pfs 4140,10/07/2018,"Children, Families & Cultural Services "
Nottinghamshire County Council ,Clothing/Shoes/Uniforms,Debit,29.99,sportsdirect 292,10/07/2018,"Children, Families & Cultural Services "
Nottinghamshire County Council ,Personal Needs,Debit,6.45,tesco stores 2995,10/07/2018,"Children, Families & Cultural Services "
Nottinghamshire County Council ,Provisions,Debit,5.26,co-op group 011261,10/07/2018,"Children, Families & Cultural Services "
Nottinghamshire County Council ,Provisions,Debit,5.05,farmfoods- woodhou,10/07/2018,"Children, Families & Cultural Services "
Nottinghamshire County Council ,Personal Needs,Debit,13.00,www.trentbarton.co.uk,10/07/2018,"Children, Families & Cultural Services "
Nottinghamshire County Council ,Catering Consumables,Debit,107.80,amazon uk marketplace,10/07/2018,"Adult Social Care, Health & Public Protection "
Nottinghamshire County Council ,Personal Needs,Debit,43.35,amazon svcs eu-uk amazon,10/07/2018,"Adult Social Care, Health & Public Protection "
Nottinghamshire County Council ,Activities & Support,Debit,50.45,amazon uk marketplace,10/07/2018,"Adult Social Care, Health & Public Protection "
Nottinghamshire County Council ,Catering Consumables,Debit,9.88,amazon uk marketplace,10/07/2018,"Adult Social Care, Health & Public Protection "
Nottinghamshire County Council ,Hospitality,Debit,27.30,sainsburys s/mkt,10/07/2018,"Adult Social Care, Health & Public Protection "
Nottinghamshire County Council ,Legal Fees,Debit,90.00,lincoln county hospita,10/07/2018,Resources
Nottinghamshire County Council ,Minor Works,Debit,36.00,www.alpkit.com,10/07/2018,"Children, Families & Cultural Services "
Nottinghamshire County Council ,Minor Works,Debit,21.50,tesco stores 3378,10/07/2018,"Children, Families & Cultural Services "
Nottinghamshire County Council ,Minor Works,Debit,153.55,middletons dairy limit,10/07/2018,"Children, Families & Cultural Services "
Nottinghamshire County Council ,Minor Works,Debit,22.12,camaloon,10/07/2018,"Children, Families & Cultural Services "
Nottinghamshire County Council ,Provisions,Debit,11.75,lidl uk  sutton in ash,10/07/2018,"Children, Families & Cultural Services "
Nottinghamshire County Council ,Activities & Support,Debit,8.60,amazon uk marketplace,10/07/2018,"Adult Social Care, Health & Public Protection "
Nottinghamshire County Council ,Provisions,Debit,"2,171.50",flamingoland resor,10/07/2018,"Children, Families & Cultural Services "
Nottinghamshire County Council ,Leaving Care - Home Establishment Grant,Debit,3.98,mcdonalds,10/07/2018,"Children, Families & Cultural Services "
Nottinghamshire County Council ,Leaving Care - Home Establishment Grant,Debit,399.99,suite sleep,10/07/2018,"Children, Families & Cultural Services "
Nottinghamshire County Council ,Leaving Care - Home Establishment Grant,Debit,50.96,bm retail,10/07/2018,"Children, Families & Cultural Services "
Nottinghamshire County Council ,Leaving Care - Home Establishment Grant,Debit,95.59,ncc internet,10/07/2018,"Children, Families & Cultural Services "
Nottinghamshire County Council ,Leaving Care - Home Establishment Grant,Debit,31.50,halfords 0855,10/07/2018,"Children, Families & Cultural Services "
Nottinghamshire County Council ,DBS Checks,Debit,17.00,sainsburys s/mkts,10/07/2018,"Children, Families & Cultural Services "
Nottinghamshire County Council ,DBS Checks,Debit,20.00,tesco stores (5378),10/07/2018,"Children, Families & Cultural Services "
Nottinghamshire County Council ,Provisions,Debit,49.92,tesco stores 2995,10/07/2018,"Children, Families & Cultural Services "
Nottinghamshire County Council ,Activities & Support,Debit,30.20,amazon eu amazon.co.uk,10/07/2018,Resources
Nottinghamshire County Council ,Activities & Support,Debit,405.00,david blount ltd,10/07/2018,Resources
Nottinghamshire County Council ,Unplanned Needs and Financial Support,Debit,4.15,tesco stores 2995,10/07/2018,"Children, Families & Cultural Services "
Nottinghamshire County Council ,Provisions,Debit,15.86,farmfoods limited,10/07/2018,"Children, Families & Cultural Services "
Nottinghamshire County Council ,Provisions,Debit,62.99,sherwood oaks leisure,10/07/2018,"Children, Families & Cultural Services "
Nottinghamshire County Council ,Rail / Tube Fares,Debit,30.00,national railcard,10/07/2018,"Children, Families & Cultural Services "
Nottinghamshire County Council ,Provisions,Debit,8.25,tesco stores 2702,10/07/2018,"Children, Families & Cultural Services "
Nottinghamshire County Council ,Provisions,Debit,34.20,amazon eu amazon.co.uk,10/07/2018,"Adult Social Care, Health & Public Protection "
Nottinghamshire County Council ,Provisions,Debit,80.17,wm morrison food.com,10/07/2018,"Adult Social Care, Health & Public Protection "
Nottinghamshire County Council ,Provisions,Debit,64.58,aldi,10/07/2018,"Children, Families & Cultural Services "
Nottinghamshire County Council ,Provisions,Debit,30.03,asda superstore 04030,10/07/2018,"Children, Families & Cultural Services "
Nottinghamshire County Council ,Provisions,Debit,32.70,middletons dairy limit,10/07/2018,"Children, Families & Cultural Services "
Nottinghamshire County Council ,Cleaning & Domestic Equipment,Debit,40.56,www.lockhartcatering.c,10/07/2018,"Children, Families & Cultural Services "
Nottinghamshire County Council ,Provisions,Debit,123.04,barrons of,10/07/2018,"Children, Families & Cultural Services "
Nottinghamshire County Council ,Provisions,Debit,4.47,w boyes  co ltd,10/07/2018,"Children, Families & Cultural Services "
Nottinghamshire County Council ,Provisions,Debit,22.00,the dolphin fish bar,10/07/2018,"Children, Families & Cultural Services "
Nottinghamshire County Council ,Provisions,Debit,17.00,tesco stores 2995,10/07/2018,"Children, Families & Cultural Services "
Nottinghamshire County Council ,Cleaning & Domestic Equipment,Debit,14.98,b  q 1261,10/07/2018,"Children, Families & Cultural Services "
Nottinghamshire County Council ,Cleaning & Domestic Equipment,Debit,22.00,b  q 1261,10/07/2018,"Children, Families & Cultural Services "
Nottinghamshire County Council ,Provisions,Debit,10.00,iceland,10/07/2018,Place
Nottinghamshire County Council ,Provisions,Debit,3.35,asda superstore,10/07/2018,Place
Nottinghamshire County Council ,Office / General Equipment,Debit,22.63,amazon uk retail,10/07/2018,Place
Nottinghamshire County Council ,Provisions,Debit,8.50,tesco stores 2995,10/07/2018,"Children, Families & Cultural Services "
Nottinghamshire County Council ,Provisions,Debit,10.94,co-op group food,10/07/2018,"Children, Families & Cultural Services "
Nottinghamshire County Council ,Provisions,Debit,10.93,co-op group food,10/07/2018,"Children, Families & Cultural Services "
Nottinghamshire County Council ,Provisions,Debit,11.54,co-op group 010811,10/07/2018,"Children, Families & Cultural Services "
Nottinghamshire County Council ,Provisions,Debit,6.90,tesco stores 5329,10/07/2018,"Children, Families & Cultural Services "
Nottinghamshire County Council ,Provisions,Debit,1.00,sainsburys s/mkts,10/07/2018,"Children, Families & Cultural Services "
Nottinghamshire County Council ,Provisions,Debit,3.80,sainsburys s/mkts,10/07/2018,"Children, Families & Cultural Services "
Nottinghamshire County Council ,Stationery,Debit,12.00,amazon uk retail,10/07/2018,"Children, Families & Cultural Services "
Nottinghamshire County Council ,Stationery,Debit,12.00,amazon uk retail,10/07/2018,"Children, Families & Cultural Services "
Nottinghamshire County Council ,Personal Needs,Credi,-8.00,www.boohoo.com,10/07/2018,"Children, Families & Cultural Services "
Nottinghamshire County Council ,Personal Needs,Debit,53.98,sportsdirect.com,10/07/2018,"Children, Families & Cultural Services "
Nottinghamshire County Council ,Personal Needs,Debit,29.00,www.boohoo.com,10/07/2018,"Children, Families & Cultural Services "
Nottinghamshire County Council ,Training Fees,Debit,83.99,nrs healthcare,10/07/2018,"Adult Social Care, Health & Public Protection "
Nottinghamshire County Council ,Provisions,Debit,44.50,specsavers 00198000man,10/07/2018,"Children, Families & Cultural Services "
Nottinghamshire County Council ,Other Public Transport,Debit,3.00,upt - nottinghamcity cou,10/07/2018,"Children, Families & Cultural Services "
Nottinghamshire County Council ,Provisions,Debit,8.42,wm morrisons,10/07/2018,"Children, Families & Cultural Services "
Nottinghamshire County Council ,Cleaning & Domestic Equipment,Debit,30.00,primark,10/07/2018,"Children, Families & Cultural Services "
Nottinghamshire County Council ,Clothing/Shoes/Uniforms,Debit,18.00,top shop/topman,10/07/2018,"Children, Families & Cultural Services "
Nottinghamshire County Council ,Clothing/Shoes/Uniforms,Debit,10.00,new look 2015,10/07/2018,"Children, Families & Cultural Services "
Nottinghamshire County Council ,Cleaning & Domestic Equipment,Debit,4.99,bm retail ltd,10/07/2018,"Children, Families & Cultural Services "
Nottinghamshire County Council ,Leaving Care - Home Establishment Grant,Debit,150.50,tvlicensing.co.uk,10/07/2018,"Children, Families & Cultural Services "
Nottinghamshire County Council ,Specialist Equipment,Debit,21.25,amazon uk marketplace,11/07/2018,"Adult Social Care, Health & Public Protection "
Nottinghamshire County Council ,Unplanned Needs and Financial Support,Debit,7.19,lloyds at sainsbur,11/07/2018,"Children, Families & Cultural Services "
Nottinghamshire County Council ,Provisions,Debit,3.10,asda superstore,11/07/2018,"Children, Families & Cultural Services "
Nottinghamshire County Council ,Teaching Equipment,Debit,2.00,royal mail charges,11/07/2018,"Children, Families & Cultural Services "
Nottinghamshire County Council ,Provisions,Debit,2.19,lidl uk  netherfield,11/07/2018,"Children, Families & Cultural Services "
Nottinghamshire County Council ,Phone and Network (Land Lines),Debit,24.00,textmagic.com,11/07/2018,"Children, Families & Cultural Services "
Nottinghamshire County Council ,Clothing And Footwear,Debit,157.10,snickersdirect,11/07/2018,"Children, Families & Cultural Services "
Nottinghamshire County Council ,Office / General Equipment,Debit,116.00,cotswold medicals ltd,11/07/2018,Place
Nottinghamshire County Council ,Office / General Equipment,Debit,155.40,desktop driving li,11/07/2018,Place
Nottinghamshire County Council ,Training Fees,Debit,31.20,asda store ston in as,11/07/2018,"Adult Social Care, Health & Public Protection "
Nottinghamshire County Council ,Cleaning & Domestic Equipment,Debit,30.95,poundstretcher 669,11/07/2018,"Children, Families & Cultural Services "
Nottinghamshire County Council ,Clothing/Shoes/Uniforms,Debit,54.48,sportsdirect.com,11/07/2018,"Children, Families & Cultural Services "
Nottinghamshire County Council ,Personal Needs,Debit,6.00,bm retail ltd,11/07/2018,"Children, Families & Cultural Services "
Nottinghamshire County Council ,Leaving Care - Home Establishment Grant,Debit,144.00,ex catalogue furni,11/07/2018,"Children, Families & Cultural Services "
Nottinghamshire County Council ,Leaving Care - Home Establishment Grant,Debit,55.96,b  m retail,11/07/2018,"Children, Families & Cultural Services "
Nottinghamshire County Council ,Leaving Care - Home Establishment Grant,Debit,489.98,www.argos.co.uk,11/07/2018,"Children, Families & Cultural Services "
Nottinghamshire County Council ,Leaving Care - Home Establishment Grant,Debit,250.00,british heart foundati,11/07/2018,"Children, Families & Cultural Services "
Nottinghamshire County Council ,Unplanned Needs and Financial Support,Debit,23.53,b  m retail,11/07/2018,"Children, Families & Cultural Services "
Nottinghamshire County Council ,Provisions,Debit,8.23,co-op group 011261,11/07/2018,"Children, Families & Cultural Services "
Nottinghamshire County Council ,Activities & Support,Debit,63.00,the lambley,11/07/2018,"Children, Families & Cultural Services "
Nottinghamshire County Council ,Activities & Support,Debit,11.89,spring lane farm,11/07/2018,"Children, Families & Cultural Services "
Nottinghamshire County Council ,Activities & Support,Debit,7.26,fast key services limi,11/07/2018,Resources
Nottinghamshire County Council ,Personal Needs,Debit,11.80,national express limited,11/07/2018,"Children, Families & Cultural Services "
Nottinghamshire County Council ,Provisions,Debit,13.79,iceland,11/07/2018,"Children, Families & Cultural Services "
Nottinghamshire County Council ,Catering Consumables,Debit,4.28,amazon uk marketplace,11/07/2018,"Adult Social Care, Health & Public Protection "
Nottinghamshire County Council ,Provisions,Debit,9.15,aldi 28 779,11/07/2018,"Children, Families & Cultural Services "
Nottinghamshire County Council ,Provisions,Debit,12.00,crawshaw,11/07/2018,"Children, Families & Cultural Services "
Nottinghamshire County Council ,Provisions,Debit,21.90,w m morrison plc,11/07/2018,"Children, Families & Cultural Services "
Nottinghamshire County Council ,Provisions,Debit,1.20,w m morrison plc,11/07/2018,"Children, Families & Cultural Services "
Nottinghamshire County Council ,Provisions,Debit,17.95,w m morrison plc,11/07/2018,"Children, Families & Cultural Services "
Nottinghamshire County Council ,Office / General Equipment,Debit,32.00,timpson ltd,11/07/2018,"Children, Families & Cultural Services "
Nottinghamshire County Council ,Provisions,Debit,5.95,the market garden,11/07/2018,"Children, Families & Cultural Services "
Nottinghamshire County Council ,Provisions,Debit,7.45,tesco stores 2995,11/07/2018,"Children, Families & Cultural Services "
Nottinghamshire County Council ,Activities & Support,Debit,6.95,amazon uk marketplace,11/07/2018,"Adult Social Care, Health & Public Protection "
Nottinghamshire County Council ,Office / General Equipment,Debit,1.80,amazon uk marketplace,11/07/2018,"Adult Social Care, Health & Public Protection "
Nottinghamshire County Council ,Activities & Support,Debit,5.23,amazon uk marketplace,11/07/2018,"Adult Social Care, Health & Public Protection "
Nottinghamshire County Council ,Office / General Equipment,Debit,20.25,amazon uk marketplace,11/07/2018,"Adult Social Care, Health & Public Protection "
Nottinghamshire County Council ,Activities & Support,Debit,4.51,amazon uk marketplace,11/07/2018,"Adult Social Care, Health & Public Protection "
Nottinghamshire County Council ,Activities & Support,Debit,0.85,amazon uk marketplace,11/07/2018,"Adult Social Care, Health & Public Protection "
Nottinghamshire County Council ,Provisions,Debit,21.71,tesco stores 2995,11/07/2018,"Children, Families & Cultural Services "
Nottinghamshire County Council ,Provisions,Debit,4.85,sainsburys s/mkts,11/07/2018,"Children, Families & Cultural Services "
Nottinghamshire County Council ,Provisions,Debit,47.36,aldi 39 779,11/07/2018,"Children, Families & Cultural Services "
Nottinghamshire County Council ,Provisions,Debit,234.00,www.rushcliffe.gov.uk,11/07/2018,Place
Nottinghamshire County Council ,Unplanned Needs and Financial Support,Debit,6.57,mcdonalds,11/07/2018,"Children, Families & Cultural Services "
Nottinghamshire County Council ,Provisions,Debit,10.98,the range,11/07/2018,"Children, Families & Cultural Services "
Nottinghamshire County Council ,Provisions,Debit,15.93,farmfoods limited,11/07/2018,"Children, Families & Cultural Services "
Nottinghamshire County Council ,Provisions,Debit,9.65,asda store ston in as,11/07/2018,"Children, Families & Cultural Services "
Nottinghamshire County Council ,Rights Of Way,Debit,39.14,wickes,11/07/2018,Place
Nottinghamshire County Council ,Cleaning Materials,Debit,2.80,sainsburys s/mkts,11/07/2018,"Children, Families & Cultural Services "
Nottinghamshire County Council ,Provisions,Debit,19.92,tesco stores 2702,11/07/2018,"Children, Families & Cultural Services "
Nottinghamshire County Council ,Provisions,Debit,16.71,tesco stores 2702,11/07/2018,"Children, Families & Cultural Services "
Nottinghamshire County Council ,Provisions,Debit,7.00,asda superstore 04261,11/07/2018,"Children, Families & Cultural Services "
Nottinghamshire County Council ,Provisions,Debit,88.15,js online grocery,11/07/2018,"Children, Families & Cultural Services "
Nottinghamshire County Council ,Provisions,Debit,3.50,tramlink nottingham limi,11/07/2018,"Children, Families & Cultural Services "
Nottinghamshire County Council ,Provisions,Debit,14.40,virtual college limite,11/07/2018,"Children, Families & Cultural Services "
Nottinghamshire County Council ,Office / General Equipment,Debit,28.44,amazon eu amazon.co.uk,11/07/2018,"Children, Families & Cultural Services "
Nottinghamshire County Council ,Provisions,Debit,11.98,bm retail ltd,11/07/2018,Place
Nottinghamshire County Council ,Office / General Equipment,Debit,7.99,amazon prime,11/07/2018,"Children, Families & Cultural Services "
Nottinghamshire County Council ,Provisions,Debit,15.61,co-op group food,11/07/2018,"Children, Families & Cultural Services "
Nottinghamshire County Council ,Personal Needs,Debit,14.99,tesco stores 2995,11/07/2018,"Children, Families & Cultural Services "
Nottinghamshire County Council ,Office / General Equipment,Debit,3.50,tesco stores 2995,11/07/2018,"Children, Families & Cultural Services "
Nottinghamshire County Council ,Provisions,Debit,20.77,co-op group 065071,11/07/2018,"Children, Families & Cultural Services "
Nottinghamshire County Council ,Provisions,Debit,10.05,iceland,11/07/2018,"Children, Families & Cultural Services "
Nottinghamshire County Council ,Grounds Maintenance,Debit,220.00,a b waste disposal ltd,11/07/2018,"Children, Families & Cultural Services "
Nottinghamshire County Council ,Provisions,Debit,11.71,aldi 39 779,11/07/2018,"Children, Families & Cultural Services "
Nottinghamshire County Council ,Cleaning & Domestic Equipment,Debit,9.99,poundstretcher 669,11/07/2018,"Children, Families & Cultural Services "
Nottinghamshire County Council ,Office / General Equipment,Debit,6.57,b  m retail,11/07/2018,"Children, Families & Cultural Services "
Nottinghamshire County Council ,Fixtures & Fittings,Debit,24.99,argos mansfield,11/07/2018,"Children, Families & Cultural Services "
Nottinghamshire County Council ,Cleaning & Domestic Equipment,Debit,31.07,rawlins t/a mats4u,11/07/2018,"Children, Families & Cultural Services "
Nottinghamshire County Council ,Leaving Care - Home Establishment Grant,Debit,29.99,www.argos.co.uk,11/07/2018,"Children, Families & Cultural Services "
Nottinghamshire County Council ,Leaving Care - Home Establishment Grant,Debit,108.94,www.argos.co.uk,11/07/2018,"Children, Families & Cultural Services "
Nottinghamshire County Council ,Car Parking Charges,Debit,3.00,six card c/less stock,11/07/2018,"Adult Social Care, Health & Public Protection "
Nottinghamshire County Council ,Provisions,Debit,23.85,amazon uk marketplace,11/07/2018,"Children, Families & Cultural Services "
Nottinghamshire County Council ,Unplanned Needs and Financial Support,Debit,6.60,lidl uk  arnold,11/07/2018,"Children, Families & Cultural Services "
Nottinghamshire County Council ,Unplanned Needs and Financial Support,Debit,122.00,wilko retail limit,11/07/2018,"Children, Families & Cultural Services "
Nottinghamshire County Council ,Provisions,Debit,4.55,amazon svcs eu-uk amazon,12/07/2018,"Children, Families & Cultural Services "
Nottinghamshire County Council ,Activities & Support,Debit,29.82,wm morrison store,12/07/2018,"Children, Families & Cultural Services "
Nottinghamshire County Council ,Minor Works,Debit,6.16,tesco pfs 4083,12/07/2018,"Children, Families & Cultural Services "
Nottinghamshire County Council ,Minor Works,Debit,2.56,tesco stores 2702,12/07/2018,"Children, Families & Cultural Services "
Nottinghamshire County Council ,Minor Works,Debit,5.28,terratruck distrib,12/07/2018,"Children, Families & Cultural Services "
Nottinghamshire County Council ,Activities & Support,Debit,16.82,aldi,12/07/2018,"Children, Families & Cultural Services "
Nottinghamshire County Council ,Cleaning Materials,Debit,23.84,www.morphyrichards.co.,12/07/2018,"Children, Families & Cultural Services "
Nottinghamshire County Council ,Unplanned Needs and Financial Support,Debit,54.00,the free test comp,12/07/2018,"Children, Families & Cultural Services "
Nottinghamshire County Council ,Teaching Equipment,Debit,3.82,amazon uk retail,12/07/2018,"Children, Families & Cultural Services "
Nottinghamshire County Council ,Activities & Support,Debit,10.01,morrisons petrol,12/07/2018,Resources
Nottinghamshire County Council ,Activities & Support,Debit,10.00,sainsburys s/mkts,12/07/2018,Resources
Nottinghamshire County Council ,Minor Works,Debit,12.00,british canoeing,12/07/2018,"Children, Families & Cultural Services "
Nottinghamshire County Council ,Office / General Equipment,Debit,129.60,jark plc,12/07/2018,"Adult Social Care, Health & Public Protection "
Nottinghamshire County Council ,Cleaning Materials,Debit,25.30,amazon uk marketplace,12/07/2018,"Children, Families & Cultural Services "
Nottinghamshire County Council ,Family Financial Assistance,Debit,169.61,bassetlaw d.c.,12/07/2018,"Children, Families & Cultural Services "
Nottinghamshire County Council ,Software Purchases,Debit,116.40,bc.basecamp 112397,12/07/2018,Resources
Nottinghamshire County Council ,Provisions,Debit,5.20,churchill drive,12/07/2018,"Children, Families & Cultural Services "
Nottinghamshire County Council ,Provisions,Debit,10.43,lidl uk newark,12/07/2018,"Children, Families & Cultural Services "
Nottinghamshire County Council ,Other Fees & Services,Debit,11.50,http://www.derbyshire.,12/07/2018,"Children, Families & Cultural Services "
Nottinghamshire County Council ,Leaving Care - Home Establishment Grant,Debit,70.01,bm retail ltd,12/07/2018,"Children, Families & Cultural Services "
Nottinghamshire County Council ,Leaving Care - Home Establishment Grant,Debit,18.60,wilko retail limit,12/07/2018,"Children, Families & Cultural Services "
Nottinghamshire County Council ,Minor Works,Debit,28.76,screwfix direct,12/07/2018,"Children, Families & Cultural Services "
Nottinghamshire County Council ,Provisions,Debit,7.96,aldi 17 779,12/07/2018,"Children, Families & Cultural Services "
Nottinghamshire County Council ,Minor Works,Debit,115.20,www.safetydirect.co.uk,12/07/2018,"Children, Families & Cultural Services "
Nottinghamshire County Council ,Provisions,Debit,8.42,aldi stores,12/07/2018,"Children, Families & Cultural Services "
Nottinghamshire County Council ,Provisions,Debit,10.66,co-op group 017091,12/07/2018,"Children, Families & Cultural Services "
Nottinghamshire County Council ,Office / General Equipment,Debit,20.00,tesco stores 2995,12/07/2018,"Children, Families & Cultural Services "
Nottinghamshire County Council ,Provisions,Debit,4.71,mcdonalds,12/07/2018,"Children, Families & Cultural Services "
Nottinghamshire County Council ,Furniture,Debit,25.80,amazon uk retail,12/07/2018,"Adult Social Care, Health & Public Protection "
Nottinghamshire County Council ,Office / General Equipment,Debit,39.94,amazon uk marketplace,12/07/2018,"Adult Social Care, Health & Public Protection "
Nottinghamshire County Council ,Office / General Equipment,Debit,4.75,amazon uk marketplace,12/07/2018,"Adult Social Care, Health & Public Protection "
Nottinghamshire County Council ,Furniture,Debit,25.80,amazon uk retail,12/07/2018,"Adult Social Care, Health & Public Protection "
Nottinghamshire County Council ,Activities & Support,Debit,9.24,amazon uk marketplace,12/07/2018,"Adult Social Care, Health & Public Protection "
Nottinghamshire County Council ,Provisions,Debit,20.83,tesco store 3439,12/07/2018,"Children, Families & Cultural Services "
Nottinghamshire County Council ,Leaving Care - Home Establishment Grant,Debit,7.50,giffgaff,12/07/2018,"Children, Families & Cultural Services "
Nottinghamshire County Council ,DBS Checks,Debit,20.00,asda store ston in as,12/07/2018,"Children, Families & Cultural Services "
Nottinghamshire County Council ,Provisions,Debit,9.71,home bargains,12/07/2018,"Children, Families & Cultural Services "
Nottinghamshire County Council ,Provisions,Debit,13.96,the range,12/07/2018,"Children, Families & Cultural Services "
Nottinghamshire County Council ,Provisions,Debit,38.05,w m morrison plc,12/07/2018,"Children, Families & Cultural Services "
Nottinghamshire County Council ,Office / General Equipment,Debit,17.97,wickes,12/07/2018,"Children, Families & Cultural Services "
Nottinghamshire County Council ,Office / General Equipment,Debit,9.98,wickes bulwell,12/07/2018,"Children, Families & Cultural Services "
Nottinghamshire County Council ,Activities & Support,Debit,26.40,www.evmobility.co.uk,12/07/2018,Resources
Nottinghamshire County Council ,Provisions,Debit,16.70,home bargains,12/07/2018,"Children, Families & Cultural Services "
Nottinghamshire County Council ,Provisions,Credi,-4.98,asda groceries online,12/07/2018,"Adult Social Care, Health & Public Protection "
Nottinghamshire County Council ,Provisions,Debit,121.81,asda groceries online,12/07/2018,"Adult Social Care, Health & Public Protection "
Nottinghamshire County Council ,Provisions,Debit,13.04,tesco stores 5437,12/07/2018,"Children, Families & Cultural Services "
Nottinghamshire County Council ,Provisions,Debit,5.69,co-op group 065071,12/07/2018,"Children, Families & Cultural Services "
Nottinghamshire County Council ,Provisions,Debit,3.52,co-op group food,12/07/2018,"Children, Families & Cultural Services "
Nottinghamshire County Council ,Minor Works,Debit,5.50,mandale camp site,12/07/2018,"Children, Families & Cultural Services "
Nottinghamshire County Council ,Provisions,Debit,5.48,bm retail,12/07/2018,"Children, Families & Cultural Services "
Nottinghamshire County Council ,Provisions,Debit,32.20,londis vg fs,12/07/2018,"Children, Families & Cultural Services "
Nottinghamshire County Council ,Provisions,Debit,3.25,londis vg fs,12/07/2018,"Children, Families & Cultural Services "
Nottinghamshire County Council ,Building Maintenance,Debit,25.47,amazon uk marketplace,12/07/2018,"Adult Social Care, Health & Public Protection "
Nottinghamshire County Council ,Provisions,Debit,31.40,sainsburys s/mkt,12/07/2018,"Children, Families & Cultural Services "
Nottinghamshire County Council ,Provisions,Debit,14.00,sainsburys s/mkt,12/07/2018,"Children, Families & Cultural Services "
Nottinghamshire County Council ,Provisions,Debit,171.36,bookerecomm,12/07/2018,Place
Nottinghamshire County Council ,Provisions,Debit,6.70,east midlands trains l,12/07/2018,"Children, Families & Cultural Services "
Nottinghamshire County Council ,Provisions,Debit,18.75,tesco stores 2995,12/07/2018,"Children, Families & Cultural Services "
Nottinghamshire County Council ,Office / General Equipment,Debit,14.48,amazon uk marketplace,12/07/2018,Resources
Nottinghamshire County Council ,Office / General Equipment,Debit,3.95,amazon uk marketplace,12/07/2018,Resources
Nottinghamshire County Council ,Leaving Care - Home Establishment Grant,Debit,150.50,tvlicensing.co.uk,12/07/2018,"Children, Families & Cultural Services "
Nottinghamshire County Council ,Unplanned Needs and Financial Support,Debit,150.50,tvlicensing.co.uk,12/07/2018,"Children, Families & Cultural Services "
Nottinghamshire County Council ,Personal Needs,Debit,11.25,nottinghamshire ymca,12/07/2018,"Children, Families & Cultural Services "
Nottinghamshire County Council ,Unplanned Needs and Financial Support,Debit,195.00,www.ikea.com,12/07/2018,"Children, Families & Cultural Services "
Nottinghamshire County Council ,Activities & Support,Debit,426.60,www.pmgltd.co.uk,13/07/2018,"Children, Families & Cultural Services "
Nottinghamshire County Council ,Activities & Support,Debit,14.57,asda stores,13/07/2018,"Children, Families & Cultural Services "
Nottinghamshire County Council ,Activities & Support,Debit,1.75,tesco stores 5329,13/07/2018,"Children, Families & Cultural Services "
Nottinghamshire County Council ,Clothing/Shoes/Uniforms,Credi,-24.00,tesco direct,13/07/2018,"Children, Families & Cultural Services "
Nottinghamshire County Council ,Provisions,Debit,112.54,w m morrisons.com,13/07/2018,"Adult Social Care, Health & Public Protection "
Nottinghamshire County Council ,Provisions,Debit,34.10,aldi 39 779,13/07/2018,"Children, Families & Cultural Services "
Nottinghamshire County Council ,Provisions,Debit,7.15,sainsburys smkt,13/07/2018,"Children, Families & Cultural Services "
Nottinghamshire County Council ,Provisions,Debit,51.51,aldi 65 779,13/07/2018,"Children, Families & Cultural Services "
Nottinghamshire County Council ,Personal Needs,Debit,3.19,amazon uk marketplace,13/07/2018,"Children, Families & Cultural Services "
Nottinghamshire County Council ,Teaching Equipment,Debit,14.26,amazon uk marketplace,13/07/2018,"Children, Families & Cultural Services "
Nottinghamshire County Council ,Teaching Equipment,Debit,10.84,amazon uk retail,13/07/2018,"Children, Families & Cultural Services "
Nottinghamshire County Council ,Legal Fees,Debit,10.00,www.gov.uk,13/07/2018,Resources
Nottinghamshire County Council ,Activities & Support,Credi,-3.30,asda groceries online,13/07/2018,"Adult Social Care, Health & Public Protection "
Nottinghamshire County Council ,Activities & Support,Debit,158.94,asda groceries online,13/07/2018,"Adult Social Care, Health & Public Protection "
Nottinghamshire County Council ,Office / General Equipment,Debit,56.77,www.police-supplies.co,13/07/2018,"Children, Families & Cultural Services "
Nottinghamshire County Council ,Activities & Support,Debit,8.85,costa coffee 43036735,13/07/2018,"Children, Families & Cultural Services "
Nottinghamshire County Council ,Provisions,Debit,7.83,co-op group 017091,13/07/2018,"Children, Families & Cultural Services "
Nottinghamshire County Council ,Cleaning & Domestic Equipment,Debit,29.63,home bargains newark,13/07/2018,"Adult Social Care, Health & Public Protection "
Nottinghamshire County Council ,Family Financial Assistance,Debit,34.50,asda george com leeds,13/07/2018,"Children, Families & Cultural Services "
Nottinghamshire County Council ,Cleaning & Domestic Equipment,Debit,773.00,ao retail limited,13/07/2018,"Children, Families & Cultural Services "
Nottinghamshire County Council ,Provisions,Debit,13.94,bm retail,13/07/2018,"Children, Families & Cultural Services "
Nottinghamshire County Council ,Provisions,Debit,10.99,currys,13/07/2018,"Children, Families & Cultural Services "
Nottinghamshire County Council ,Training Fees,Debit,10.00,b  q 1261,13/07/2018,"Adult Social Care, Health & Public Protection "
Nottinghamshire County Council ,Training Fees,Debit,10.00,b  q 1261,13/07/2018,"Adult Social Care, Health & Public Protection "
Nottinghamshire County Council ,Training Fees,Debit,137.87,the range,13/07/2018,"Adult Social Care, Health & Public Protection "
Nottinghamshire County Council ,Clothing/Shoes/Uniforms,Debit,17.99,footasylum,13/07/2018,"Children, Families & Cultural Services "
Nottinghamshire County Council ,Clothing/Shoes/Uniforms,Debit,40.00,j d sports 584,13/07/2018,"Children, Families & Cultural Services "
Nottinghamshire County Council ,Provisions,Debit,44.36,aldi 39 779,13/07/2018,"Children, Families & Cultural Services "
Nottinghamshire County Council ,Leaving Care - Home Establishment Grant,Debit,99.91,www.argos.co.uk,13/07/2018,"Children, Families & Cultural Services "
Nottinghamshire County Council ,Leaving Care - Home Establishment Grant,Debit,66.59,wayfair 2281033084,13/07/2018,"Children, Families & Cultural Services "
Nottinghamshire County Council ,Leaving Care - Home Establishment Grant,Credi,-489.98,www.argos.co.uk,13/07/2018,"Children, Families & Cultural Services "
Nottinghamshire County Council ,Leaving Care - Home Establishment Grant,Debit,434.97,currys online,13/07/2018,"Children, Families & Cultural Services "
Nottinghamshire County Council ,Leaving Care - Home Establishment Grant,Debit,68.93,www.argos.co.uk,13/07/2018,"Children, Families & Cultural Services "
Nottinghamshire County Council ,Personal Needs,Debit,68.93,www.argos.co.uk,13/07/2018,"Children, Families & Cultural Services "
Nottinghamshire County Council ,Leaving Care - Home Establishment Grant,Credi,-68.93,www.argos.co.uk,13/07/2018,"Children, Families & Cultural Services "
Nottinghamshire County Council ,Personal Needs,Debit,6.75,starbucks,13/07/2018,"Children, Families & Cultural Services "
Nottinghamshire County Council ,Provisions,Debit,21.51,poundworld retail,13/07/2018,"Children, Families & Cultural Services "
Nottinghamshire County Council ,Provisions,Debit,136.56,ethicstarlt,13/07/2018,"Children, Families & Cultural Services "
Nottinghamshire County Council ,Catering Consumables,Debit,22.47,amazon svcs eu-uk amazon,13/07/2018,"Adult Social Care, Health & Public Protection "
Nottinghamshire County Council ,Catering Consumables,Debit,319.96,amazon svcs eu-uk amazon,13/07/2018,"Adult Social Care, Health & Public Protection "
Nottinghamshire County Council ,Provisions,Debit,10.65,bm retail ltd,13/07/2018,"Children, Families & Cultural Services "
Nottinghamshire County Council ,Provisions,Debit,7.15,iceland,13/07/2018,"Children, Families & Cultural Services "
Nottinghamshire County Council ,Provisions,Debit,24.00,wilko retail limit,13/07/2018,"Children, Families & Cultural Services "
Nottinghamshire County Council ,Provisions,Debit,20.35,tesco stores 2995,13/07/2018,"Children, Families & Cultural Services "
Nottinghamshire County Council ,Activities & Support,Debit,15.44,co-op group 010671,13/07/2018,"Children, Families & Cultural Services "
Nottinghamshire County Council ,Provisions,Debit,14.84,tesco stores 2995,13/07/2018,"Children, Families & Cultural Services "
Nottinghamshire County Council ,Personal Needs,Debit,17.95,amazon uk marketplace,13/07/2018,"Adult Social Care, Health & Public Protection "
Nottinghamshire County Council ,Office / General Equipment,Debit,79.38,amazon svcs eu-uk amazon,13/07/2018,"Adult Social Care, Health & Public Protection "
Nottinghamshire County Council ,Staff Training,Debit,273.00,knowdata limited,13/07/2018,"Children, Families & Cultural Services "
Nottinghamshire County Council ,Leaving Care - Home Establishment Grant,Debit,3.65,tesco stores 3228,13/07/2018,"Children, Families & Cultural Services "
Nottinghamshire County Council ,Leaving Care - Home Establishment Grant,Debit,20.40,tesco stores 3228,13/07/2018,"Children, Families & Cultural Services "
Nottinghamshire County Council ,Leaving Care - Home Establishment Grant,Debit,4.45,tesco stores 3228,13/07/2018,"Children, Families & Cultural Services "
Nottinghamshire County Council ,Leaving Care - Home Establishment Grant,Debit,19.00,tesco stores 3228,13/07/2018,"Children, Families & Cultural Services "
Nottinghamshire County Council ,Leaving Care - Home Establishment Grant,Debit,3.90,greggs plc,13/07/2018,"Children, Families & Cultural Services "
Nottinghamshire County Council ,Stationery,Debit,1.61,wm morrison 048,13/07/2018,"Adult Social Care, Health & Public Protection "
Nottinghamshire County Council ,Unplanned Needs and Financial Support,Debit,6.12,mcdonalds,13/07/2018,"Children, Families & Cultural Services "
Nottinghamshire County Council ,Provisions,Debit,4.40,tesco stores 5437,13/07/2018,"Children, Families & Cultural Services "
Nottinghamshire County Council ,Provisions,Debit,7.10,iceland,13/07/2018,"Children, Families & Cultural Services "
Nottinghamshire County Council ,Provisions,Debit,13.57,co-op group 065071,13/07/2018,"Children, Families & Cultural Services "
Nottinghamshire County Council ,Provisions,Debit,1.09,heron foods ltd,13/07/2018,"Children, Families & Cultural Services "
Nottinghamshire County Council ,Provisions,Debit,3.19,asda stores,13/07/2018,"Children, Families & Cultural Services "
Nottinghamshire County Council ,Provisions,Debit,14.87,aldi stores,13/07/2018,"Children, Families & Cultural Services "
Nottinghamshire County Council ,Unplanned Needs and Financial Support,Debit,10.38,tesco stores-3439,13/07/2018,"Children, Families & Cultural Services "
Nottinghamshire County Council ,Provisions,Debit,346.50,pleasure beach,13/07/2018,"Children, Families & Cultural Services "
Nottinghamshire County Council ,Unplanned Needs and Financial Support,Debit,449.97,www.argos.co.uk,13/07/2018,"Children, Families & Cultural Services "
Nottinghamshire County Council ,Unplanned Needs and Financial Support,Debit,313.38,www.argos.co.uk,13/07/2018,"Children, Families & Cultural Services "
Nottinghamshire County Council ,Provisions,Debit,10.60,sainsburys s/mkts,14/07/2018,"Children, Families & Cultural Services "
Nottinghamshire County Council ,Personal Needs,Debit,2.00,boots 6552,14/07/2018,"Children, Families & Cultural Services "
Nottinghamshire County Council ,Clothing/Shoes/Uniforms,Debit,8.00,tesco stores 2995,14/07/2018,"Children, Families & Cultural Services "
Nottinghamshire County Council ,Provisions,Debit,6.49,mcdonalds,14/07/2018,"Children, Families & Cultural Services "
Nottinghamshire County Council ,Activities & Support,Debit,21.98,amazon uk marketplace,14/07/2018,"Children, Families & Cultural Services "
Nottinghamshire County Council ,Family Financial Assistance,Credi,-96.99,amz holi-uk,14/07/2018,"Children, Families & Cultural Services "
Nottinghamshire County Council ,Provisions,Debit,9.00,tesco stores 2995,14/07/2018,"Children, Families & Cultural Services "
Nottinghamshire County Council ,Provisions,Debit,46.01,tesco stores 2995,14/07/2018,"Children, Families & Cultural Services "
Nottinghamshire County Council ,Activities & Support,Debit,3.97,aldi,14/07/2018,"Children, Families & Cultural Services "
Nottinghamshire County Council ,Provisions,Debit,3.70,co-op group 065071,14/07/2018,"Children, Families & Cultural Services "
Nottinghamshire County Council ,Provisions,Debit,5.34,poundstretcher 715,14/07/2018,"Children, Families & Cultural Services "
Nottinghamshire County Council ,Provisions,Debit,0.74,asda stores 4474,14/07/2018,"Children, Families & Cultural Services "
Nottinghamshire County Council ,Provisions,Debit,126.85,aldi 68 779,14/07/2018,"Children, Families & Cultural Services "
Nottinghamshire County Council ,Provisions,Debit,7.20,co-op group 065071,14/07/2018,"Children, Families & Cultural Services "
Nottinghamshire County Council ,Provisions,Debit,2.38,aldi 39 779,14/07/2018,"Children, Families & Cultural Services "
Nottinghamshire County Council ,Provisions,Debit,2.35,sainsburys s/mkts,14/07/2018,"Children, Families & Cultural Services "
Nottinghamshire County Council ,Provisions,Debit,8.02,aldi 39 779,14/07/2018,"Children, Families & Cultural Services "
Nottinghamshire County Council ,Personal Needs,Debit,2.29,mcdonalds,14/07/2018,"Children, Families & Cultural Services "
Nottinghamshire County Council ,Provisions,Debit,20.47,amazon eu amazon.co.uk,15/07/2018,"Children, Families & Cultural Services "
Nottinghamshire County Council ,Provisions,Debit,3.00,sainsburys s/mkts,15/07/2018,"Children, Families & Cultural Services "
Nottinghamshire County Council ,Teaching Equipment,Debit,28.44,amazon uk marketplace,15/07/2018,"Children, Families & Cultural Services "
Nottinghamshire County Council ,Teaching Equipment,Debit,22.00,halfords 0493,15/07/2018,"Children, Families & Cultural Services "
Nottinghamshire County Council ,Office / General Equipment,Debit,15.75,amazon uk marketplace,15/07/2018,"Children, Families & Cultural Services "
Nottinghamshire County Council ,Office / General Equipment,Debit,20.84,amazon uk marketplace,15/07/2018,"Children, Families & Cultural Services "
Nottinghamshire County Council ,Personal Needs,Debit,18.25,odeon upt,15/07/2018,"Children, Families & Cultural Services "
Nottinghamshire County Council ,Personal Needs,Debit,1.89,mcdonalds,15/07/2018,"Children, Families & Cultural Services "
Nottinghamshire County Council ,Personal Needs,Debit,0.89,mcdonalds,15/07/2018,"Children, Families & Cultural Services "
Nottinghamshire County Council ,Provisions,Debit,3.73,co-op group 017091,15/07/2018,"Children, Families & Cultural Services "
Nottinghamshire County Council ,Provisions,Debit,102.63,tesco stores 3297,15/07/2018,"Children, Families & Cultural Services "
Nottinghamshire County Council ,Provisions,Debit,6.00,poundworld retail,15/07/2018,"Children, Families & Cultural Services "
Nottinghamshire County Council ,Provisions,Debit,6.00,b  m retail,15/07/2018,"Children, Families & Cultural Services "
Nottinghamshire County Council ,Personal Needs,Debit,12.98,amazon uk marketplace,15/07/2018,"Children, Families & Cultural Services "
Nottinghamshire County Council ,Personal Needs,Debit,5.92,amazon uk marketplace,15/07/2018,"Children, Families & Cultural Services "
Nottinghamshire County Council ,Office / General Equipment,Debit,20.99,amazon uk marketplace,15/07/2018,Resources
Nottinghamshire County Council ,Office / General Equipment,Debit,22.81,amazon uk marketplace,15/07/2018,Resources
Nottinghamshire County Council ,Fuel - Petrol,Debit,39.91,tesco pay at pump 4140,15/07/2018,"Children, Families & Cultural Services "
Nottinghamshire County Council ,Activities & Support,Debit,80.00,aaia.org.uk,16/07/2018,"Children, Families & Cultural Services "
Nottinghamshire County Council ,Provisions,Debit,15.10,asda stores 4517,16/07/2018,"Children, Families & Cultural Services "
Nottinghamshire County Council ,Provisions,Debit,35.20,aldi 95 779,16/07/2018,"Children, Families & Cultural Services "
Nottinghamshire County Council ,Provisions,Debit,2.04,asda stores 4517,16/07/2018,"Children, Families & Cultural Services "
Nottinghamshire County Council ,Holidays,Debit,561.00,center parcs internet,16/07/2018,"Children, Families & Cultural Services "
Nottinghamshire County Council ,Provisions,Debit,65.12,w m morrisons.com,16/07/2018,"Adult Social Care, Health & Public Protection "
Nottinghamshire County Council ,Minor Works,Debit,15.99,screwfix,16/07/2018,"Children, Families & Cultural Services "
Nottinghamshire County Council ,Provisions,Debit,76.50,sainsburys smkt,16/07/2018,"Children, Families & Cultural Services "
Nottinghamshire County Council ,Personal Needs,Debit,1.72,amazon uk marketplace,16/07/2018,"Children, Families & Cultural Services "
Nottinghamshire County Council ,Personal Needs,Debit,7.09,amazon uk marketplace,16/07/2018,"Children, Families & Cultural Services "
Nottinghamshire County Council ,Office / General Equipment,Debit,2.20,tesco store 3439,16/07/2018,"Adult Social Care, Health & Public Protection "
Nottinghamshire County Council ,Provisions,Debit,7.05,co-op group 011451,16/07/2018,"Children, Families & Cultural Services "
Nottinghamshire County Council ,Provisions,Debit,14.46,asda stores,16/07/2018,"Children, Families & Cultural Services "
Nottinghamshire County Council ,Provisions,Debit,46.09,halfords 0900,16/07/2018,"Children, Families & Cultural Services "
Nottinghamshire County Council ,Advertising & Marketing,Debit,508.78,godaddy com europe,16/07/2018,Resources
Nottinghamshire County Council ,Provisions,Debit,42.66,aldi 39 779,16/07/2018,"Children, Families & Cultural Services "
Nottinghamshire County Council ,Provisions,Debit,2.70,sainsburys s/mkts,16/07/2018,"Children, Families & Cultural Services "
Nottinghamshire County Council ,Cleaning Materials,Debit,6.00,sainsburys s/mkts,16/07/2018,"Children, Families & Cultural Services "
Nottinghamshire County Council ,Provisions,Debit,128.22,aldi stores,16/07/2018,"Children, Families & Cultural Services "
Nottinghamshire County Council ,Leaving Care - Home Establishment Grant,Debit,212.00,ao retail limited,16/07/2018,"Children, Families & Cultural Services "
Nottinghamshire County Council ,Unplanned Needs and Financial Support,Debit,13.35,tesco stores 5379,16/07/2018,"Children, Families & Cultural Services "
Nottinghamshire County Council ,Leaving Care - Home Establishment Grant,Debit,84.94,www.argos.co.uk,16/07/2018,"Children, Families & Cultural Services "
Nottinghamshire County Council ,Provisions,Debit,16.57,tesco stores 5329,16/07/2018,"Children, Families & Cultural Services "
Nottinghamshire County Council ,Provisions,Debit,6.05,farmfoods- woodhou,16/07/2018,"Children, Families & Cultural Services "
Nottinghamshire County Council ,Provisions,Debit,3.38,lidl uk  nottingham,16/07/2018,"Children, Families & Cultural Services "
Nottinghamshire County Council ,Provisions,Debit,10.07,iceland,16/07/2018,"Children, Families & Cultural Services "
Nottinghamshire County Council ,Personal Needs,Debit,48.16,aldi 39 779,16/07/2018,"Children, Families & Cultural Services "
Nottinghamshire County Council ,Unplanned Needs and Financial Support,Debit,49.00,www.mansfieldlodgehotel.,16/07/2018,"Children, Families & Cultural Services "
Nottinghamshire County Council ,Minor Works,Debit,116.40,first ascent uk ltd,16/07/2018,"Children, Families & Cultural Services "
Nottinghamshire County Council ,Minor Works,Debit,93.78,tesco stores 3378,16/07/2018,"Children, Families & Cultural Services "
Nottinghamshire County Council ,Provisions,Debit,6.69,wm morrisons,16/07/2018,"Children, Families & Cultural Services "
Nottinghamshire County Council ,Provisions,Debit,47.40,tesco store 3439,16/07/2018,"Children, Families & Cultural Services "
Nottinghamshire County Council ,Provisions,Debit,20.00,tesco store 3439,16/07/2018,"Children, Families & Cultural Services "
Nottinghamshire County Council ,DBS Checks,Debit,20.00,tesco store 2964,16/07/2018,"Children, Families & Cultural Services "
Nottinghamshire County Council ,Office / General Equipment,Debit,13.24,fast key services limi,16/07/2018,Resources
Nottinghamshire County Council ,Housing/Accommodation Financial Support,Debit,87.50,bridleways guest house,16/07/2018,"Children, Families & Cultural Services "
Nottinghamshire County Council ,Other Fees & Services,Debit,150.50,tvlicensing.co.uk,16/07/2018,"Children, Families & Cultural Services "
Nottinghamshire County Council ,Postages,Debit,6.45,post office counter,16/07/2018,"Adult Social Care, Health & Public Protection "
Nottinghamshire County Council ,Provisions,Debit,3.60,poundworld retail,16/07/2018,"Children, Families & Cultural Services "
Nottinghamshire County Council ,Provisions,Debit,3.80,tesco stores 6226,16/07/2018,"Children, Families & Cultural Services "
Nottinghamshire County Council ,Books - General,Debit,39.00,riba services,16/07/2018,"Adult Social Care, Health & Public Protection "
Nottinghamshire County Council ,Provisions,Debit,13.69,tesco stores 2702,16/07/2018,"Children, Families & Cultural Services "
Nottinghamshire County Council ,Provisions,Debit,10.74,wm morrisons,16/07/2018,"Adult Social Care, Health & Public Protection "
Nottinghamshire County Council ,Provisions,Debit,103.98,asda groceries online,16/07/2018,"Adult Social Care, Health & Public Protection "
Nottinghamshire County Council ,Provisions,Debit,9.68,co-op group 065071,16/07/2018,"Children, Families & Cultural Services "
Nottinghamshire County Council ,Provisions,Debit,72.20,js online grocery,16/07/2018,"Children, Families & Cultural Services "
Nottinghamshire County Council ,Rail / Tube Fares,Debit,100.00,trent barton,16/07/2018,Place
Nottinghamshire County Council ,Provisions,Debit,5.00,wm morrisons,16/07/2018,"Children, Families & Cultural Services "
Nottinghamshire County Council ,Provisions,Debit,12.25,wm morrisons,16/07/2018,"Children, Families & Cultural Services "
Nottinghamshire County Council ,Provisions,Debit,29.71,tesco stores 5437,16/07/2018,"Children, Families & Cultural Services "
Nottinghamshire County Council ,Provisions,Debit,17.71,tesco stores 2995,16/07/2018,"Children, Families & Cultural Services "
Nottinghamshire County Council ,Office / General Equipment,Debit,20.00,www.my.morrisons.c,16/07/2018,Resources
Nottinghamshire County Council ,Stationery,Debit,39.80,the book people,16/07/2018,Place
Nottinghamshire County Council ,Provisions,Debit,8.40,wilko retail limit,17/07/2018,"Children, Families & Cultural Services "
Nottinghamshire County Council ,Provisions,Debit,15.00,bm retail ltd,17/07/2018,"Children, Families & Cultural Services "
Nottinghamshire County Council ,Minor Works,Debit,7.85,sainsburys s/mkt,17/07/2018,"Children, Families & Cultural Services "
Nottinghamshire County Council ,Unplanned Needs and Financial Support,Debit,7.00,tesco stores 5437,17/07/2018,"Children, Families & Cultural Services "
Nottinghamshire County Council ,Provisions,Debit,13.50,sainsburys smkt,17/07/2018,"Children, Families & Cultural Services "
Nottinghamshire County Council ,Specialist Equipment,Debit,307.80,chiltern invadex,17/07/2018,"Children, Families & Cultural Services "
Nottinghamshire County Council ,Leaving Care - Home Establishment Grant,Debit,199.99,currys,17/07/2018,"Children, Families & Cultural Services "
Nottinghamshire County Council ,Teaching Equipment,Debit,3.45,the post office,17/07/2018,"Children, Families & Cultural Services "
Nottinghamshire County Council ,Legal Fees,Debit,77.00,www.moneyclaim.gov,17/07/2018,Resources
Nottinghamshire County Council ,Legal Fees,Debit,595.65,broadbents solicitors,17/07/2018,"Children, Families & Cultural Services "
Nottinghamshire County Council ,Legal Fees,Debit,600.00,broadbents solicitors,17/07/2018,"Children, Families & Cultural Services "
Nottinghamshire County Council ,Other Fees & Services,Debit,45.00,orchard house veterina,17/07/2018,"Adult Social Care, Health & Public Protection "
Nottinghamshire County Council ,Stationery,Debit,1.50,royal mail charges,17/07/2018,"Adult Social Care, Health & Public Protection "
Nottinghamshire County Council ,Stationery,Debit,1.50,royal mail charges,17/07/2018,"Adult Social Care, Health & Public Protection "
Nottinghamshire County Council ,Legal Fees,Debit,52.20,logmein gotomeeting,17/07/2018,Resources
Nottinghamshire County Council ,Office / General Equipment,Debit,26.00,dsa theory test,17/07/2018,Place
Nottinghamshire County Council ,Office / General Equipment,Debit,11.00,dsa theory test,17/07/2018,Place
Nottinghamshire County Council ,Provisions,Debit,26.95,amazon uk retail,17/07/2018,"Children, Families & Cultural Services "
Nottinghamshire County Council ,Provisions,Debit,12.70,meden vale plaice,17/07/2018,"Children, Families & Cultural Services "
Nottinghamshire County Council ,Personal Needs,Credi,-191.96,argos retail group,17/07/2018,"Children, Families & Cultural Services "
Nottinghamshire County Council ,Personal Needs,Debit,191.96,argos retail group,17/07/2018,"Children, Families & Cultural Services "
Nottinghamshire County Council ,Provisions,Debit,16.59,asda  stores 4201,17/07/2018,"Children, Families & Cultural Services "
Nottinghamshire County Council ,Training Fees,Debit,2.83,amazon uk marketplace,17/07/2018,"Adult Social Care, Health & Public Protection "
Nottinghamshire County Council ,Training Fees,Debit,1.70,amazon uk marketplace,17/07/2018,"Adult Social Care, Health & Public Protection "
Nottinghamshire County Council ,Provisions,Debit,13.74,tesco stores 5437,17/07/2018,"Children, Families & Cultural Services "
Nottinghamshire County Council ,Provisions,Debit,17.12,home bargains worksop,17/07/2018,"Children, Families & Cultural Services "
Nottinghamshire County Council ,Provisions,Debit,87.53,farmfoods- worksop,17/07/2018,"Children, Families & Cultural Services "
Nottinghamshire County Council ,Provisions,Debit,171.84,ethicstarlt,17/07/2018,"Children, Families & Cultural Services "
Nottinghamshire County Council ,Family Financial Assistance,Debit,406.93,www.argos.co.uk,17/07/2018,"Children, Families & Cultural Services "
Nottinghamshire County Council ,Family Financial Assistance,Debit,79.99,www.argos.co.uk,17/07/2018,"Children, Families & Cultural Services "
Nottinghamshire County Council ,Provisions,Debit,4.80,wilko retail limit,17/07/2018,"Children, Families & Cultural Services "
Nottinghamshire County Council ,Provisions,Debit,4.50,w m morrison plc,17/07/2018,"Children, Families & Cultural Services "
Nottinghamshire County Council ,Minor Works,Debit,370.00,rab  lowe alpine,17/07/2018,"Children, Families & Cultural Services "
Nottinghamshire County Council ,Minor Works,Debit,65.34,tesco stores 3378,17/07/2018,"Children, Families & Cultural Services "
Nottinghamshire County Council ,Provisions,Debit,13.60,asda stores 4474,17/07/2018,"Children, Families & Cultural Services "
Nottinghamshire County Council ,Unplanned Needs and Financial Support,Debit,8.50,framework housing asso,17/07/2018,"Children, Families & Cultural Services "
Nottinghamshire County Council ,Leaving Care - Home Establishment Grant,Debit,199.00,ao retail limited,17/07/2018,"Children, Families & Cultural Services "
Nottinghamshire County Council ,Leaving Care - Home Establishment Grant,Debit,224.00,ao retail limited,17/07/2018,"Children, Families & Cultural Services "
Nottinghamshire County Council ,Leaving Care - Home Establishment Grant,Debit,175.00,ao retail limited,17/07/2018,"Children, Families & Cultural Services "
Nottinghamshire County Council ,Office / General Equipment,Debit,41.99,amazon uk marketplace,17/07/2018,"Adult Social Care, Health & Public Protection "
Nottinghamshire County Council ,Housing/Accommodation Financial Support,Debit,209.50,premier inn 44535095,17/07/2018,"Children, Families & Cultural Services "
Nottinghamshire County Council ,Activities & Support,Debit,150.50,tvlicensing.co.uk,17/07/2018,Resources
Nottinghamshire County Council ,Unplanned Needs and Financial Support,Debit,12.79,boots 6552,17/07/2018,"Children, Families & Cultural Services "
Nottinghamshire County Council ,Unplanned Needs and Financial Support,Debit,9.75,costa coffee 43040360,17/07/2018,"Children, Families & Cultural Services "
Nottinghamshire County Council ,Provisions,Debit,9.57,asda superstore 04261,17/07/2018,"Children, Families & Cultural Services "
Nottinghamshire County Council ,Provisions,Debit,29.64,tesco stores 5437,17/07/2018,"Children, Families & Cultural Services "
Nottinghamshire County Council ,Activities & Support,Credi,-23.40,gro hm passport office,17/07/2018,"Children, Families & Cultural Services "
Nottinghamshire County Council ,Activities & Support,Credi,-46.80,gro hm passport office,17/07/2018,"Children, Families & Cultural Services "
Nottinghamshire County Council ,Activities & Support,Debit,70.20,gro hm passport office,17/07/2018,"Children, Families & Cultural Services "
Nottinghamshire County Council ,Provisions,Debit,35.38,tesco stores 5437,17/07/2018,"Children, Families & Cultural Services "
Nottinghamshire County Council ,Provisions,Debit,243.22,amazon uk retail,17/07/2018,"Children, Families & Cultural Services "
Nottinghamshire County Council ,Leaving Care - Home Establishment Grant,Debit,300.00,hidden sport lounge,17/07/2018,"Children, Families & Cultural Services "
Nottinghamshire County Council ,Provisions,Debit,4.00,one stop 2698,17/07/2018,"Adult Social Care, Health & Public Protection "
Nottinghamshire County Council ,Provisions,Debit,41.06,co-op group food,17/07/2018,"Children, Families & Cultural Services "
Nottinghamshire County Council ,Provisions,Debit,1.99,the range,17/07/2018,"Children, Families & Cultural Services "
Nottinghamshire County Council ,Provisions,Debit,4.14,sainsburys s/mkts,17/07/2018,"Children, Families & Cultural Services "
Nottinghamshire County Council ,Cleaning Materials,Debit,142.25,moorcroft seafoods limit,17/07/2018,"Adult Social Care, Health & Public Protection "
Nottinghamshire County Council ,Personal Needs,Debit,13.99,sportsdirect.com,17/07/2018,"Children, Families & Cultural Services "
Nottinghamshire County Council ,Personal Needs,Debit,45.00,www.asos.com,17/07/2018,"Children, Families & Cultural Services "
Nottinghamshire County Council ,Personal Needs,Debit,21.00,21three clothing compa,17/07/2018,"Children, Families & Cultural Services "
Nottinghamshire County Council ,Office / General Equipment,Debit,3.50,w m morrison plc,17/07/2018,Resources
Nottinghamshire County Council ,Personal Needs,Debit,1.89,mcdonalds,17/07/2018,"Children, Families & Cultural Services "
Nottinghamshire County Council ,Provisions,Debit,124.13,booker limited mansfield,17/07/2018,"Children, Families & Cultural Services "
Nottinghamshire County Council ,Provisions,Debit,4.00,sainsburys s/mkts,17/07/2018,"Children, Families & Cultural Services "
Nottinghamshire County Council ,Provisions,Debit,23.78,wm morrisons plc,17/07/2018,"Children, Families & Cultural Services "
Nottinghamshire County Council ,Provisions,Debit,15.20,tesco store 3439,17/07/2018,"Children, Families & Cultural Services "
Nottinghamshire County Council ,Fixtures & Fittings,Debit,245.20,gailarde ltd,18/07/2018,"Adult Social Care, Health & Public Protection "
Nottinghamshire County Council ,Provisions,Debit,79.18,w m morrisons.com,18/07/2018,"Adult Social Care, Health & Public Protection "
Nottinghamshire County Council ,Minor Works,Debit,7.80,terratruck distrib,18/07/2018,"Children, Families & Cultural Services "
Nottinghamshire County Council ,Provisions,Debit,3.30,co op food,18/07/2018,"Children, Families & Cultural Services "
Nottinghamshire County Council ,Provisions,Debit,32.82,dominos pizza 28232,18/07/2018,"Children, Families & Cultural Services "
Nottinghamshire County Council ,Personal Needs,Debit,7.44,amazon svcs eu-uk amazon,18/07/2018,"Children, Families & Cultural Services "
Nottinghamshire County Council ,Legal Fees,Debit,60.00,www.moneyclaim.gov,18/07/2018,Resources
Nottinghamshire County Council ,Other Fees & Services,Debit,29.97,hpi check,18/07/2018,"Adult Social Care, Health & Public Protection "
Nottinghamshire County Council ,Other Fees & Services,Debit,29.97,hpi check,18/07/2018,"Adult Social Care, Health & Public Protection "
Nottinghamshire County Council ,Other Fees & Services,Debit,29.97,hpi check,18/07/2018,"Adult Social Care, Health & Public Protection "
Nottinghamshire County Council ,Activities & Support,Debit,6.62,home bargains,18/07/2018,Resources
Nottinghamshire County Council ,Legal Fees,Debit,14.00,leic city council,18/07/2018,Resources
Nottinghamshire County Council ,Provisions,Debit,10.02,aldi 98 779,18/07/2018,"Children, Families & Cultural Services "
Nottinghamshire County Council ,Training Fees,Debit,2.39,amazon uk marketplace,18/07/2018,"Adult Social Care, Health & Public Protection "
Nottinghamshire County Council ,Training Fees,Debit,13.98,amazon uk marketplace,18/07/2018,"Adult Social Care, Health & Public Protection "
Nottinghamshire County Council ,Training Fees,Credi,-2.83,amz fancy dress worldw,18/07/2018,"Adult Social Care, Health & Public Protection "
Nottinghamshire County Council ,Provisions,Debit,49.20,eti ltd,18/07/2018,"Adult Social Care, Health & Public Protection "
Nottinghamshire County Council ,Provisions,Debit,19.75,tesco stores 2995,18/07/2018,"Adult Social Care, Health & Public Protection "
Nottinghamshire County Council ,Office / General Equipment,Debit,129.61,eb  a disorder for eve,18/07/2018,"Children, Families & Cultural Services "
Nottinghamshire County Council ,Provisions,Debit,6.50,wilko retail limit,18/07/2018,"Children, Families & Cultural Services "
Nottinghamshire County Council ,Provisions,Debit,15.98,amazon uk marketplace,18/07/2018,"Children, Families & Cultural Services "
Nottinghamshire County Council ,Provisions,Debit,1.99,bm retail ltd,18/07/2018,"Children, Families & Cultural Services "
Nottinghamshire County Council ,Provisions,Debit,9.48,the range,18/07/2018,"Children, Families & Cultural Services "
Nottinghamshire County Council ,Provisions,Debit,10.65,amazon uk marketplace,18/07/2018,"Children, Families & Cultural Services "
Nottinghamshire County Council ,Provisions,Debit,14.81,asda superstore,18/07/2018,"Children, Families & Cultural Services "
Nottinghamshire County Council ,Provisions,Debit,2.99,farmfoods- kirkby/,18/07/2018,"Children, Families & Cultural Services "
Nottinghamshire County Council ,Provisions,Debit,2.74,w m morrison plc,18/07/2018,"Children, Families & Cultural Services "
Nottinghamshire County Council ,Unplanned Needs and Financial Support,Debit,27.48,wm morrisons,18/07/2018,"Children, Families & Cultural Services "
Nottinghamshire County Council ,Unplanned Needs and Financial Support,Debit,245.00,pp apple wood,18/07/2018,"Children, Families & Cultural Services "
Nottinghamshire County Council ,Minor Works,Debit,18.99,amazon uk marketplace,18/07/2018,"Children, Families & Cultural Services "
Nottinghamshire County Council ,Minor Works,Debit,20.90,amazon uk marketplace,18/07/2018,"Children, Families & Cultural Services "
Nottinghamshire County Council ,Provisions,Debit,2.74,w m morrison plc,18/07/2018,"Children, Families & Cultural Services "
Nottinghamshire County Council ,Provisions,Debit,10.96,the range,18/07/2018,"Children, Families & Cultural Services "
Nottinghamshire County Council ,Provisions,Debit,17.30,poundstretcher 136,18/07/2018,"Children, Families & Cultural Services "
Nottinghamshire County Council ,Activities & Support,Debit,1.78,mcdonalds,18/07/2018,"Children, Families & Cultural Services "
Nottinghamshire County Council ,Activities & Support,Debit,2.49,w boyes  co ltd,18/07/2018,"Children, Families & Cultural Services "
Nottinghamshire County Council ,Activities & Support,Debit,12.91,aldi,18/07/2018,"Children, Families & Cultural Services "
Nottinghamshire County Council ,DBS Checks,Debit,20.00,tesco stores 5379,18/07/2018,"Children, Families & Cultural Services "
Nottinghamshire County Council ,Provisions,Debit,39.17,aldi 39 779,18/07/2018,"Children, Families & Cultural Services "
Nottinghamshire County Council ,Training Fees,Debit,60.00,cptevents.co.uk,18/07/2018,Place
Nottinghamshire County Council ,Provisions,Debit,27.62,amazon eu amazon.co.uk,18/07/2018,"Adult Social Care, Health & Public Protection "
Nottinghamshire County Council ,Provisions,Debit,8.11,amazon eu amazon.co.uk,18/07/2018,"Adult Social Care, Health & Public Protection "
Nottinghamshire County Council ,Provisions,Debit,14.04,amazon svcs eu-uk amazon,18/07/2018,"Adult Social Care, Health & Public Protection "
Nottinghamshire County Council ,Provisions,Debit,86.81,wm morrison food.com,18/07/2018,"Adult Social Care, Health & Public Protection "
Nottinghamshire County Council ,Office / General Equipment,Debit,4.62,asda superstore 04030,18/07/2018,"Adult Social Care, Health & Public Protection "
Nottinghamshire County Council ,Provisions,Debit,16.89,iceland,18/07/2018,Place
Nottinghamshire County Council ,Unplanned Needs and Financial Support,Debit,6.82,mcdonalds,18/07/2018,"Children, Families & Cultural Services "
Nottinghamshire County Council ,Provisions,Debit,30.00,amz uk digital dwnload,18/07/2018,"Children, Families & Cultural Services "
Nottinghamshire County Council ,Provisions,Debit,22.37,co-op group 065071,18/07/2018,"Children, Families & Cultural Services "
Nottinghamshire County Council ,Provisions,Debit,3.00,co-op group 065071,18/07/2018,"Children, Families & Cultural Services "
Nottinghamshire County Council ,Provisions,Debit,8.69,aldi 68 779,18/07/2018,"Children, Families & Cultural Services "
Nottinghamshire County Council ,Other Fees & Services,Debit,150.50,tvlicensing.co.uk,18/07/2018,"Children, Families & Cultural Services "
Nottinghamshire County Council ,Cleaning Materials,Debit,136.92,www.argos.co.uk,18/07/2018,"Adult Social Care, Health & Public Protection "
Nottinghamshire County Council ,Personal Needs,Debit,28.50,primark,18/07/2018,"Children, Families & Cultural Services "
Nottinghamshire County Council ,Personal Needs,Debit,45.01,select - mansfield 2,18/07/2018,"Children, Families & Cultural Services "
Nottinghamshire County Council ,Personal Needs,Debit,2.00,poundland ltd 1333,18/07/2018,"Children, Families & Cultural Services "
Nottinghamshire County Council ,Personal Needs,Debit,2.00,sainsburys s/mkts,18/07/2018,"Children, Families & Cultural Services "
Nottinghamshire County Council ,Provisions,Debit,31.05,tesco stores 2995,18/07/2018,"Children, Families & Cultural Services "
Nottinghamshire County Council ,Unplanned Needs and Financial Support,Debit,7.75,sainsburys s/mkts,18/07/2018,"Children, Families & Cultural Services "
Nottinghamshire County Council ,Provisions,Debit,14.09,booker limited mansfield,18/07/2018,"Children, Families & Cultural Services "
Nottinghamshire County Council ,Aids & Appliances,Debit,78.44,the handicentre,19/07/2018,"Children, Families & Cultural Services "
Nottinghamshire County Council ,Unplanned Needs and Financial Support,Debit,2.40,asda  stores 4201,19/07/2018,"Children, Families & Cultural Services "
Nottinghamshire County Council ,Provisions,Debit,6.75,heron foods ltd,19/07/2018,"Children, Families & Cultural Services "
Nottinghamshire County Council ,Provisions,Debit,5.52,aldi 95 779,19/07/2018,"Children, Families & Cultural Services "
Nottinghamshire County Council ,Minor Works,Debit,6.44,malthurst petroleu,19/07/2018,"Children, Families & Cultural Services "
Nottinghamshire County Council ,Minor Works,Debit,2.09,tesco stores 5359,19/07/2018,"Children, Families & Cultural Services "
Nottinghamshire County Council ,Unplanned Needs and Financial Support,Debit,123.00,asda  stores 4201,19/07/2018,"Children, Families & Cultural Services "
Nottinghamshire County Council ,Unplanned Needs and Financial Support,Debit,13.94,tesco stores (5378),19/07/2018,"Children, Families & Cultural Services "
Nottinghamshire County Council ,Unplanned Needs and Financial Support,Debit,16.50,wilko retail limit,19/07/2018,"Children, Families & Cultural Services "
Nottinghamshire County Council ,Leaving Care - Home Establishment Grant,Debit,150.50,tvlicensing.co.uk,19/07/2018,"Children, Families & Cultural Services "
Nottinghamshire County Council ,Legal Fees,Debit,3.00,land registry,19/07/2018,Resources
Nottinghamshire County Council ,Other Fees & Services,Debit,29.97,hpi ltd mail order,19/07/2018,"Adult Social Care, Health & Public Protection "
Nottinghamshire County Council ,Legal Fees,Debit,27.09,amazon uk marketplace,19/07/2018,Resources
Nottinghamshire County Council ,Cleaning Materials,Debit,12.77,amazon uk marketplace,19/07/2018,"Adult Social Care, Health & Public Protection "
Nottinghamshire County Council ,Office / General Equipment,Debit,988.80,www.safelincs.co.uk,19/07/2018,"Children, Families & Cultural Services "
Nottinghamshire County Council ,Building Maintenance,Debit,9.64,screwfix direct,19/07/2018,"Children, Families & Cultural Services "
Nottinghamshire County Council ,Building Maintenance,Debit,7.99,screwfix direct,19/07/2018,"Children, Families & Cultural Services "
Nottinghamshire County Council ,Provisions,Debit,4.79,bowbridge road gro,19/07/2018,"Children, Families & Cultural Services "
Nottinghamshire County Council ,Provisions,Debit,12.98,the range-newark,19/07/2018,"Children, Families & Cultural Services "
Nottinghamshire County Council ,Provisions,Debit,10.64,bowbridge road gro,19/07/2018,"Children, Families & Cultural Services "
Nottinghamshire County Council ,Provisions,Debit,15.16,mcdonalds,19/07/2018,"Children, Families & Cultural Services "
Nottinghamshire County Council ,Other Fees & Services,Debit,11.00,ncc card payment inter,19/07/2018,"Children, Families & Cultural Services "
Nottinghamshire County Council ,Other Fees & Services,Debit,11.00,doncaster mbc,19/07/2018,"Children, Families & Cultural Services "
Nottinghamshire County Council ,Office / General Equipment,Credi,-30.79,amz dnewton123,19/07/2018,"Children, Families & Cultural Services "
Nottinghamshire County Council ,Leaving Care - Home Establishment Grant,Debit,150.50,tvlicensing.co.uk,19/07/2018,"Children, Families & Cultural Services "
Nottinghamshire County Council ,Office / General Equipment,Debit,150.50,tvlicensing.co.uk,19/07/2018,Place
Nottinghamshire County Council ,Provisions,Debit,6.05,farmfoods- woodhou,19/07/2018,"Children, Families & Cultural Services "
Nottinghamshire County Council ,Computer Equipment,Debit,11.59,amazon uk marketplace,19/07/2018,Resources
Nottinghamshire County Council ,Provisions,Debit,14.31,w m morrison plc,19/07/2018,"Children, Families & Cultural Services "
Nottinghamshire County Council ,Personal Needs,Debit,5.99,argos mansfield,19/07/2018,"Children, Families & Cultural Services "
Nottinghamshire County Council ,Unplanned Needs and Financial Support,Debit,18.00,sainsburys s/mkt,19/07/2018,"Children, Families & Cultural Services "
Nottinghamshire County Council ,Provisions,Debit,48.57,dominos pizza uk  irela,19/07/2018,"Children, Families & Cultural Services "
Nottinghamshire County Council ,Provisions,Debit,51.05,poundstretcher 136,19/07/2018,"Children, Families & Cultural Services "
Nottinghamshire County Council ,Activities & Support,Debit,10.90,tesco stores 2995,19/07/2018,"Children, Families & Cultural Services "
Nottinghamshire County Council ,Provisions,Debit,75.86,paypal  plasticman,19/07/2018,"Children, Families & Cultural Services "
Nottinghamshire County Council ,Provisions,Debit,59.92,amazon uk marketplace,19/07/2018,"Children, Families & Cultural Services "
Nottinghamshire County Council ,Provisions,Debit,95.76,www.ukpos.com,19/07/2018,"Children, Families & Cultural Services "
Nottinghamshire County Council ,Provisions,Debit,10.00,wm morrisons,19/07/2018,"Children, Families & Cultural Services "
Nottinghamshire County Council ,Provisions,Debit,9.17,misterton foodstre,19/07/2018,"Children, Families & Cultural Services "
Nottinghamshire County Council ,Leaving Care - Home Establishment Grant,Debit,10.24,fultons foods,19/07/2018,"Children, Families & Cultural Services "
Nottinghamshire County Council ,Leaving Care - Home Establishment Grant,Debit,6.69,tesco stores 5329,19/07/2018,"Children, Families & Cultural Services "
Nottinghamshire County Council ,Leaving Care - Home Establishment Grant,Debit,343.95,argos ltd,19/07/2018,"Children, Families & Cultural Services "
Nottinghamshire County Council ,Leaving Care - Home Establishment Grant,Debit,29.99,argos ltd,19/07/2018,"Children, Families & Cultural Services "
Nottinghamshire County Council ,Leaving Care - Home Establishment Grant,Debit,8.68,mcdonalds,19/07/2018,"Children, Families & Cultural Services "
Nottinghamshire County Council ,Housing/Accommodation Financial Support,Debit,87.50,premier inn 44535095,19/07/2018,"Children, Families & Cultural Services "
Nottinghamshire County Council ,Provisions,Debit,19.46,farmfoods- baldert,19/07/2018,"Children, Families & Cultural Services "
Nottinghamshire County Council ,Provisions,Debit,18.94,farmfoods- baldert,19/07/2018,"Children, Families & Cultural Services "
Nottinghamshire County Council ,Provisions,Debit,7.12,iceland,19/07/2018,"Children, Families & Cultural Services "
Nottinghamshire County Council ,Personal Needs,Debit,2.00,asda superstore 04261,19/07/2018,"Children, Families & Cultural Services "
Nottinghamshire County Council ,Personal Needs,Debit,3.00,asda superstore 04261,19/07/2018,"Children, Families & Cultural Services "
Nottinghamshire County Council ,Provisions,Debit,3.30,wm morrisons plc,19/07/2018,"Children, Families & Cultural Services "
Nottinghamshire County Council ,Office / General Equipment,Debit,12.60,asda superstore 04261,19/07/2018,"Children, Families & Cultural Services "
Nottinghamshire County Council ,Provisions,Debit,44.00,primark,19/07/2018,"Children, Families & Cultural Services "
Nottinghamshire County Council ,Provisions,Debit,8.75,amazon svcs eu-uk amazon,19/07/2018,"Adult Social Care, Health & Public Protection "
Nottinghamshire County Council ,Provisions,Debit,7.98,amazon eu amazon.co.uk,19/07/2018,"Adult Social Care, Health & Public Protection "
Nottinghamshire County Council ,Provisions,Debit,4.21,amazon svcs eu-uk amazon,19/07/2018,"Adult Social Care, Health & Public Protection "
Nottinghamshire County Council ,Provisions,Debit,9.75,amazon svcs eu-uk amazon,19/07/2018,"Adult Social Care, Health & Public Protection "
Nottinghamshire County Council ,Provisions,Debit,2.89,amazon svcs eu-uk amazon,19/07/2018,"Adult Social Care, Health & Public Protection "
Nottinghamshire County Council ,Provisions,Debit,9.50,amazon svcs eu-uk amazon,19/07/2018,"Adult Social Care, Health & Public Protection "
Nottinghamshire County Council ,Provisions,Debit,9.95,amazon svcs eu-uk amazon,19/07/2018,"Adult Social Care, Health & Public Protection "
Nottinghamshire County Council ,Provisions,Debit,2.39,amazon svcs eu-uk amazon,19/07/2018,"Adult Social Care, Health & Public Protection "
Nottinghamshire County Council ,Provisions,Debit,11.95,amazon svcs eu-uk amazon,19/07/2018,"Adult Social Care, Health & Public Protection "
Nottinghamshire County Council ,Provisions,Debit,2.40,amazon svcs eu-uk amazon,19/07/2018,"Adult Social Care, Health & Public Protection "
Nottinghamshire County Council ,Provisions,Debit,3.70,amazon svcs eu-uk amazon,19/07/2018,"Adult Social Care, Health & Public Protection "
Nottinghamshire County Council ,Provisions,Debit,159.80,asda groceries online,19/07/2018,"Adult Social Care, Health & Public Protection "
Nottinghamshire County Council ,Provisions,Debit,2.53,asda groceries online,19/07/2018,"Adult Social Care, Health & Public Protection "
Nottinghamshire County Council ,Office / General Equipment,Debit,8.86,wickes mansfield,19/07/2018,"Children, Families & Cultural Services "
Nottinghamshire County Council ,Leaving Care - Home Establishment Grant,Debit,422.99,www.coopelectrical,19/07/2018,"Children, Families & Cultural Services "
Nottinghamshire County Council ,Office / General Equipment,Debit,30.00,musters medical pract,19/07/2018,"Children, Families & Cultural Services "
Nottinghamshire County Council ,Provisions,Debit,15.69,co-op group 070330,19/07/2018,"Children, Families & Cultural Services "
Nottinghamshire County Council ,Provisions,Debit,15.89,asda superstore,19/07/2018,"Children, Families & Cultural Services "
Nottinghamshire County Council ,Provisions,Debit,3.24,aldi 68 779,19/07/2018,"Children, Families & Cultural Services "
Nottinghamshire County Council ,Leaving Care - Home Establishment Grant,Debit,494.00,beds direct trades,19/07/2018,"Children, Families & Cultural Services "
Nottinghamshire County Council ,Office / General Equipment,Debit,39.53,safetybootsuk,19/07/2018,Place
Nottinghamshire County Council ,Provisions,Debit,"1,216.00",drayton manor park limit,19/07/2018,"Children, Families & Cultural Services "
Nottinghamshire County Council ,Provisions,Debit,14.58,asda superstore,19/07/2018,"Children, Families & Cultural Services "
Nottinghamshire County Council ,Provisions,Debit,20.54,tesco stores 2995,19/07/2018,"Children, Families & Cultural Services "
Nottinghamshire County Council ,Provisions,Debit,7.00,wilko retail limit,19/07/2018,"Children, Families & Cultural Services "
Nottinghamshire County Council ,Unplanned Needs and Financial Support,Debit,5.45,the crimson tree,19/07/2018,"Children, Families & Cultural Services "
Nottinghamshire County Council ,Unplanned Needs and Financial Support,Debit,648.28,appliancedirect co,19/07/2018,"Children, Families & Cultural Services "
Nottinghamshire County Council ,Non-Employees medical fees,Debit,140.00,helm tickets,19/07/2018,Resources
Nottinghamshire County Council ,Clothing/Shoes/Uniforms,Debit,9.63,amazon uk marketplace,20/07/2018,"Children, Families & Cultural Services "
Nottinghamshire County Council ,Clothing/Shoes/Uniforms,Credi,-14.00,tesco direct,20/07/2018,"Children, Families & Cultural Services "
Nottinghamshire County Council ,Clothing/Shoes/Uniforms,Credi,-14.00,tesco direct,20/07/2018,"Children, Families & Cultural Services "
Nottinghamshire County Council ,Clothing/Shoes/Uniforms,Debit,10.34,amazon uk marketplace,20/07/2018,"Children, Families & Cultural Services "
Nottinghamshire County Council ,Provisions,Debit,69.44,w m morrisons.com,20/07/2018,"Adult Social Care, Health & Public Protection "
Nottinghamshire County Council ,Cleaning Materials,Debit,12.96,w m morrisons.com,20/07/2018,"Adult Social Care, Health & Public Protection "
Nottinghamshire County Council ,Provisions,Debit,2.99,asda stores 4517,20/07/2018,"Children, Families & Cultural Services "
Nottinghamshire County Council ,Provisions,Debit,21.95,asda stores 4517,20/07/2018,"Children, Families & Cultural Services "
Nottinghamshire County Council ,Activities & Support,Debit,150.50,tvlicensing.co.uk,20/07/2018,Resources
Nottinghamshire County Council ,Provisions,Debit,7.00,sainsburys s/mkts,20/07/2018,"Children, Families & Cultural Services "
Nottinghamshire County Council ,Provisions,Debit,13.14,sainsburys smkt,20/07/2018,"Children, Families & Cultural Services "
Nottinghamshire County Council ,Office / General Equipment,Debit,25.08,amazon svcs eu-uk amazon,20/07/2018,"Children, Families & Cultural Services "
Nottinghamshire County Council ,Provisions,Debit,16.00,sportsdirect 236,20/07/2018,"Children, Families & Cultural Services "
Nottinghamshire County Council ,Training Fees,Debit,30.25,amazon uk marketplace,20/07/2018,"Adult Social Care, Health & Public Protection "
Nottinghamshire County Council ,Cleaning Materials,Debit,8.00,sainsburys s/mkts,20/07/2018,"Children, Families & Cultural Services "
Nottinghamshire County Council ,Provisions,Debit,47.11,aldi 39 779,20/07/2018,"Children, Families & Cultural Services "
Nottinghamshire County Council ,Office / General Equipment,Debit,24.97,b  m retail,20/07/2018,"Children, Families & Cultural Services "
Nottinghamshire County Council ,Office / General Equipment,Debit,31.79,amazon uk marketplace,20/07/2018,"Children, Families & Cultural Services "
Nottinghamshire County Council ,Provisions,Debit,79.40,aldi stores,20/07/2018,"Children, Families & Cultural Services "
Nottinghamshire County Council ,Provisions,Debit,10.50,aldi,20/07/2018,"Adult Social Care, Health & Public Protection "
Nottinghamshire County Council ,Provisions,Debit,7.00,iceland,20/07/2018,"Children, Families & Cultural Services "
Nottinghamshire County Council ,Provisions,Debit,24.00,wilko retail limit,20/07/2018,"Children, Families & Cultural Services "
Nottinghamshire County Council ,Provisions,Debit,12.05,aldi 28 779,20/07/2018,"Children, Families & Cultural Services "
Nottinghamshire County Council ,Provisions,Debit,39.15,aldi 28 779,20/07/2018,"Children, Families & Cultural Services "
Nottinghamshire County Council ,Provisions,Debit,29.37,w m morrison plc,20/07/2018,"Children, Families & Cultural Services "
Nottinghamshire County Council ,Legal Fees,Debit,77.00,www.moneyclaim.gov,20/07/2018,Resources
Nottinghamshire County Council ,Minor Works,Debit,227.70,tesco stores 3378,20/07/2018,"Children, Families & Cultural Services "
Nottinghamshire County Council ,Provisions,Debit,99.96,amazon uk marketplace,20/07/2018,"Children, Families & Cultural Services "
Nottinghamshire County Council ,Other Fees & Services,Debit,5.00,ncc card payment inter,20/07/2018,"Children, Families & Cultural Services "
Nottinghamshire County Council ,Activities & Support,Debit,5.17,aldi,20/07/2018,"Children, Families & Cultural Services "
Nottinghamshire County Council ,Activities & Support,Debit,12.72,amazon uk marketplace,20/07/2018,"Adult Social Care, Health & Public Protection "
Nottinghamshire County Council ,Activities & Support,Debit,16.26,amazon uk marketplace,20/07/2018,"Adult Social Care, Health & Public Protection "
Nottinghamshire County Council ,Activities & Support,Debit,18.47,amazon uk marketplace,20/07/2018,"Adult Social Care, Health & Public Protection "
Nottinghamshire County Council ,Housing/Accommodation Financial Support,Debit,181.50,travelodge gb0000,20/07/2018,"Children, Families & Cultural Services "
Nottinghamshire County Council ,Provisions,Debit,13.30,tesco stores 2995,20/07/2018,"Children, Families & Cultural Services "
Nottinghamshire County Council ,Unplanned Needs and Financial Support,Debit,5.36,mcdonalds,20/07/2018,"Children, Families & Cultural Services "
Nottinghamshire County Council ,Unplanned Needs and Financial Support,Debit,19.49,boots 6610,20/07/2018,"Children, Families & Cultural Services "
Nottinghamshire County Council ,Provisions,Debit,10.37,tesco stores 5437,20/07/2018,"Children, Families & Cultural Services "
Nottinghamshire County Council ,Activities & Support,Credi,-23.40,gro hm passport office,20/07/2018,"Children, Families & Cultural Services "
Nottinghamshire County Council ,Activities & Support,Debit,70.20,gro hm passport office,20/07/2018,"Children, Families & Cultural Services "
Nottinghamshire County Council ,Activities & Support,Debit,29.25,wm morrison store,20/07/2018,"Children, Families & Cultural Services "
Nottinghamshire County Council ,Books - General,Debit,48.78,amazon svcs eu-uk amazon,20/07/2018,"Adult Social Care, Health & Public Protection "
Nottinghamshire County Council ,Provisions,Debit,2.98,amazon svcs eu-uk amazon,20/07/2018,"Adult Social Care, Health & Public Protection "
Nottinghamshire County Council ,Provisions,Debit,17.98,amazon uk marketplace,20/07/2018,"Adult Social Care, Health & Public Protection "
Nottinghamshire County Council ,Provisions,Debit,21.79,iceland,20/07/2018,"Children, Families & Cultural Services "
Nottinghamshire County Council ,Provisions,Credi,-1.75,js online grocery,20/07/2018,"Children, Families & Cultural Services "
Nottinghamshire County Council ,Provisions,Debit,97.20,js online grocery,20/07/2018,"Children, Families & Cultural Services "
Nottinghamshire County Council ,Provisions,Debit,13.60,tesco stores 2995,20/07/2018,"Children, Families & Cultural Services "
Nottinghamshire County Council ,Provisions,Debit,4.10,one stop 2353,20/07/2018,"Children, Families & Cultural Services "
Nottinghamshire County Council ,Building Maintenance,Debit,59.92,amazon uk marketplace,20/07/2018,"Adult Social Care, Health & Public Protection "
Nottinghamshire County Council ,Provisions,Debit,27.70,sainsburys s/mkt,20/07/2018,"Children, Families & Cultural Services "
Nottinghamshire County Council ,Personal Needs,Debit,12.99,amazon uk marketplace,20/07/2018,"Children, Families & Cultural Services "
Nottinghamshire County Council ,Personal Needs,Debit,9.97,amazon uk marketplace,20/07/2018,"Children, Families & Cultural Services "
Nottinghamshire County Council ,Personal Needs,Debit,15.00,hmcourts-service.g,20/07/2018,"Children, Families & Cultural Services "
Nottinghamshire County Council ,Personal Needs,Debit,50.00,amazon eu amazon.co.uk,20/07/2018,"Children, Families & Cultural Services "
Nottinghamshire County Council ,Office / General Equipment,Debit,17.59,amazon uk retail,20/07/2018,"Children, Families & Cultural Services "
Nottinghamshire County Council ,Leaving Care - Home Establishment Grant,Debit,55.00,tesco stores 5379,20/07/2018,"Children, Families & Cultural Services "
Nottinghamshire County Council ,Unplanned Needs and Financial Support,Debit,9.80,national express limited,20/07/2018,"Children, Families & Cultural Services "
Nottinghamshire County Council ,Leaving Care - Home Establishment Grant,Debit,31.29,tesco stores 5379,20/07/2018,"Children, Families & Cultural Services "
Nottinghamshire County Council ,Office / General Equipment,Debit,40.31,amazon eu amazon.co.uk,20/07/2018,Place
Nottinghamshire County Council ,Activities & Support,Debit,34.00,wm morrison store,20/07/2018,"Adult Social Care, Health & Public Protection "
Nottinghamshire County Council ,Unplanned Needs and Financial Support,Debit,14.10,appliancedirect co,20/07/2018,"Children, Families & Cultural Services "
Nottinghamshire County Council ,Insurance - Vehicles,Debit,160.22,aa membership r/t,21/07/2018,"Children, Families & Cultural Services "
Nottinghamshire County Council ,Clothing/Shoes/Uniforms,Debit,37.50,amazon uk retail,21/07/2018,"Children, Families & Cultural Services "
Nottinghamshire County Council ,Stationery,Debit,23.96,amazon uk retail,21/07/2018,"Children, Families & Cultural Services "
Nottinghamshire County Council ,Personal Needs,Debit,5.98,savers health  beauty,21/07/2018,"Children, Families & Cultural Services "
Nottinghamshire County Council ,Provisions,Debit,42.04,aldi 39 779,21/07/2018,"Children, Families & Cultural Services "
Nottinghamshire County Council ,Provisions,Debit,6.20,sainsburys s/mkts,21/07/2018,"Children, Families & Cultural Services "
Nottinghamshire County Council ,Office / General Equipment,Debit,213.93,kilmann diagnostics,21/07/2018,"Children, Families & Cultural Services "
Nottinghamshire County Council ,Activities & Support,Debit,15.02,asda superstore 04261,21/07/2018,"Children, Families & Cultural Services "
Nottinghamshire County Council ,Provisions,Debit,84.56,booker limited nottingha,21/07/2018,"Children, Families & Cultural Services "
Nottinghamshire County Council ,Provisions,Debit,26.91,bm retail ltd,21/07/2018,"Children, Families & Cultural Services "
Nottinghamshire County Council ,Provisions,Debit,17.87,the range,21/07/2018,"Children, Families & Cultural Services "
Nottinghamshire County Council ,Provisions,Debit,10.00,flamingoland ltd,21/07/2018,"Children, Families & Cultural Services "
Nottinghamshire County Council ,Phone - Mobile,Debit,4.30,amazon uk marketplace,21/07/2018,"Children, Families & Cultural Services "
Nottinghamshire County Council ,Phone - Mobile,Debit,5.38,amazon uk marketplace,21/07/2018,"Children, Families & Cultural Services "
Nottinghamshire County Council ,Phone - Mobile,Debit,6.58,amazon uk marketplace,21/07/2018,"Children, Families & Cultural Services "
Nottinghamshire County Council ,Provisions,Debit,6.00,asda stores 4474,21/07/2018,"Children, Families & Cultural Services "
Nottinghamshire County Council ,Provisions,Debit,17.97,wickes mansfield,21/07/2018,"Children, Families & Cultural Services "
Nottinghamshire County Council ,Provisions,Debit,19.80,tesco stores 5437,21/07/2018,"Children, Families & Cultural Services "
Nottinghamshire County Council ,Provisions,Debit,97.63,wm morrison food.com,21/07/2018,"Adult Social Care, Health & Public Protection "
Nottinghamshire County Council ,Provisions,Debit,20.49,tesco stores 2995,21/07/2018,"Children, Families & Cultural Services "
Nottinghamshire County Council ,Provisions,Debit,6.08,mcdonalds,21/07/2018,"Children, Families & Cultural Services "
Nottinghamshire County Council ,Provisions,Debit,1.42,poundworld retail,21/07/2018,"Children, Families & Cultural Services "
Nottinghamshire County Council ,Personal Needs,Debit,34.47,amazon uk marketplace,21/07/2018,"Children, Families & Cultural Services "
Nottinghamshire County Council ,Provisions,Debit,17.20,route 66,21/07/2018,"Children, Families & Cultural Services "
Nottinghamshire County Council ,Personal Needs,Debit,6.00,sainsburys s/mkts,21/07/2018,"Children, Families & Cultural Services "
Nottinghamshire County Council ,Personal Needs,Debit,5.00,tesco stores 5437,21/07/2018,"Children, Families & Cultural Services "
Nottinghamshire County Council ,Provisions,Debit,29.07,tesco stores 2995,21/07/2018,"Children, Families & Cultural Services "
Nottinghamshire County Council ,Office / General Equipment,Debit,22.48,amazon uk marketplace,22/07/2018,"Children, Families & Cultural Services "
Nottinghamshire County Council ,Training Fees,Debit,44.29,amazon uk marketplace,22/07/2018,"Adult Social Care, Health & Public Protection "
Nottinghamshire County Council ,Training Fees,Debit,17.48,amazon uk marketplace,22/07/2018,"Adult Social Care, Health & Public Protection "
Nottinghamshire County Council ,Training Fees,Debit,20.37,amazon uk marketplace,22/07/2018,"Adult Social Care, Health & Public Protection "
Nottinghamshire County Council ,Provisions,Debit,31.80,amazon uk marketplace,22/07/2018,"Adult Social Care, Health & Public Protection "
Nottinghamshire County Council ,Personal Needs,Debit,14.80,savoy cinemas ltd,22/07/2018,"Children, Families & Cultural Services "
Nottinghamshire County Council ,Activities & Support,Debit,67.64,amazon uk marketplace,22/07/2018,"Adult Social Care, Health & Public Protection "
Nottinghamshire County Council ,Activities & Support,Debit,80.74,amazon uk marketplace,22/07/2018,"Adult Social Care, Health & Public Protection "
Nottinghamshire County Council ,Personal Needs,Debit,20.00,hmcourts-service.g,22/07/2018,"Children, Families & Cultural Services "
Nottinghamshire County Council ,Provisions,Debit,18.49,amazon svcs eu-uk amazon,22/07/2018,"Adult Social Care, Health & Public Protection "
Nottinghamshire County Council ,Provisions,Debit,12.99,amazon uk marketplace,22/07/2018,"Adult Social Care, Health & Public Protection "
Nottinghamshire County Council ,Provisions,Debit,34.87,amazon svcs europesar,22/07/2018,"Adult Social Care, Health & Public Protection "
Nottinghamshire County Council ,Provisions,Debit,19.54,amazon uk marketplace,22/07/2018,"Adult Social Care, Health & Public Protection "
Nottinghamshire County Council ,Office / General Equipment,Debit,72.01,amazon uk retail,22/07/2018,"Adult Social Care, Health & Public Protection "
Nottinghamshire County Council ,Provisions,Debit,9.99,wh smith,22/07/2018,"Children, Families & Cultural Services "
Nottinghamshire County Council ,Personal Needs,Debit,21.00,amazon uk marketplace,22/07/2018,"Children, Families & Cultural Services "
Nottinghamshire County Council ,Office / General Equipment,Debit,28.37,amazon uk marketplace,22/07/2018,Resources
Nottinghamshire County Council ,Personal Needs,Debit,2.00,sainsburys s/mkts,22/07/2018,"Children, Families & Cultural Services "
Nottinghamshire County Council ,Personal Needs,Debit,22.25,odeon,22/07/2018,"Children, Families & Cultural Services "
Nottinghamshire County Council ,Advertising & Marketing,Debit,7.99,amazon prime,22/07/2018,Resources
Nottinghamshire County Council ,Clothing/Shoes/Uniforms,Debit,46.92,alexandra website,23/07/2018,"Children, Families & Cultural Services "
Nottinghamshire County Council ,Provisions,Debit,42.37,w m morrisons.com,23/07/2018,"Adult Social Care, Health & Public Protection "
Nottinghamshire County Council ,Unplanned Needs and Financial Support,Debit,100.00,e.on energy solutions,23/07/2018,"Children, Families & Cultural Services "
Nottinghamshire County Council ,Unplanned Needs and Financial Support,Debit,21.25,tesco stores 5417,23/07/2018,"Children, Families & Cultural Services "
Nottinghamshire County Council ,Family Financial Assistance,Debit,149.99,argos retail group,23/07/2018,"Children, Families & Cultural Services "
Nottinghamshire County Council ,Provisions,Debit,62.00,sainsburys smkt,23/07/2018,"Children, Families & Cultural Services "
Nottinghamshire County Council ,Office / General Equipment,Debit,2.20,tesco stores 5437,23/07/2018,"Adult Social Care, Health & Public Protection "
Nottinghamshire County Council ,Provisions,Debit,1.69,lidl uk  netherfield,23/07/2018,"Children, Families & Cultural Services "
Nottinghamshire County Council ,Provisions,Debit,2.25,wilko retail limit,23/07/2018,"Children, Families & Cultural Services "
Nottinghamshire County Council ,Provisions,Debit,39.98,argos ltd,23/07/2018,"Children, Families & Cultural Services "
Nottinghamshire County Council ,Provisions,Debit,8.75,aldi 98 779,23/07/2018,"Children, Families & Cultural Services "
Nottinghamshire County Council ,Provisions,Debit,4.57,bm retail,23/07/2018,"Children, Families & Cultural Services "
Nottinghamshire County Council ,Provisions,Debit,64.90,b  m retail,23/07/2018,"Children, Families & Cultural Services "
Nottinghamshire County Council ,Phone and Network (Land Lines),Debit,24.00,textmagic.com,23/07/2018,"Children, Families & Cultural Services "
Nottinghamshire County Council ,Building Maintenance,Debit,79.95,dispute refund reversal,23/07/2018,"Children, Families & Cultural Services "
Nottinghamshire County Council ,Provisions,Debit,26.91,tesco stores 5329,23/07/2018,"Children, Families & Cultural Services "
Nottinghamshire County Council ,Provisions,Debit,10.39,wickes mansfield,23/07/2018,"Children, Families & Cultural Services "
Nottinghamshire County Council ,Software Purchases,Debit,82.64,pure chat inc,23/07/2018,Resources
Nottinghamshire County Council ,Cleaning Materials,Debit,2.00,sainsburys s/mkts,23/07/2018,"Children, Families & Cultural Services "
Nottinghamshire County Council ,Leaving Care - Home Establishment Grant,Debit,186.44,www.argos.co.uk,23/07/2018,"Children, Families & Cultural Services "
Nottinghamshire County Council ,Unplanned Needs and Financial Support,Debit,5.25,costa coffee 43040360,23/07/2018,"Children, Families & Cultural Services "
Nottinghamshire County Council ,Provisions,Debit,13.88,aldi 39 779,23/07/2018,"Children, Families & Cultural Services "
Nottinghamshire County Council ,Minor Works,Debit,258.68,juice electrical supplie,23/07/2018,"Children, Families & Cultural Services "
Nottinghamshire County Council ,Provisions,Debit,16.49,bm retail,23/07/2018,"Children, Families & Cultural Services "
Nottinghamshire County Council ,Fixtures & Fittings,Debit,12.35,denmans electrical,23/07/2018,"Adult Social Care, Health & Public Protection "
Nottinghamshire County Council ,Cleaning Materials,Debit,98.18,jangro (leicester) ltd,23/07/2018,"Adult Social Care, Health & Public Protection "
Nottinghamshire County Council ,Cleaning Materials,Debit,233.57,jangro (leicester) ltd,23/07/2018,"Adult Social Care, Health & Public Protection "
Nottinghamshire County Council ,Personal Needs,Debit,59.99,argos retail group,23/07/2018,"Children, Families & Cultural Services "
Nottinghamshire County Council ,Personal Needs,Debit,5.55,caffe nero,23/07/2018,"Children, Families & Cultural Services "
Nottinghamshire County Council ,Provisions,Debit,9.99,argos ltd,23/07/2018,"Children, Families & Cultural Services "
Nottinghamshire County Council ,Provisions,Debit,9.44,bm retail ltd,23/07/2018,"Children, Families & Cultural Services "
Nottinghamshire County Council ,Phone - Mobile,Debit,16.47,amazon uk marketplace,23/07/2018,"Children, Families & Cultural Services "
Nottinghamshire County Council ,Personal Needs,Debit,4.50,tesco stores 2995,23/07/2018,"Children, Families & Cultural Services "
Nottinghamshire County Council ,Unplanned Needs and Financial Support,Debit,4.97,mcdonalds,23/07/2018,"Children, Families & Cultural Services "
Nottinghamshire County Council ,Unplanned Needs and Financial Support,Debit,10.15,mcdonalds,23/07/2018,"Children, Families & Cultural Services "
Nottinghamshire County Council ,Unplanned Needs and Financial Support,Debit,40.00,tesco stores 2995,23/07/2018,"Children, Families & Cultural Services "
Nottinghamshire County Council ,Provisions,Debit,21.10,w m morrison store,23/07/2018,"Children, Families & Cultural Services "
Nottinghamshire County Council ,Provisions,Debit,17.69,tesco store 3439,23/07/2018,"Children, Families & Cultural Services "
Nottinghamshire County Council ,DBS Checks,Debit,115.00,travelodge gb0000,23/07/2018,"Children, Families & Cultural Services "
Nottinghamshire County Council ,Subscriptions and Licences,Debit,40.99,pp quickcalclt,23/07/2018,"Children, Families & Cultural Services "
Nottinghamshire County Council ,Housing/Accommodation Financial Support,Debit,70.00,the bentinck hotel,23/07/2018,"Children, Families & Cultural Services "
Nottinghamshire County Council ,Unplanned Needs and Financial Support,Debit,49.99,t k maxx,23/07/2018,"Children, Families & Cultural Services "
Nottinghamshire County Council ,Unplanned Needs and Financial Support,Debit,11.00,tesco stores 2995,23/07/2018,"Children, Families & Cultural Services "
Nottinghamshire County Council ,Unplanned Needs and Financial Support,Debit,31.07,the range-newark,23/07/2018,"Children, Families & Cultural Services "
Nottinghamshire County Council ,Unplanned Needs and Financial Support,Debit,5.29,mcdonalds,23/07/2018,"Children, Families & Cultural Services "
Nottinghamshire County Council ,Unplanned Needs and Financial Support,Debit,8.99,home bargains newark,23/07/2018,"Children, Families & Cultural Services "
Nottinghamshire County Council ,Provisions,Debit,19.75,tesco stores 5437,23/07/2018,"Children, Families & Cultural Services "
Nottinghamshire County Council ,Provisions,Debit,48.98,argos ltd,23/07/2018,"Children, Families & Cultural Services "
Nottinghamshire County Council ,Provisions,Debit,29.01,www.iceland.co.uk,23/07/2018,"Children, Families & Cultural Services "
Nottinghamshire County Council ,Provisions,Debit,7.04,home bargains,23/07/2018,"Children, Families & Cultural Services "
Nottinghamshire County Council ,Provisions,Debit,5.60,amazon uk marketplace,23/07/2018,"Adult Social Care, Health & Public Protection "
Nottinghamshire County Council ,Provisions,Debit,7.96,amazon uk marketplace,23/07/2018,"Adult Social Care, Health & Public Protection "
Nottinghamshire County Council ,Provisions,Debit,40.95,amazon uk marketplace,23/07/2018,"Adult Social Care, Health & Public Protection "
Nottinghamshire County Council ,Provisions,Debit,23.50,wm morrisons,23/07/2018,"Adult Social Care, Health & Public Protection "
Nottinghamshire County Council ,Provisions,Debit,3.20,amazon uk marketplace,23/07/2018,"Adult Social Care, Health & Public Protection "
Nottinghamshire County Council ,Provisions,Credi,-1.09,asda groceries online,23/07/2018,"Adult Social Care, Health & Public Protection "
Nottinghamshire County Council ,Provisions,Debit,105.75,asda groceries online,23/07/2018,"Adult Social Care, Health & Public Protection "
Nottinghamshire County Council ,Provisions,Credi,-0.70,asda groceries online,23/07/2018,"Adult Social Care, Health & Public Protection "
Nottinghamshire County Council ,Provisions,Debit,28.45,tesco stores 5437,23/07/2018,"Children, Families & Cultural Services "
Nottinghamshire County Council ,Provisions,Debit,71.15,pizza express,23/07/2018,"Children, Families & Cultural Services "
Nottinghamshire County Council ,Minor Works,Debit,22.32,lincat ltd,23/07/2018,"Children, Families & Cultural Services "
Nottinghamshire County Council ,Personal Needs,Debit,21.10,amazon uk marketplace,23/07/2018,"Children, Families & Cultural Services "
Nottinghamshire County Council ,Personal Needs,Debit,18.00,amazon uk marketplace,23/07/2018,"Children, Families & Cultural Services "
Nottinghamshire County Council ,Personal Needs,Debit,23.99,www.boohoo.com,23/07/2018,"Children, Families & Cultural Services "
Nottinghamshire County Council ,Personal Needs,Debit,3.00,nott emt carpark,23/07/2018,"Children, Families & Cultural Services "
Nottinghamshire County Council ,Personal Needs,Debit,3.00,nott emt carpark,23/07/2018,"Children, Families & Cultural Services "
Nottinghamshire County Council ,Staff Training,Debit,153.46,airbnb   hmsf9btwce,23/07/2018,"Children, Families & Cultural Services "
Nottinghamshire County Council ,Provisions,Debit,80.31,tesco stores 3297,23/07/2018,"Children, Families & Cultural Services "
Nottinghamshire County Council ,Staff Training,Debit,375.00,paypal  mcgrath s p,23/07/2018,"Children, Families & Cultural Services "
Nottinghamshire County Council ,Office / General Equipment,Debit,111.00,media  communications l,23/07/2018,Resources
Nottinghamshire County Council ,Provisions,Debit,35.73,aldi 39 779,23/07/2018,"Children, Families & Cultural Services "
Nottinghamshire County Council ,Provisions,Debit,134.13,aldi stores,23/07/2018,"Children, Families & Cultural Services "
Nottinghamshire County Council ,Minor Works,Debit,33.00,terratruck distrib,24/07/2018,"Children, Families & Cultural Services "
Nottinghamshire County Council ,Minor Works,Debit,4.78,tesco stores 2702,24/07/2018,"Children, Families & Cultural Services "
Nottinghamshire County Council ,Office / General Equipment,Debit,150.50,tvlicensing.co.uk,24/07/2018,"Children, Families & Cultural Services "
Nottinghamshire County Council ,Personal Needs,Debit,279.00,amazon uk marketplace,24/07/2018,"Children, Families & Cultural Services "
Nottinghamshire County Council ,Cleaning & Domestic Equipment,Debit,203.94,www.argos.co.uk,24/07/2018,"Children, Families & Cultural Services "
Nottinghamshire County Council ,Personal Needs,Debit,19.83,amazon uk marketplace,24/07/2018,"Children, Families & Cultural Services "
Nottinghamshire County Council ,Personal Needs,Debit,22.50,amazon uk marketplace,24/07/2018,"Children, Families & Cultural Services "
Nottinghamshire County Council ,Activities & Support,Debit,80.50,paypal  wilkoretail,24/07/2018,Resources
Nottinghamshire County Council ,Activities & Support,Debit,19.00,asda george com leeds,24/07/2018,Resources
Nottinghamshire County Council ,Activities & Support,Debit,285.89,www.argos.co.uk,24/07/2018,Resources
Nottinghamshire County Council ,Activities & Support,Debit,26.50,paypal  dartington,24/07/2018,Resources
Nottinghamshire County Council ,Activities & Support,Debit,24.49,tesco stores 5379,24/07/2018,"Children, Families & Cultural Services "
Nottinghamshire County Council ,Provisions,Debit,15.20,sainsburys smkt,24/07/2018,"Children, Families & Cultural Services "
Nottinghamshire County Council ,Teaching Equipment,Debit,1.50,royal mail charges,24/07/2018,"Children, Families & Cultural Services "
Nottinghamshire County Council ,Legal Fees,Debit,3.00,land registry,24/07/2018,Resources
Nottinghamshire County Council ,Activities & Support,Debit,70.10,w m morrisons.com,24/07/2018,"Adult Social Care, Health & Public Protection "
Nottinghamshire County Council ,Activities & Support,Debit,5.00,asda groceries online,24/07/2018,"Adult Social Care, Health & Public Protection "
Nottinghamshire County Council ,Activities & Support,Debit,13.98,co-op group food,24/07/2018,Resources
Nottinghamshire County Council ,Office / General Equipment,Debit,200.00,parkway secure storage,24/07/2018,"Adult Social Care, Health & Public Protection "
Nottinghamshire County Council ,Cleaning & Domestic Equipment,Debit,39.56,home bargains newark,24/07/2018,"Adult Social Care, Health & Public Protection "
Nottinghamshire County Council ,Provisions,Debit,55.27,aldi 39 779,24/07/2018,"Children, Families & Cultural Services "
Nottinghamshire County Council ,Cleaning Materials,Debit,2.00,sainsburys s/mkts,24/07/2018,"Children, Families & Cultural Services "
Nottinghamshire County Council ,Personal Needs,Debit,5.00,sainsburys s/mkts,24/07/2018,"Children, Families & Cultural Services "
Nottinghamshire County Council ,Provisions,Debit,5.40,sainsburys s/mkts,24/07/2018,"Children, Families & Cultural Services "
Nottinghamshire County Council ,Housing/Accommodation Financial Support,Debit,54.00,travelodge gb0000,24/07/2018,"Children, Families & Cultural Services "
Nottinghamshire County Council ,Leaving Care - Home Establishment Grant,Debit,5.00,sainsburys s/mkts,24/07/2018,"Children, Families & Cultural Services "
Nottinghamshire County Council ,Provisions,Debit,5.00,the market garden,24/07/2018,"Children, Families & Cultural Services "
Nottinghamshire County Council ,Provisions,Debit,35.41,tesco stores 2995,24/07/2018,"Children, Families & Cultural Services "
Nottinghamshire County Council ,Provisions,Debit,20.38,farmfoods- woodhou,24/07/2018,"Children, Families & Cultural Services "
Nottinghamshire County Council ,Provisions,Debit,8.94,aldi,24/07/2018,"Adult Social Care, Health & Public Protection "
Nottinghamshire County Council ,Provisions,Debit,9.40,sainsburys s/mkts,24/07/2018,"Children, Families & Cultural Services "
Nottinghamshire County Council ,Leaving Care - Home Establishment Grant,Debit,69.00,ao retail limited,24/07/2018,"Children, Families & Cultural Services "
Nottinghamshire County Council ,Unplanned Needs and Financial Support,Debit,245.00,pp apple wood,24/07/2018,"Children, Families & Cultural Services "
Nottinghamshire County Council ,Other Fees & Services,Debit,53.60,www.ed-edsupport.org.u,24/07/2018,Resources
Nottinghamshire County Council ,Other Fees & Services,Credi,-53.60,www.ed-edsupport.org.u,24/07/2018,Resources
Nottinghamshire County Council ,Provisions,Debit,"2,020.00",alton towers,24/07/2018,"Children, Families & Cultural Services "
Nottinghamshire County Council ,Provisions,Debit,339.00,yorkshire wildlife par,24/07/2018,"Children, Families & Cultural Services "
Nottinghamshire County Council ,Provisions,Debit,121.01,tesco stores 3297,24/07/2018,"Children, Families & Cultural Services "
Nottinghamshire County Council ,Hospitality,Debit,9.18,asda stores 4475,24/07/2018,"Adult Social Care, Health & Public Protection "
Nottinghamshire County Council ,Provisions,Debit,4.88,shop 4 u,24/07/2018,"Children, Families & Cultural Services "
Nottinghamshire County Council ,Provisions,Debit,64.95,amazon uk marketplace,24/07/2018,Place
Nottinghamshire County Council ,Provisions,Debit,119.92,booker limited nottingha,24/07/2018,Place
Nottinghamshire County Council ,Unplanned Needs and Financial Support,Debit,194.00,asda store ston in as,24/07/2018,"Children, Families & Cultural Services "
Nottinghamshire County Council ,Unplanned Needs and Financial Support,Debit,111.20,asda store ston in as,24/07/2018,"Children, Families & Cultural Services "
Nottinghamshire County Council ,Provisions,Debit,18.99,argos ltd,24/07/2018,"Children, Families & Cultural Services "
Nottinghamshire County Council ,Provisions,Debit,8.00,poundland,24/07/2018,"Children, Families & Cultural Services "
Nottinghamshire County Council ,Provisions,Debit,23.96,tesco stores 5379,24/07/2018,"Children, Families & Cultural Services "
Nottinghamshire County Council ,Provisions,Debit,63.42,wm morrison food.com,24/07/2018,"Adult Social Care, Health & Public Protection "
Nottinghamshire County Council ,Provisions,Debit,10.93,wm morrisons,24/07/2018,"Adult Social Care, Health & Public Protection "
Nottinghamshire County Council ,Provisions,Debit,26.59,tesco stores 5437,24/07/2018,"Children, Families & Cultural Services "
Nottinghamshire County Council ,Provisions,Debit,10.00,poundland,24/07/2018,"Children, Families & Cultural Services "
Nottinghamshire County Council ,Activities & Support,Debit,6.00,sportsdirect 236,24/07/2018,"Children, Families & Cultural Services "
Nottinghamshire County Council ,Postages,Debit,25.74,amazon uk marketplace,24/07/2018,Resources
Nottinghamshire County Council ,Provisions,Debit,285.00,drayton manor park limit,24/07/2018,"Children, Families & Cultural Services "
Nottinghamshire County Council ,Provisions,Debit,5.00,asda superstore,24/07/2018,Place
Nottinghamshire County Council ,Provisions,Debit,10.00,iceland,24/07/2018,Place
Nottinghamshire County Council ,Provisions,Debit,2.90,iceland,24/07/2018,Place
Nottinghamshire County Council ,Provisions,Debit,19.06,co-op group food,24/07/2018,"Children, Families & Cultural Services "
Nottinghamshire County Council ,Provisions,Debit,9.20,co-op group food,24/07/2018,"Children, Families & Cultural Services "
Nottinghamshire County Council ,Cleaning Materials,Debit,9.20,w m morrison plc,24/07/2018,"Adult Social Care, Health & Public Protection "
Nottinghamshire County Council ,Cleaning Materials,Debit,24.10,wilko retail limit,24/07/2018,"Adult Social Care, Health & Public Protection "
Nottinghamshire County Council ,Provisions,Debit,32.18,dominos pizza uk  irela,24/07/2018,"Children, Families & Cultural Services "
Nottinghamshire County Council ,Provisions,Debit,7.35,aldi stores,24/07/2018,"Children, Families & Cultural Services "
Nottinghamshire County Council ,Personal Needs,Debit,13.50,www.cgpbooks.co.uk,24/07/2018,"Children, Families & Cultural Services "
Nottinghamshire County Council ,Personal Needs,Debit,75.00,amazon svcs eu-uk amazon,24/07/2018,"Children, Families & Cultural Services "
Nottinghamshire County Council ,Personal Needs,Debit,29.98,amazon uk marketplace,24/07/2018,"Children, Families & Cultural Services "
Nottinghamshire County Council ,Personal Needs,Debit,91.50,www.cgpbooks.co.uk,24/07/2018,"Children, Families & Cultural Services "
Nottinghamshire County Council ,Personal Needs,Debit,30.89,amazon uk marketplace,24/07/2018,"Children, Families & Cultural Services "
Nottinghamshire County Council ,Personal Needs,Debit,5.99,amazon uk marketplace,24/07/2018,"Children, Families & Cultural Services "
Nottinghamshire County Council ,Personal Needs,Debit,5.99,tk maxx,24/07/2018,"Children, Families & Cultural Services "
Nottinghamshire County Council ,Personal Needs,Debit,17.33,select - mansfield 2,24/07/2018,"Children, Families & Cultural Services "
Nottinghamshire County Council ,Personal Needs,Debit,14.00,j d sports 621,24/07/2018,"Children, Families & Cultural Services "
Nottinghamshire County Council ,Provisions,Debit,64.42,w m morrison,24/07/2018,"Children, Families & Cultural Services "
Nottinghamshire County Council ,Provisions,Debit,10.00,m6 toll,24/07/2018,"Children, Families & Cultural Services "
Nottinghamshire County Council ,Provisions,Debit,20.10,tesco stores 2995,24/07/2018,"Children, Families & Cultural Services "
Nottinghamshire County Council ,Office / General Equipment,Debit,11.25,w m morrison plc,24/07/2018,Resources
Nottinghamshire County Council ,Office / General Equipment,Debit,8.00,w m morrison plc,24/07/2018,Resources
Nottinghamshire County Council ,Provisions,Debit,60.41,the range,24/07/2018,"Children, Families & Cultural Services "
Nottinghamshire County Council ,Provisions,Debit,10.99,wickes,24/07/2018,"Children, Families & Cultural Services "
Nottinghamshire County Council ,Minor Works,Debit,14.99,jtf wholesale ltd,25/07/2018,"Children, Families & Cultural Services "
Nottinghamshire County Council ,Personal Needs,Debit,49.99,amazon uk marketplace,25/07/2018,"Children, Families & Cultural Services "
Nottinghamshire County Council ,Activities & Support,Debit,7.50,wm morrison store,25/07/2018,"Children, Families & Cultural Services "
Nottinghamshire County Council ,Activities & Support,Debit,24.96,wm morrison store,25/07/2018,"Children, Families & Cultural Services "
Nottinghamshire County Council ,Cleaning Materials,Debit,12.33,w m morrisons.com,25/07/2018,"Adult Social Care, Health & Public Protection "
Nottinghamshire County Council ,Provisions,Debit,102.31,w m morrisons.com,25/07/2018,"Adult Social Care, Health & Public Protection "
Nottinghamshire County Council ,Fuel - Petrol,Debit,47.00,malthurst limited,25/07/2018,"Children, Families & Cultural Services "
Nottinghamshire County Council ,Teaching Equipment,Debit,5.92,wm morrison store,25/07/2018,"Children, Families & Cultural Services "
Nottinghamshire County Council ,Legal Fees,Debit,10.00,www.gov.uk,25/07/2018,Resources
Nottinghamshire County Council ,Legal Fees,Debit,10.00,www.gov.uk,25/07/2018,Resources
Nottinghamshire County Council ,Other Fees & Services,Debit,230.86,www.therange.co.uk,25/07/2018,"Children, Families & Cultural Services "
Nottinghamshire County Council ,Activities & Support,Debit,1.10,sainsburys petrol,25/07/2018,Resources
Nottinghamshire County Council ,Activities & Support,Debit,11.42,home bargains,25/07/2018,Resources
Nottinghamshire County Council ,Legal Fees,Debit,30.48,amazon uk marketplace,25/07/2018,Resources
Nottinghamshire County Council ,Office / General Equipment,Debit,115.00,dsa,25/07/2018,Place
Nottinghamshire County Council ,Software Maintenance,Debit,463.15,godaddy com europe,25/07/2018,Resources
Nottinghamshire County Council ,Leaving Care - Home Establishment Grant,Debit,8.25,tesco stores 5379,25/07/2018,"Children, Families & Cultural Services "
Nottinghamshire County Council ,Unplanned Needs and Financial Support,Debit,3.00,tesco stores 5379,25/07/2018,"Children, Families & Cultural Services "
Nottinghamshire County Council ,Leaving Care - Home Establishment Grant,Debit,99.99,amazon uk marketplace,25/07/2018,"Children, Families & Cultural Services "
Nottinghamshire County Council ,Minor Works,Debit,132.10,tesco stores 3378,25/07/2018,"Children, Families & Cultural Services "
Nottinghamshire County Council ,Books - General,Debit,87.90,www.osbornebooks.co.uk,25/07/2018,"Adult Social Care, Health & Public Protection "
Nottinghamshire County Council ,Provisions,Debit,6.06,home bargains,25/07/2018,"Children, Families & Cultural Services "
Nottinghamshire County Council ,Activities & Support,Debit,6.66,asda stores 4474,25/07/2018,"Children, Families & Cultural Services "
Nottinghamshire County Council ,Activities & Support,Debit,29.12,aldi 55 779,25/07/2018,"Children, Families & Cultural Services "
Nottinghamshire County Council ,Office / General Equipment,Debit,25.99,www.argos.co.uk,25/07/2018,"Children, Families & Cultural Services "
Nottinghamshire County Council ,DBS Checks,Debit,115.00,travelodge gb0000,25/07/2018,"Children, Families & Cultural Services "
Nottinghamshire County Council ,Provisions,Debit,24.50,tesco stores 5437,25/07/2018,"Children, Families & Cultural Services "
Nottinghamshire County Council ,Office / General Equipment,Debit,13.23,fast key services limi,25/07/2018,"Children, Families & Cultural Services "
Nottinghamshire County Council ,Provisions,Debit,3.00,heron foods ltd,25/07/2018,"Children, Families & Cultural Services "
Nottinghamshire County Council ,First Aid Equipment Purchases,Debit,10.97,amazon uk marketplace,25/07/2018,"Children, Families & Cultural Services "
Nottinghamshire County Council ,Provisions,Debit,29.34,co-op group 010811,25/07/2018,"Children, Families & Cultural Services "
Nottinghamshire County Council ,Furniture,Debit,203.94,www.argos.co.uk,25/07/2018,"Children, Families & Cultural Services "
Nottinghamshire County Council ,Personal Needs,Debit,39.92,amazon svcs eu-uk amazon,25/07/2018,"Children, Families & Cultural Services "
Nottinghamshire County Council ,Personal Needs,Debit,3.94,amazon svcs eu-uk amazon,25/07/2018,"Children, Families & Cultural Services "
Nottinghamshire County Council ,Training Fees,Debit,72.18,homebase ltd 088,25/07/2018,"Adult Social Care, Health & Public Protection "
Nottinghamshire County Council ,Activities & Support,Debit,2.65,amazon uk marketplace,25/07/2018,"Children, Families & Cultural Services "
Nottinghamshire County Council ,Office / General Equipment,Debit,3.20,amazon uk marketplace,25/07/2018,"Children, Families & Cultural Services "
Nottinghamshire County Council ,Activities & Support,Debit,6.50,amazon uk marketplace,25/07/2018,"Children, Families & Cultural Services "
Nottinghamshire County Council ,Activities & Support,Debit,2.65,amazon uk marketplace,25/07/2018,"Children, Families & Cultural Services "
Nottinghamshire County Council ,Activities & Support,Debit,4.99,amazon uk marketplace,25/07/2018,"Children, Families & Cultural Services "
Nottinghamshire County Council ,Books - General,Debit,24.95,the book people,25/07/2018,"Children, Families & Cultural Services "
Nottinghamshire County Council ,Activities & Support,Debit,8.17,amazon uk marketplace,25/07/2018,"Children, Families & Cultural Services "
Nottinghamshire County Council ,Activities & Support,Debit,3.20,amazon uk marketplace,25/07/2018,"Children, Families & Cultural Services "
Nottinghamshire County Council ,Office / General Equipment,Debit,4.99,amazon uk marketplace,25/07/2018,"Children, Families & Cultural Services "
Nottinghamshire County Council ,Phone - Mobile,Debit,15.00,vodafone limited,25/07/2018,"Children, Families & Cultural Services "
Nottinghamshire County Council ,Phone - Mobile,Debit,15.00,vodafone limited,25/07/2018,"Children, Families & Cultural Services "
Nottinghamshire County Council ,Unplanned Needs and Financial Support,Debit,10.00,www.trentbarton.co.uk,25/07/2018,"Children, Families & Cultural Services "
Nottinghamshire County Council ,Leaving Care - Home Establishment Grant,Debit,94.99,dunelm online order,25/07/2018,"Children, Families & Cultural Services "
Nottinghamshire County Council ,Provisions,Debit,32.25,aldi 39 779,25/07/2018,"Children, Families & Cultural Services "
Nottinghamshire County Council ,Provisions,Debit,11.75,sainsburys s/mkts,25/07/2018,"Children, Families & Cultural Services "
Nottinghamshire County Council ,Activities & Support,Debit,30.00,hendwr caravan pk,25/07/2018,"Children, Families & Cultural Services "
Nottinghamshire County Council ,Provisions,Debit,104.06,wm morrison 023,25/07/2018,"Children, Families & Cultural Services "
Nottinghamshire County Council ,Office / General Equipment,Debit,4.99,amazon uk marketplace,25/07/2018,Resources
Nottinghamshire County Council ,Unplanned Needs and Financial Support,Debit,27.06,wm morrison store,25/07/2018,"Children, Families & Cultural Services "
Nottinghamshire County Council ,Provisions,Debit,13.31,wm morrison 023,25/07/2018,"Children, Families & Cultural Services "
Nottinghamshire County Council ,Provisions,Debit,7.04,tesco stores 2995,25/07/2018,"Children, Families & Cultural Services "
Nottinghamshire County Council ,Activities & Support,Debit,67.80,www.salonsdirect.co.uk,25/07/2018,"Adult Social Care, Health & Public Protection "
Nottinghamshire County Council ,Activities & Support,Debit,53.50,royal mail fees,25/07/2018,"Adult Social Care, Health & Public Protection "
Nottinghamshire County Council ,Minor Works,Debit,37.10,tesco stores (5378),26/07/2018,"Children, Families & Cultural Services "
Nottinghamshire County Council ,Minor Works,Debit,3.31,tesco stores 2702,26/07/2018,"Children, Families & Cultural Services "
Nottinghamshire County Council ,Office / General Equipment,Debit,31.06,amazon eu amazon.co.uk,26/07/2018,"Children, Families & Cultural Services "
Nottinghamshire County Council ,Personal Needs,Debit,34.48,amazon uk marketplace,26/07/2018,"Children, Families & Cultural Services "
Nottinghamshire County Council ,Personal Needs,Debit,56.51,amazon uk marketplace,26/07/2018,"Children, Families & Cultural Services "
Nottinghamshire County Council ,Office / General Equipment,Debit,73.42,sportsdirect 292,26/07/2018,"Children, Families & Cultural Services "
Nottinghamshire County Council ,Office / General Equipment,Debit,19.49,amazon uk marketplace,26/07/2018,"Children, Families & Cultural Services "
Nottinghamshire County Council ,Unplanned Needs and Financial Support,Debit,30.00,asda superstore,26/07/2018,"Children, Families & Cultural Services "
Nottinghamshire County Council ,Provisions,Debit,5.69,mcdonalds,26/07/2018,"Children, Families & Cultural Services "
Nottinghamshire County Council ,Personal Needs,Debit,15.60,savoy cinemas ltd,26/07/2018,"Children, Families & Cultural Services "
Nottinghamshire County Council ,Fixtures & Fittings,Debit,42.05,asda superstore,26/07/2018,"Adult Social Care, Health & Public Protection "
Nottinghamshire County Council ,Fixtures & Fittings,Debit,23.96,argos arnold,26/07/2018,"Adult Social Care, Health & Public Protection "
Nottinghamshire County Council ,Activities & Support,Debit,2.77,aldi 62 779,26/07/2018,"Children, Families & Cultural Services "
Nottinghamshire County Council ,Provisions,Debit,8.62,aldi,26/07/2018,"Adult Social Care, Health & Public Protection "
Nottinghamshire County Council ,Provisions,Debit,8.25,w m morrison plc,26/07/2018,"Children, Families & Cultural Services "
Nottinghamshire County Council ,Provisions,Debit,1.75,tesco stores 2995,26/07/2018,"Children, Families & Cultural Services "
Nottinghamshire County Council ,Phone - Mobile,Debit,4.46,parcelheroc,26/07/2018,"Children, Families & Cultural Services "
Nottinghamshire County Council ,Provisions,Debit,33.82,eastern express alton to,26/07/2018,"Children, Families & Cultural Services "
Nottinghamshire County Council ,Staff Training,Debit,75.00,university of nottingham,26/07/2018,"Adult Social Care, Health & Public Protection "
Nottinghamshire County Council ,Staff Training,Debit,75.00,university of nottingham,26/07/2018,"Adult Social Care, Health & Public Protection "
Nottinghamshire County Council ,Staff Training,Debit,75.00,university of nottingham,26/07/2018,"Adult Social Care, Health & Public Protection "
Nottinghamshire County Council ,Staff Training,Debit,75.00,university of nottingham,26/07/2018,"Adult Social Care, Health & Public Protection "
Nottinghamshire County Council ,Staff Training,Debit,75.00,university of nottingham,26/07/2018,"Adult Social Care, Health & Public Protection "
Nottinghamshire County Council ,Activities & Support,Debit,75.00,university of nottingham,26/07/2018,Resources
Nottinghamshire County Council ,Activities & Support,Debit,75.00,university of nottingham,26/07/2018,"Adult Social Care, Health & Public Protection "
Nottinghamshire County Council ,Staff Training,Debit,75.00,university of nottingham,26/07/2018,"Adult Social Care, Health & Public Protection "
Nottinghamshire County Council ,Staff Training,Debit,75.00,university of nottingham,26/07/2018,"Adult Social Care, Health & Public Protection "
Nottinghamshire County Council ,Staff Training,Debit,75.00,university of nottingham,26/07/2018,"Adult Social Care, Health & Public Protection "
Nottinghamshire County Council ,Housing/Accommodation Financial Support,Debit,110.00,ashfield district,26/07/2018,"Children, Families & Cultural Services "
Nottinghamshire County Council ,Housing/Accommodation Financial Support,Debit,378.00,j e wright home heatin,26/07/2018,"Children, Families & Cultural Services "
Nottinghamshire County Council ,Housing/Accommodation Financial Support,Debit,86.00,ashfield district,26/07/2018,"Children, Families & Cultural Services "
Nottinghamshire County Council ,Provisions,Debit,12.22,misterton foodstre,26/07/2018,"Children, Families & Cultural Services "
Nottinghamshire County Council ,Activities & Support,Debit,9.05,tesco stores 2702,26/07/2018,"Children, Families & Cultural Services "
Nottinghamshire County Council ,Activities & Support,Debit,21.71,aldi 17 779,26/07/2018,"Children, Families & Cultural Services "
Nottinghamshire County Council ,DBS Checks,Debit,17.25,tesco stores 5379,26/07/2018,"Children, Families & Cultural Services "
Nottinghamshire County Council ,DBS Checks,Debit,19.90,lidl uk  sutton in ash,26/07/2018,"Children, Families & Cultural Services "
Nottinghamshire County Council ,"Leaving Care Educaton,Employment & Training",Debit,2.00,sainsburys smkt,26/07/2018,"Children, Families & Cultural Services "
Nottinghamshire County Council ,Activities & Support,Debit,52.32,amazon uk marketplace,26/07/2018,Resources
Nottinghamshire County Council ,Unplanned Needs and Financial Support,Debit,60.16,b  m retail,26/07/2018,"Children, Families & Cultural Services "
Nottinghamshire County Council ,Unplanned Needs and Financial Support,Debit,4.00,woodhouse fish  chips,26/07/2018,"Children, Families & Cultural Services "
Nottinghamshire County Council ,Unplanned Needs and Financial Support,Debit,2.61,mcdonalds,26/07/2018,"Children, Families & Cultural Services "
Nottinghamshire County Council ,Stationery,Debit,42.40,amazon uk marketplace,26/07/2018,Resources
Nottinghamshire County Council ,Provisions,Debit,"1,127.00",alton towers park,26/07/2018,"Children, Families & Cultural Services "
Nottinghamshire County Council ,Provisions,Credi,-2.10,asda groceries online,26/07/2018,"Adult Social Care, Health & Public Protection "
Nottinghamshire County Council ,Provisions,Debit,120.69,asda groceries online,26/07/2018,"Adult Social Care, Health & Public Protection "
Nottinghamshire County Council ,Activities & Support,Debit,7.03,t j morris ltd,26/07/2018,"Children, Families & Cultural Services "
Nottinghamshire County Council ,Provisions,Debit,25.75,co-op group 065071,26/07/2018,"Children, Families & Cultural Services "
Nottinghamshire County Council ,Provisions,Debit,5.00,alton towers,26/07/2018,"Children, Families & Cultural Services "
Nottinghamshire County Council ,Postages,Debit,12.50,msr newsgroup ltd,26/07/2018,Resources
Nottinghamshire County Council ,Office / General Equipment,Debit,17.97,asda superstore 04030,26/07/2018,"Adult Social Care, Health & Public Protection "
Nottinghamshire County Council ,Staff Training,Debit,60.00,contact property,26/07/2018,Place
Nottinghamshire County Council ,Staff Training,Debit,60.00,contact property,26/07/2018,Place
Nottinghamshire County Council ,Provisions,Debit,82.29,moto donington park wh,26/07/2018,"Children, Families & Cultural Services "
Nottinghamshire County Council ,Provisions,Debit,4.78,co-op group food,26/07/2018,"Children, Families & Cultural Services "
Nottinghamshire County Council ,Provisions,Debit,163.07,mcdonalds,26/07/2018,"Children, Families & Cultural Services "
Nottinghamshire County Council ,Provisions,Debit,4.30,yorkshire wildlife par,26/07/2018,"Children, Families & Cultural Services "
Nottinghamshire County Council ,Provisions,Debit,5.58,maid marion food stores,26/07/2018,"Children, Families & Cultural Services "
Nottinghamshire County Council ,Provisions,Debit,11.30,yorkshire wildlife par,26/07/2018,"Children, Families & Cultural Services "
Nottinghamshire County Council ,Provisions,Debit,3.00,yorkshire wildlife par,26/07/2018,"Children, Families & Cultural Services "
Nottinghamshire County Council ,Furniture,Debit,180.00,wild orchid,26/07/2018,"Adult Social Care, Health & Public Protection "
Nottinghamshire County Council ,Personal Needs,Debit,34.99,amazon uk marketplace,26/07/2018,"Children, Families & Cultural Services "
Nottinghamshire County Council ,Provisions,Debit,5.28,central eng coop,26/07/2018,"Children, Families & Cultural Services "
Nottinghamshire County Council ,Personal Needs,Debit,4.24,amazon svcs eu-uk amazon,26/07/2018,"Children, Families & Cultural Services "
Nottinghamshire County Council ,Activities & Support,Debit,42.90,amazon uk marketplace,26/07/2018,"Children, Families & Cultural Services "
Nottinghamshire County Council ,Activities & Support,Debit,8.94,amazon uk marketplace,26/07/2018,"Children, Families & Cultural Services "
Nottinghamshire County Council ,Activities & Support,Debit,38.20,amazon uk marketplace,26/07/2018,"Children, Families & Cultural Services "
Nottinghamshire County Council ,Provisions,Debit,6.00,tesco stores 5379,26/07/2018,"Children, Families & Cultural Services "
Nottinghamshire County Council ,Fixtures & Fittings,Debit,5.17,b  q 1261,26/07/2018,"Children, Families & Cultural Services "
Nottinghamshire County Council ,Fixtures & Fittings,Debit,5.98,b  q 1261,26/07/2018,"Children, Families & Cultural Services "
Nottinghamshire County Council ,Fixtures & Fittings,Debit,16.00,b  q 1261,26/07/2018,"Children, Families & Cultural Services "
Nottinghamshire County Council ,Fixtures & Fittings,Debit,16.00,b  q 1261,26/07/2018,"Children, Families & Cultural Services "
Nottinghamshire County Council ,Phone - Mobile,Credi,-8.29,amz top-vigor top sale,26/07/2018,"Children, Families & Cultural Services "
Nottinghamshire County Council ,Stationery,Debit,490.00,post office counter,26/07/2018,Place
Nottinghamshire County Council ,Personal Needs,Debit,7.30,sainsburys s/mkts,26/07/2018,"Children, Families & Cultural Services "
Nottinghamshire County Council ,Provisions,Debit,49.55,booker limited mansfield,26/07/2018,"Children, Families & Cultural Services "
Nottinghamshire County Council ,Provisions,Debit,13.98,amazon svcs eu-uk amazon,26/07/2018,"Children, Families & Cultural Services "
Nottinghamshire County Council ,Provisions,Debit,11.45,drayton manor park cater,26/07/2018,"Children, Families & Cultural Services "
Nottinghamshire County Council ,Activities & Support,Debit,42.95,homebase,26/07/2018,"Adult Social Care, Health & Public Protection "
Nottinghamshire County Council ,Activities & Support,Debit,59.63,mobilitysma,26/07/2018,"Adult Social Care, Health & Public Protection "
